Workbook

Sheet Form Instructions
F3: HVAC Application - Electronic Version
F4: Dominion Energy South Carolina, Inc.
E11: *If an error occurs when using buttons above, manually navigate to appropriate tab | R11: ="Version # "&'Version Tracking'!C4 -> Version # 14.2
A12: Application and Instructions | K12: Participation Instructions
A13: The EnergyWise for Your Business Program is designed to help non-residential customers replace aging, inefficient equipment and systems with energy-efficient technologies. The program provides customers with incentives and technical assistance that will facilitate the installation of premium efficient equipment. For each program year (December 1–November 30), EnergyWise for Your Business incentive payments are capped per Customer Federal tax ID number at $100,000 per Project type. Details of the program, including incentive levels and technical requirements, are subject to change without prior notice. You may go to www.DominionEnergy.com/ForYourBizSC to get the most current program information, or you may call 877-784-7234. Eligible Participants EnergyWise for Your Business is open to all non-residential electric customers within our service territory, except for customers eligible for Rate 23 that have elected to opt out of the Demand Side Management (DSM) programs by notifying us in writing using the Opt-Out form. Eligible Equipment Eligible equipment and incentive amounts are listed on the Equipment Tabs. Eligible equipment include HVAC Unitary equipment, Window Film, HVAC Chillers, Cool Roofs, and Variable Frequency Drives (VFDs). These measures are subject to the associated technical eligibility criteria described on the individual equipment tab. All equipment must be new; used or refurbished equipment is not eligible. | K13: Please review the program Terms and Conditions tab for program rules and requirements. Tabs colored Blue should be filled in by applicant. Applicant should complete at least one applicable Blue Equipment tab for submission.
K14: Step 1 Review program materials to confirm your proposed equipment meets program requirements. Visit the program website at www.DominionEnergy.com/ForYourBizSC or contact us at SCEnergyExperts@SC.DominionEnergyAccount.com or 877-784-7234 with any questions about eligibility. Step 2 → Complete the Project Information tab. Please indicate the mailing address for all correspondence under the Customer Contact Information including incentive checks if applicable. Please indicate if the incentive payment should be made payable to the customer of record or a third party, such as the installation contractor. All incentive payments require authorization from the customer of record. IRS Form W-9 must be completed for the party receiving the incentive payment from us. Physical signature is required on W-9. This form is available at www.irs.gov. Regardless of who is receiving the incentive payment, the customer’s Federal tax ID number must be provided on this tab. → Complete at least one Equipment Tab. → Complete the Checklist and Acknowledgement tab. Provide customer signature and verify that all required information and documentation are included for submission to us. Incomplete applications will not be accepted and will be returned to the customer for completion. → Complete application packages must be submitted by email.
A15: Pre-Approval Requirements All projects require pre-approval prior to purchasing and installing any equipment except for eligible HVAC Unitary projects with total incentives less than or equal to $5,000. After the application has been pre-approved by us, the customer will be notified in writing, assigned a project identification number, and given any specific instructions. The customer may then purchase and install the pre-approved equipment. For projects not requiring pre-approval, the applicant can purchase and install the qualifying equipment and submit a completed application form and supporting documentation within 60 days of the equipment’s invoice date.
A17: Questions If you have questions about the program, call 877-784-7234, email SCEnergyExperts@SC.DominionEnergyAccount.com, or visit www.DominionEnergy.com/ForYourBizSC. | K17: Email: | L17: SCEnergyExperts@SC.DominionEnergyAccount.com
K18: Step 3 Applications will be processed and we will notify the customer in writing when the review is complete and funds have been reserved. Upon receipt of program pre-approval, customers may order, purchase and install their energy efficient equipment. We will notify customers if an inspection of the facility is necessary prior to pre-approval. Eligible HVAC Unitary projects with total incentives less than or equal to $5,000 do not require pre-approval from us. The applicant may purchase and install the qualifying equipment and submit a completed application form and supporting documentation, including final invoice, within 60 days of the project invoice date. Any changes in the proposed equipment, quantities, or operating conditions must be approved by us prior to implementing.
K19: Step 4 For all projects requiring pre-approval, upon project completion, please return the signed customer acknowledgment at bottom of the pre-approval letter along with proof of purchase. Proof of purchase must include an itemized invoice for all Energy Conservation Measures (ECMs) that may qualify for the EnergyWise for Your Business incentive. Each individual product or model number must include the corresponding costs and quantity. We will notify customers if an inspection of the facility is necessary prior to final payment processing.

Sheet Project Information
A1: Fill in Blue and Orange Cells Only!
A2: PROJECT INFORMATION
A3: Application Date | K3: Expected Completion Date
A4: Company Name | K4: Electric Account #
A5: Street Address (of the facility) | K5: Customer Federal Tax ID
A6: City | H6: State | I6: SC | K6: Zip
A7: Building Type (select one)
L9: Please indicate "other" type:
A10: Project Type (select one )
A12: CUSTOMER CONTACT INFORMATION
A13: Mailing Address
A14: (where all correspondence will be mailed, including incentive check if payment is to the customer)
A15: City | H15: State | K15: Zip
A16: Contact Person | K16: Title
A17: Telephone No. | H17: Fax No. | K17: Email
A19: CONTRACTOR INFORMATION
A20: Company Name
A21: Street Address
A22: City | H22: State | K22: Zip
A23: Contact Person | K23: Title
A24: Telephone No. | H24: Fax No. | K24: Email
A26: Please indicate if the Customer or Contractor should be primary point of contact for this project. If another party should be primary point of contact, please indicate below:
A27: Customer Contractor Other (fill out below)
A28: PRIMARY POINT OF CONTACT (IF APPLICABLE)
A29: Company Name
A30: Street Address
A31: City | H31: State | K31: Zip
A32: Contact Person | K32: Title
A33: Telephone No. | H33: Fax No. | K33: Email
A35: PAYMENT INFORMATION
A36: Payment to:
A37: Federal Tax ID # (of recipient)
A38: Tax Status of Recipient (select one)
A40: Customer Name | K40: Title
A41: Customer Signature (if payment to contractor, Customer must type his/her name to the right and check the box below) | K41: Date (XX/XX/XXXX)
B42: I understand and intend that my electronic, PDF or facsimile signature be accepted and have the same force and effect as an original signature.
A43: Dominion Energy South Carolina, Inc. HVAC Application - Electronic Version | N43: Version | O43: ='Version Tracking'!C4 -> 14.2

Sheet Checklist & Acknowledgement
A1: Fill in Blue and Orange Cells Only!
A2: APPLICATION CHECKLIST
A3: For faster application processing, please include the following items with your application:
A4: Complete application (Project Information Tab, Customer Acknowledgment below and at least one Equipment tab.
A5: Electric account number (on Project Information tab). Attach copy of electric bill.
A6: IRS Form W-9 completed for payment recipient (available at www.irs.gov). Physical signature is required on W-9. If payment is to a contractor, customer's W-9 must also be provided.
A7: Supporting documentation to include manufacturer’s specification (cut) sheets for equipment included in this application.
A8: Customer signature and proof of purchase (contractor receipts), at time of project completion. See Terms and Conditions for invoicing requirements.
A9: Applications submitted for processing will be processed in the order in which they are received. Applicants will be notified as to their pre-approval status and/or any pre-inspection requirements within 10 business days from receipt of complete application. Applicants will be notified if post-installation inspections are required prior to final payment.
A11: CUSTOMER ACKNOWLEDGMENT
A12: For HVAC Unitary Projects Not Requiring Pre-Approval < $5,000 Incentive
A13: Authorized Representative | I13: Title
I14: Date (XX/XX/XXXX)
B15: By checking this box and typing my name, I hereby certify that all statements made on this application are correct to the best of my knowledge and that I have read and agree to the Terms and Conditions. Furthermore, I understand and intend that my electronic, PDF or facsimile signature be accepted and have the same force and effect as an original signature. Note: Application must include supporting documentation and copy of invoice that is dated within 60 days before application date.
A16: CUSTOMER ACKNOWLEDGMENT
A17: For All Projects Requiring Pre-Approval
A19: Authorized Representative | I19: Title
I20: Date (XX/XX/XXXX)
B21: By checking this box and typing my name, I hereby certify that all statements made on this application are correct to the best of my knowledge and that I have read and agree to the Terms and Conditions. Furthermore, I understand and intend that my electronic, PDF or facsimile signature be accepted and have the same force and effect as an original signature. Note: Upon completion of project, customer of record must sign and return the written pre-approval letter and provide invoices for all energy efficiency measures.
A22: Dominion Energy South Carolina, Inc. HVAC Application - Electronic Version 3.7 | L22: Version | M22: ='Version Tracking'!C4 -> 14.2

Sheet Terms and Conditions
A1: Dominion Energy South Carolina, Inc.
A2: TERMS AND CONDITIONS
A3: 1. Eligibility: EnergyWise for Your Business Program (“Program”) incentives are available to non-residential electric customers for the purchase and installation of qualifying energy conservation measures (ECMs) in the Dominion Energy South Carolina service territory, subject to these Terms and Conditions (T&Cs). The process of purchasing and installing ECMs for eligible Customers pursuant to the Program is referred to herein as a “Project” or “Projects”. Customers eligible for Rate 23 who have elected to opt out of Demand Side Management programs, by notifying us in writing using the Opt-Out form provided, are not eligible to participate. Dominion Energy South Carolina and our Program implementer (“Implementer”) (together, “We”) reserve the right to deny any application that may result in our exceeding its Program budget. Program incentives are limited, offered on a first-come/first-served basis, and are subject to Project and Customer eligibility and funds availability. For each Program year (December 1 – November 30), Program incentive payments are capped per Customer Federal tax ID number at $100,000 per Project type. 2. Project Types: The Program includes the following four Project types: Lighting Projects, HVAC/Motors Projects, Food Service and High Efficiency Equipment Projects, and Custom Projects. Lighting projects include Projects that use the Retrofit and New Construction Lighting worksheet. HVAC/Motors Projects include Projects listed on the HVAC Application including Unitary HVAC, Chillers, Window Film, or Variable Frequency Drives. Food Service and High Efficiency Equipment Projects include all cooking equipment and “plug load” equipment that is incentivized under the prescriptive Program. Restaurant cooking equipment, ice machines, vending machine and refrigeration controls, commercial washers/dryers, and lighting that may be included inside the aforementioned equipment are considered Food Service and High Efficiency Equipment Projects. Custom Projects are Projects that can demonstrate cost effective and lasting energy efficiency and do not fall under one of the aforementioned Project types. These Projects are “custom” tailored to the Customer for each Project and cannot receive a prescriptive incentive as the savings varies widely with each Project and technology. Strategic Energy Management, Building controls, Building Tune-ups, Whole Building Solutions, Technical Services, and new emerging technologies generally fall under this Project type. The above examples are provided for illustrative purposes only and may not be inclusive of all Projects. 3. Authorization, Program Changes, Suspension, or Cancellation: We may change the Program requirements, incentives or T&Cs, including suspending acceptance of applications or terminating the Program, at any time and without notice. In the event of a Program change, pre-approved applications will be processed to completion under the T&Cs in effect at time of pre-approval. Submission of a completed application does not entitle Customer to Program participation. For all Projects, entitlement to Program participation and our obligation to pay incentives may occur only after we have granted written authorization, which we may grant or not at its sole discretion. 4. Project Approval: Pre-approval is required for all projects except for eligible HVAC Unitary projects with total incentives less than or equal to $5,000. For Projects not requiring pre-approval, the customer may purchase and install the qualifying equipment and submit a completed application form, supporting documentation and invoice within 60 days of the equipment’s invoice date. For Projects requiring pre-approval, we reserve the right to inspect any Project prior to pre-approval. For Projects requiring pre-approval, no project-related ECMs may be ordered or installed prior to the date of our pre-approval. Violation of this prohibition will disqualify the ECM for incentives. Projects must be completed by the date listed on the pre-approval notification letter (within 180 calendar days for retrofit projects or one year for new construction projects). 5. Creditworthiness: An incentive payment is conditioned upon and subject to Customer maintaining its financial creditworthiness and keeping its account in good standing. At any time prior to an issuance of an incentive check, we may request financial information to support its financial due diligence procedures. Customer agrees to assist in this reasonable financial review. If we believe in good faith that the Customer’s account is not in good standing, or if creditworthiness of participant has been diminished, we may reject approval of an incentive payment. 6. Proof of Purchase: Prior to our verification of the ECM installation, Customer must provide copies of all invoices or other appropriate documentation that clearly verifies the costs of purchasing and installing the ECMs, including all material, labor, and equipment discounts. Invoices must indicate a verifiable breakout of all ECMs purchased for installation under the ECM incentives application, including model numbers and quantity. 7. Project Verification: We (or our Third-Party Evaluator “Evaluator”) may conduct an inspection of Customer’s facility to verify pre- and post-installation conditions or verify documentation prior to incentive payment at any time after receipt of an application. No warranty is expressed or implied by this verification. We are not obligated to pay any incentive until it has performed a satisfactory post-installation inspection. Should we determine that ECMs were not installed in accordance with the approved application, or if an unapproved ECM was installed, or if the installation was not consistent with generally accepted engineering/construction practices, changes may be required before payment is issued. Notwithstanding anything to the contrary, should we determine at any point before payment of the incentive that there has been significant deviation in the type, amount, cost or performance of the ECMs underlying this incentive commitment that were set forth in the Program application and pre-approved, we retain the right to revoke this commitment or reduce the final incentive amount accordingly. We reserve this right despite a satisfactory post-installation inspection. Customer agrees to provide prompt notice to us of any significant deviation in the type, amount, cost or performance of the ECMs underlying this incentive commitment that were set forth in the Program application and pre-approved by us. | B3: 8. Customer Tax Obligation: Customer or Customer’s designated contractor is responsible for declaring and paying any and all applicable federal, state, and local taxes that may be owed on any incentive payment. Neither Dominion Energy South Carolina, Inc. nor any of its subsidiaries shall be liable for any federal, state, and local taxes that may be owed on or as a result of any incentive payment. The party receiving the incentive payment (Customer or Contractor) must complete IRS Form W-9 and submit it to us with the incentive application materials. If payment is to a contractor, customer's W-9 must also be provided. 9. Compliance: Customer is responsible for obtaining any and all necessary licenses and permits related to the installation of ECMs. Customer also agrees to comply with all federal, state, and local laws, codes, and regulations related to the installation and disposal of all equipment. 10. Removal of Equipment: Customer agrees to remove and dispose of the equipment being replaced by the ECMs in accordance with all legal requirements. Customer agrees not to re-install any of this equipment in our service territory or transfer it to any other party for such installation. 11. Replacement of Failed Equipment: Customers who install ECMs are expected to replace any of the ECMs that fail with similar or superior energy savings equipment at Customer’s expense. 12. Evaluation Follow-up Visits: With advance notice, we reserve the right to make or to have its contractor(s) make follow-up visits to Customer facilities during the 36 months following completion of the project to provide us with an opportunity to review the operation of the ECMs for Program evaluation purposes. Customer agrees to cooperate with this effort. 13. Contractor Selection: Customer may select any contractor to perform the work contemplated by the application, even after the application is pre-approved by us. However, we reserve the right, in its sole discretion, to prohibit specific contractors from Program participation. 14. No Warranties: Dominion Energy South Carolina, Inc. does not endorse, guarantee, or warrant any particular manufacturer or product and we provide no warranties, express or implied, for any products or services, and herein specifically disclaims any such guarantees or warranties. We are not liable or responsible for any act or omission of any contractor hired by Customer. Customer’s reliance on warranties is limited to any warranties that may arise from, or be provided by contractors, vendors, etc. Customer acknowledges that neither Dominion Energy South Carolina, Inc. nor any of its consultants are responsible for ensuring that the design, engineering, and construction of the facility or installation of the ECMs are proper or comply with any particular laws (including patent laws), codes, regulations, or industry standards. We make no representations of any kind regarding the results to be achieved by the ECMs or the adequacy or safety of such measures. 15. Assumption of Risk and Limitation of Liability: Customer assumes and acknowledges all risks arising from its participation in the Program including but not limited to exposure to the novel coronavirus (“COVID-19”) and releases and discharges Dominion Energy, Inc., Dominion Energy South Carolina, its Implementer, Evaluator, and their respective officers, directors, employees and agents from any liability related thereto. Our sole obligation is limited to paying the properly qualified rebates specified herein. Neither Dominion Energy South Carolina, Inc., any of its subsidiaries, nor its Implementer or Evaluator shall be liable to Customer or any other party for any special, indirect, consequential, or incidental damages, regardless of the theory of recovery, caused by or arising from any activities associated with this Program. 16. Obligations between the Parties: Customer acknowledges that any contractor selected by Customer is not an agent, contractor, or subcontractor of Dominion Energy South Carolina and is an independent contractor engaged by Customer, and that we do not manage or control the contractor’s performance. We shall have no obligation to maintain, remove, or perform any work whatsoever on the ECMs installed. We shall have no liability for a contractor’s failure to perform, for failure of the energy savings measures to function, for any damage to Customer’s premises caused by the contractor, or for any and all damages to property or injuries to persons caused by or associated with the energy savings measures. 17. Miscellaneous: These T&Cs and this application, of which these T&Cs are an integral part, constitute the entire agreement between the parties and supersede all other communications, representations, and understandings.
B7: ="Version " & 'Version Tracking'!C4 -> Version 14.2

Sheet Equipment Input Instructions
B5: HVAC Application - Electronic Version
D7: Copyright © 2015 ICF Resources, LLC, All Rights Reserved. Do not copy, distribute or quote without ICF’s written permission.
D14: *If an error occurs when using buttons above, manually navigate to appropriate tab
C16: Instructions
C17: The following tabs are available Equipment tabs for the HVAC Application
C18: ▪ HVAC Unitary - Unitary and split systems, PTACs and PTHPs
C19: ▪ Window Film - Window glazing on commercial buildings
C20: ▪ HVAC Chillers - Single speed air-cooled, single speed water-cooled and variable speed water cooled
C21: ▪ Cool Roof - Reflective roof systems
C22: ▪ VFDs - For HVAC equipment
C24: 1. Read technical requirements on each specific Equipment tab.
C25: 2. Enter make, model, quantity and other specific equipment specifications of equipment being applied for in shaded areas of applicable Equipment tab(s)
C26: 3. Measure Code Summary tab will be automatically populated based on Equipment tab entries.
C27: 4. Application packages must be submitted by email.
D28: Email Address:
D29: SCEnergyExperts@SC.DominionEnergyAccount.com
H31: ="Version " & 'Version Tracking'!C4 -> Version 14.2

Sheet HVAC Unitary
B4: C&I Prescriptive - Unitary HVAC
B5: ="Version # "&'Version Tracking'!C4 -> Version # 14.2
A6: Fill in Blue Cells Only!
A7: HVAC UNITARY TECHNICAL REQUIREMENTS
A8: § Unitary and split system cooling equipment must meet Air-Conditioning and Refrigeration Institute (ARI) standards (210/240, 320, or 340/360), be certified by a Nationally Recognized Testing Laboratory (NRTL), and use a minimum ozone-depleting refrigerant (e.g., HCFC or HFC). § Electric heat pumps, single packaged units, and split systems are eligible systems. § Qualifying split systems must have both a new condenser and a new coil that meet ARI specifications, and matched system performance (condenser and coil) must meet or exceed the minimum SEER/EER/COP outlined in Table 1. § Units being installed must meet all minimum requirements listed in Table 2. § In 2023, new efficiency rating systems were introduced for A/C and Heat Pump systems less than 65,000 BTUh in size. Both efficiency systems minimum qualifying efficiency ratings are listed below where applicable. When entering efficiency ratings for these units below, please indicate in column H, which rating system is being provided. The two rating systems are: "EER / SEER / HSPF" and "EER2 / SEER2 / HSPF2".
Q9: Summary Table
Q10: Total kWh | R10: Total Summer Coincident Peak (kW) | S10: Total Incentive
Q11: =SUM(Q23:Q32) -> 0 | R11: =SUM(R23:R32) -> 0 | S11: =SUM(S23:S32) -> 0
B16: Input Cells
C17: Data input allowed in shaded cells only. | L17: *If print button malfunctions,
Q18: Hide these columns for public facing document
D19: Unitary HVAC
B20: Line Item | C20: Building Type | D20: Device Type | E20: Manufacturer | F20: Model # | G20: Size (tons) | H20: AHRI Cooling Capacity (BTUh) | I20: AHRI Heating Capacity (BTUh) | J20: If AC or HP unit is nominally ≤ 65,000 BTUh, indicate if efficiencies entered are EER / SEER / HSPF or EER2 / SEER2 / HSPF2 | K20: Unit Efficiency | N20: Quantity | O20: Incentive Requested | Q20: Total kWh Saved | R20: Summer Coincident Peak kW Saved | S20: Total Incentive | T20: Incentive per Ton or unit | U20: Unit Qualifies
K21: EER or EER2 | L21: SEER2 or IEER | M21: HSPF2 or COP
B22: Ex. | C22: Office | D22: Split System Heat Pump | E22: klanvbk | F22: 32160 | G22: 5 | H22: 61000 | I22: 56000 | J22: EER2 / SEER2 / HSPF2 | K22: 12.5 | L22: 16 | M22: 8 | N22: 1 | O22: =S22 -> 0
B23: 1 | O23: =IFERROR(S23*U23,0) -> 0 | Q23: =HVACCalcs!AN5 -> 0 | R23: =HVACCalcs!AO5 -> 0 | S23: =IFERROR(IF(VLOOKUP(D23,Validation!$C$3:$G$9,5,FALSE)="Unit",N23*T23,N23*T23*G23),0) -> 0 | T23: =HVACCalcs!AD5 -> 0 | U23: =IF(HVACCalcs!AC5="Yes",1,0) -> 0
B24: 2 | O24: =IFERROR(S24*U24,0) -> 0 | Q24: =HVACCalcs!AN6 -> 0 | R24: =HVACCalcs!AO6 -> 0 | S24: =IFERROR(IF(VLOOKUP(D24,Validation!$C$3:$G$9,5,FALSE)="Unit",N24*T24,N24*T24*G24),0) -> 0 | T24: =HVACCalcs!AD6 -> 0 | U24: =IF(HVACCalcs!AC6="Yes",1,0) -> 0
B25: 3 | O25: 0 | Q25: =HVACCalcs!AN7 -> 0 | R25: =HVACCalcs!AO7 -> 0 | S25: =IFERROR(IF(VLOOKUP(D25,Validation!$C$3:$G$9,5,FALSE)="Unit",N25*T25,N25*T25*G25),0) -> 0 | T25: =HVACCalcs!AD7 -> 0 | U25: =IF(HVACCalcs!AC7="Yes",1,0) -> 0
B26: 4 | O26: 0 | Q26: =HVACCalcs!AN8 -> 0 | R26: =HVACCalcs!AO8 -> 0 | S26: =IFERROR(IF(VLOOKUP(D26,Validation!$C$3:$G$9,5,FALSE)="Unit",N26*T26,N26*T26*G26),0) -> 0 | T26: =HVACCalcs!AD8 -> 0 | U26: =IF(HVACCalcs!AC8="Yes",1,0) -> 0
B27: 5 | O27: 0 | Q27: =HVACCalcs!AN9 -> 0 | R27: =HVACCalcs!AO9 -> 0 | S27: =IFERROR(IF(VLOOKUP(D27,Validation!$C$3:$G$9,5,FALSE)="Unit",N27*T27,N27*T27*G27),0) -> 0 | T27: =HVACCalcs!AD9 -> 0 | U27: =IF(HVACCalcs!AC9="Yes",1,0) -> 0
B28: 6 | O28: 0 | Q28: =HVACCalcs!AN10 -> 0 | R28: =HVACCalcs!AO10 -> 0 | S28: =IFERROR(IF(VLOOKUP(D28,Validation!$C$3:$G$9,5,FALSE)="Unit",N28*T28,N28*T28*G28),0) -> 0 | T28: =HVACCalcs!AD10 -> 0 | U28: =IF(HVACCalcs!AC10="Yes",1,0) -> 0
B29: 7 | O29: 0 | Q29: =HVACCalcs!AN11 -> 0 | R29: =HVACCalcs!AO11 -> 0 | S29: =IFERROR(IF(VLOOKUP(D29,Validation!$C$3:$G$9,5,FALSE)="Unit",N29*T29,N29*T29*G29),0) -> 0 | T29: =HVACCalcs!AD11 -> 0 | U29: =IF(HVACCalcs!AC11="Yes",1,0) -> 0
B30: 8 | O30: 0 | Q30: =HVACCalcs!AN12 -> 0 | R30: =HVACCalcs!AO12 -> 0 | S30: =IFERROR(IF(VLOOKUP(D30,Validation!$C$3:$G$9,5,FALSE)="Unit",N30*T30,N30*T30*G30),0) -> 0 | T30: =HVACCalcs!AD12 -> 0 | U30: =IF(HVACCalcs!AC12="Yes",1,0) -> 0
B31: 9 | O31: 0 | Q31: =HVACCalcs!AN13 -> 0 | R31: =HVACCalcs!AO13 -> 0 | S31: =IFERROR(IF(VLOOKUP(D31,Validation!$C$3:$G$9,5,FALSE)="Unit",N31*T31,N31*T31*G31),0) -> 0 | T31: =HVACCalcs!AD13 -> 0 | U31: =IF(HVACCalcs!AC13="Yes",1,0) -> 0
B32: 10 | O32: 0 | Q32: =HVACCalcs!AN14 -> 0 | R32: =HVACCalcs!AO14 -> 0 | S32: =IFERROR(IF(VLOOKUP(D32,Validation!$C$3:$G$9,5,FALSE)="Unit",N32*T32,N32*T32*G32),0) -> 0 | T32: =HVACCalcs!AD14 -> 0 | U32: =IF(HVACCalcs!AC14="Yes",1,0) -> 0
M33: =IFERROR(IF('Project Information'!$L$6="","Please fill in zip code in cell L6 on Project Information tab",IF(OR(VLOOKUP('Project Information'!$L$6,Validation!$B$115:$D$514,3,FALSE)="Charleston",VLOOKUP('Project Information'!$L$6,Validation!$B$115:$D$514,3,FALSE)="Columbia"),1)),"Ineligible zip code. Please check cell L6 on Project Information tab") -> Please fill in zip code in cell L6 on Project Information tab
B36: TABLE 2: QUALIFYING EFFICIENCY AND INCENTIVES
B37: Size Category (tons) | E37: Sub-Category | H37: Tier 1 Minimum Requirement | J37: Tier 1 Incentive | K37: Tier 2 Minimum Requirement | M37: Tier 2 Incentive
B38: Air Conditioners (Cooling Mode) - Unitary and Split Systems
B39: < 3.75 | E39: Split System | H39: 16.0 SEER or 15.2 SEER2 | J39: $75/ton | K39: 17.0 SEER or 16.2 SEER2 | M39: $100/ton
B40: ≥ 3.75 and < 5.4 | E40: Split System | H40: 16.0 SEER or 15.2 SEER2 | K40: 17.0 SEER or 16.2 SEER2
B41: < 5.4 | E41: Single Package | H41: 15.0 SEER or 14.3 SEER2 | K41: 16.0 SEER or 15.2 SEER2
B42: ≥ 5.4 and < 11.25 | E42: Split System and Single Package | H42: 15.3 IEER | J42: $60/ton | K42: 15.8 IEER | M42: $75/ton
B43: ≥ 11.25 and < 20 | E43: Split System and Single Package | H43: 14.7 IEER | J43: $50/ton | K43: 15.10 IEER | M43: $70/ton
B44: ≥ 20 and < 63.3 | E44: Split System and Single Package | H44: 13.6 IEER | J44: $40/ton | K44: 14.10 IEER | M44: $60/ton
B45: ≥ 63.3 | E45: Split System and Single Package | H45: 11.6 IEER | J45: $15/ton | K45: 12.0 IEER | M45: $20/ton
B46: Air Source Heat Pumps (Cooling Mode) - Unitary and Split Systems
B47: < 5.4 | E47: Split System | H47: 16.0 SEER and 9.1 HSPF 15.2 SEER2 and 7.8 HSPF2 | J47: $100/ton | K47: 17.0 SEER and 9.4 HSPF 16.2 SEER2 and 8.0 HSPF2 | M47: $125/ton
E48: Single Package | H48: 15.0 SEER and 8.3 HSPF 14.3 SEER2 and 7 HSPF2 | J48: $100/ton | K48: 16.0 SEER and 8.5 HSPF 15.2 SEER2 and 7.2 HSPF2 | M48: $125/ton
B49: ≥ 5.4 and < 11.25 | E49: Split System and Single Package | H49: 15.3 IEER | J49: $75/ton | K49: 15.8 IEER | M49: $100/ton
B50: ≥ 11.25 and < 20 | E50: Split System and Single Package | H50: 14.7 IEER | J50: $55/ton | K50: 15.10 IEER | M50: $80/ton
B51: ≥ 20 | E51: Split System and Single Package | H51: 13.6 IEER | J51: $50/ton | K51: 14.10 IEER | M51: $75/ton
B52: Packaged Terminal Air Conditioner (PTAC)
B53: < 0.75 | E53: Single Package | H53: 12.0 EER | J53: $20/unit | K53: N/A | M53: N/A
B54: ≥ 0.75 and < 1.0 | H54: 11.5 EER | J54: $30/unit | K54: N/A | M54: N/A
B55: ≥ 1.0 | H55: 10.5 EER | J55: $40/unit | K55: N/A | M55: N/A
B56: Packaged Terminal Heat Pump (PTHP)
B57: < 0.75 | E57: Single Package | H57: 12.0 EER and 3.3 COP | J57: $40/unit | K57: N/A | M57: N/A
B58: ≥ 0.75 and < 1.0 | H58: 11.5 EER and 3.2 COP | J58: $50/unit | K58: N/A | M58: N/A
B59: ≥ 1.0 | H59: 10.3 EER and 3.2 COP | J59: $60/unit | K59: N/A | M59: N/A
B60: Note: Tons are based on 12,000 BTUH net output per ton.
N61: ="Version " & 'Version Tracking'!C4 -> Version 14.2

Sheet HVAC Unitary-old (hidden)
A1: Fill in Blue Cells Only!
A2: HVAC UNITARY TECHNICAL REQUIREMENTS
A3: § Unitary and split system cooling equipment must meet Air-Conditioning and Refrigeration Institute (ARI) standards (210/240, 320, or 340/360), be certified by a Nationally Recognized Testing Laboratory (NRTL), and use a minimum ozone-depleting refrigerant (e.g., HCFC or HFC). § Electric heat pumps, single packaged units, and split systems are eligible systems. § Qualifying split systems must have both a new condenser and a new coil that meet ARI specifications, and matched system performance (condenser and coil) must meet or exceed the minimum SEER/EER/COP outlined in Table 2. § Units being installed must meet both EER and IEER efficiency values to fulfill the requirements.
A4: TABLE 1: HVAC EQUIPMENT INFORMATION
A5: S = Split A/C | B5: U = Unitary A/C | D5: H = Split or Unitary Heat Pump | G5: P = PTAC | I5: T = PTHP | K5: W = Water and Evaporative
A7: Equipment Type | B7: Manufacturer | D7: Model # | E7: Unit Size (Tons) | F7: Unit Efficiency | J7: Quantity | K7: Incentive $ / Ton | M7: Subtotal Incentive
F8: SEER | G8: EER | H8: IEER | I8: COP | V8: Tier 1 | W8: Tier 2
A9: S | B9: 12 | D9: 12 | E9: 5 | G9: 18 | H9: 18 | J9: 1 | K9: =IF(OR(AND(W9="Yes", E9<63.3)),75,IF(OR(AND(W9="No",V9="Yes", E9<63.3)),50,IF(OR(AND(W9="Yes", E9>=63.3)),20,IF(OR(AND(W9="No", V9="Yes", E9>=63.3)),15,IF(OR(AND(W9="N/A",V9="Yes",A9="W")),60,IF(OR(AND(W9="N/A",V9="Yes",A9="P",E9<0.75)),20,IF(OR(AND(W9="N/A",V9="Yes",A9="P",E9>=0.75,E9<1)),25,IF(OR(AND(W9="N/A",V9="Yes",A9="P",E9>=1)),35,IF(OR(AND(W9="N/A",V9="Yes",A9="T",E9<0.75)),20,IF(OR(AND(W9="N/A",V9="Yes",A9="T",E9>=0.75,E9<1)),25,IF(OR(AND(W9="N/A",V9="Yes",A9="T",E9>=1)),30,0))))))))))) -> 0 | M9: =IF(OR(AND(A9="P")),J9*K9,IF(OR(AND(A9="T")),J9*K9,E9*J9*K9)) -> 0 | U9: S | V9: =IF(OR(AND(A9="S", E9<5.4, F9>=15, G9>=12),AND(A9="U", E9<5.4, F9>=15, G9>=11.6),AND(A9="H", E9<5.4, F9>=15, G9>=14.3),AND(A9="S", E9>=5.4, E9<11.25, G9>=12, H9>=13.4),AND(A9="U", E9>=5.4, E9<11.25, G9>=12, H9>=13.4),AND(A9="H", E9>=5.4, E9<11.25, G9>=12, H9>=13.4),AND(A9="S",E9>=11.25,E9<20,G9>=11.8,H9>=12.8),AND(A9="U",E9>=11.25,E9<20,G9>=11.8,H9>=12.8),AND(A9="H",E9>=11.25,E9<20,G9>=11.8,H9>=12.8),AND(A9="S", E9>=20, E9<63.3, G9>=10.6, H9>=12.1),AND(A9="U", E9>=20, E9<63.3, G9>=10.6, H9>=12.1),AND(A9="H", E9>=20, E9<63.3, G9>=10.6, H9>=12.1),AND(A9="S", E9>=63.3, G9>=10.3, H9>=12),AND(A9="U", E9>=63.3, G9>=10.3, H9>=12),AND(A9="H", E9>=63.3, G9>=10.3, H9>=12),AND(A9="W", E9<5.4,G9>=14,H9>=13.4),AND(A9="W",E9>=5.4,E9<11.25,G9>=12.8,H9>=13.1),AND(A9="W",E9>=11.25,G9>=12,H9>=12.4),AND(A9="P", E9<0.75, G9>=12),AND(A9="P", E9>=0.75, E9<1, G9>=11.5),AND(A9="P", E9>=1, G9>=10.5),AND(A9="T", E9<0.75, G9>=12, I9>=3.3),AND(A9="T", E9>=0.75, E9<1, G9>=11.5, I9>=3.2),AND(A9="T", E9>=1, G9>=10.3, I9>=3.2)),"Yes","No") -> No | W9: =IF(OR(AND(A9="S", E9<5.4, F9>=16, G9>=12.5),AND(A9="U", E9<5.4, F9>=16, G9>=12),AND(A9="H", E9<5.4, F9>=16, G9>=14.6),AND(A9="S", E9>=5.4, E9<11.25, G9>=12, H9>=13.8),AND(A9="U", E9>=5.4, E9<11.25, G9>=12, H9>=13.8),AND(A9="H", E9>=5.4, E9<11.25, G9>=12, H9>=13.8),AND(A9="S",E9>=11.25,E9<20,G9>=11.8,H9>=13.2),AND(A9="U",E9>=11.25,E9<20,G9>=11.8,H9>=13.2),AND(A9="H",E9>=11.25,E9<20,G9>=11.8,H9>=13.2),AND(A9="S", E9>=20, E9<63.3, G9>=10.6, H9>=12.4),AND(A9="U", E9>=20, E9<63.3, G9>=10.6, H9>=12.4),AND(A9="H", E9>=20, E9<63.3, G9>=10.6, H9>=12.4),AND(A9="S", E9>=63.3, G9>=10.3, H9>=12.3),AND(A9="U", E9>=63.3, G9>=10.3, H9>=12.3),AND(A9="H", E9>=63.3, G9>=10.3, H9>=12.3)),"Yes",IF(OR(AND(A9="W"),AND(A9="P"),AND(A9="T")),"N/A","No")) -> No | Y9: =IF(OR(A9=#REF!,'HVAC Unitary'!D23=#REF!),'HVAC Unitary'!T23*'HVAC Unitary'!N23,R23*'HVAC Unitary'!N23*'HVAC Unitary'!G23) -> 
A10: U | B10: 2 | D10: 2 | E10: 2 | F10: 15 | G10: 15 | J10: 2 | K10: =IF(OR(AND(W10="Yes", E10<63.3)),75,IF(OR(AND(W10="No",V10="Yes", E10<63.3)),50,IF(OR(AND(W10="Yes", E10>=63.3)),20,IF(OR(AND(W10="No", V10="Yes", E10>=63.3)),15,IF(OR(AND(W10="N/A",V10="Yes",A10="W")),60,IF(OR(AND(W10="N/A",V10="Yes",A10="P",E10<0.75)),20,IF(OR(AND(W10="N/A",V10="Yes",A10="P",E10>=0.75,E10<1)),25,IF(OR(AND(W10="N/A",V10="Yes",A10="P",E10>=1)),35,IF(OR(AND(W10="N/A",V10="Yes",A10="T",E10<0.75)),20,IF(OR(AND(W10="N/A",V10="Yes",A10="T",E10>=0.75,E10<1)),25,IF(OR(AND(W10="N/A",V10="Yes",A10="T",E10>=1)),30,0))))))))))) -> 50 | M10: =IF(OR(AND(A10="P")),J10*K10,IF(OR(AND(A10="T")),J10*K10,E10*J10*K10)) -> 200 | U10: U | V10: =IF(OR(AND(A10="S", E10<5.4, F10>=15, G10>=12),AND(A10="U", E10<5.4, F10>=15, G10>=11.6),AND(A10="H", E10<5.4, F10>=15, G10>=14.3),AND(A10="S", E10>=5.4, E10<11.25, G10>=12, H10>=13.4),AND(A10="U", E10>=5.4, E10<11.25, G10>=12, H10>=13.4),AND(A10="H", E10>=5.4, E10<11.25, G10>=12, H10>=13.4),AND(A10="S",E10>=11.25,E10<20,G10>=11.8,H10>=12.8),AND(A10="U",E10>=11.25,E10<20,G10>=11.8,H10>=12.8),AND(A10="H",E10>=11.25,E10<20,G10>=11.8,H10>=12.8),AND(A10="S", E10>=20, E10<63.3, G10>=10.6, H10>=12.1),AND(A10="U", E10>=20, E10<63.3, G10>=10.6, H10>=12.1),AND(A10="H", E10>=20, E10<63.3, G10>=10.6, H10>=12.1),AND(A10="S", E10>=63.3, G10>=10.3, H10>=12),AND(A10="U", E10>=63.3, G10>=10.3, H10>=12),AND(A10="H", E10>=63.3, G10>=10.3, H10>=12),AND(A10="W", E10<5.4,G10>=14,H10>=13.4),AND(A10="W",E10>=5.4,E10<11.25,G10>=12.8,H10>=13.1),AND(A10="W",E10>=11.25,G10>=12,H10>=12.4),AND(A10="P", E10<0.75, G10>=12),AND(A10="P", E10>=0.75, E10<1, G10>=11.5),AND(A10="P", E10>=1, G10>=10.5),AND(A10="T", E10<0.75, G10>=12, I10>=3.3),AND(A10="T", E10>=0.75, E10<1, G10>=11.5, I10>=3.2),AND(A10="T", E10>=1, G10>=10.3, I10>=3.2)),"Yes","No") -> Yes | W10: =IF(OR(AND(A10="S", E10<5.4, F10>=16, G10>=12.5),AND(A10="U", E10<5.4, F10>=16, G10>=12),AND(A10="H", E10<5.4, F10>=16, G10>=14.6),AND(A10="S", E10>=5.4, E10<11.25, G10>=12, H10>=13.8),AND(A10="U", E10>=5.4, E10<11.25, G10>=12, H10>=13.8),AND(A10="H", E10>=5.4, E10<11.25, G10>=12, H10>=13.8),AND(A10="S",E10>=11.25,E10<20,G10>=11.8,H10>=13.2),AND(A10="U",E10>=11.25,E10<20,G10>=11.8,H10>=13.2),AND(A10="H",E10>=11.25,E10<20,G10>=11.8,H10>=13.2),AND(A10="S", E10>=20, E10<63.3, G10>=10.6, H10>=12.4),AND(A10="U", E10>=20, E10<63.3, G10>=10.6, H10>=12.4),AND(A10="H", E10>=20, E10<63.3, G10>=10.6, H10>=12.4),AND(A10="S", E10>=63.3, G10>=10.3, H10>=12.3),AND(A10="U", E10>=63.3, G10>=10.3, H10>=12.3),AND(A10="H", E10>=63.3, G10>=10.3, H10>=12.3)),"Yes",IF(OR(AND(A10="W"),AND(A10="P"),AND(A10="T")),"N/A","No")) -> No
A11: P | B11: 2 | D11: 2 | E11: 2 | F11: 15 | G11: 15 | J11: 1 | K11: 35 | M11: 35 | U11: H | V11: Yes | W11: N/A
A12: T | B12: 1 | D12: 1 | E12: 3 | F12: 15 | G12: 15 | I12: 8 | J12: 1 | K12: 30 | M12: 30 | U12: P | V12: Yes | W12: N/A
A13: H | B13: 1 | D13: 1 | E13: 3 | F13: 15 | G13: 15 | I13: 8 | J13: 1 | K13: 50 | M13: 150 | U13: T | V13: Yes | W13: No
K14: 0 | M14: 0 | V14: No | W14: No
K15: 0 | M15: 0 | V15: No | W15: No
K16: 0 | M16: 0 | V16: No | W16: No
K17: 0 | M17: 0 | V17: No | W17: No
K18: 0 | M18: 0 | V18: No | W18: No
K19: 0 | M19: 0 | V19: No | W19: No
K20: 0 | M20: 0 | V20: No | W20: No
K21: 0 | M21: 0 | V21: No | W21: No
K22: 0 | M22: 0 | V22: No | W22: No
K23: 0 | M23: 0 | V23: No | W23: No
A24: Attach additional worksheets if needed | K24: Total Requested Incentive | M24: =SUM(M9:M23) -> 415
A27: TABLE 2: QUALIFYING EFFICIENCY AND INCENTIVES
A28: Size Category (tons) | D28: Sub-Category | G28: Tier 1 Minimum Requirement | I28: Tier 1 Incentive | J28: Tier 2 Minimum Requirement | L28: Tier 2 Incentive
A29: Air Conditioners (Cooling Mode) - Unitary and Split Systems
A30: < 5.4 | D30: Split System | G30: 15.0 SEER and 12.0 EER | I30: $75/ton | J30: 16.0 SEER and 12.5 EER | L30: $100/ton
D31: Single Package | G31: 15.0 SEER and 11.6 EER | J31: 16.0 SEER and 12.0 EER
A32: ≥ 5.4 and < 11.25 | D32: Split System and Single Package | G32: 12.0 EER and 13.4 IEER | I32: $60/ton | J32: 12.0 EER and 13.8 IEER | L32: $75/ton
A33: ≥ 11.25 and < 20 | D33: Split System and Single Package | G33: 11.8 EER and 12.8 IEER | I33: $50/ton | J33: 11.8 EER and 13.2 IEER | L33: $70/ton
A34: ≥ 20 and < 63.3 | D34: Split System and Single Package | G34: 10.6 EER and 12.1 IEER | I34: $40/ton | J34: 10.6 EER and 12.4 IEER | L34: $60/ton
A35: ≥ 63.3 | D35: Split System and Single Package | G35: 10.3 EER and 12.0 IEER | I35: $15/ton | J35: 10.3 EER and 12.3 IEER | L35: $20/ton
A36: Air Source Heat Pumps (Cooling Mode) - Unitary and Split Systems
A37: < 5.4 | D37: Split System and Single Package | G37: 15.0 SEER and 14.3 EER | I37: $100/ton | J37: 16.0 SEER and 14.6 EER | L37: $125/ton
A38: ≥ 5.4 and < 11.25 | D38: Split System and Single Package | G38: 12.0 EER and 13.4 IEER | I38: $75/ton | J38: 12.0 EER and 13.8 IEER | L38: $100/ton
A39: ≥ 11.25 and < 20 | D39: Split System and Single Package | G39: 11.8 EER and 12.8 IEER | I39: $55/ton | J39: 11.8 EER and 13.2 IEER | L39: $80/ton
A40: ≥ 20 and < 63.3 | D40: Split System and Single Package | G40: 10.6 EER and 12.1 IEER | I40: $50/ton | J40: 10.6 EER and 12.4 IEER | L40: $75/ton
A41: ≥ 63.3 | D41: Split System and Single Package | G41: 10.3 EER and 12.0 IEER | I41: $20/ton | J41: 10.3 EER and 12.3 IEER | L41: $25/ton
A42: Packaged Terminal Air Conditioner (PTAC)
A43: < 0.75 | D43: Single Package | G43: 12.0 EER | I43: $20/unit | J43: N/A | L43: N/A
A44: ≥ 0.75 and < 1.0 | G44: 11.5 EER | I44: $30/unit | J44: N/A | L44: N/A
A45: ≥ 1.0 | G45: 10.5 EER | I45: $40/unit | J45: N/A | L45: N/A
A46: Packaged Terminal Heat Pump (PTHP)
A47: < 0.75 | D47: Single Package | G47: 12.0 EER and 3.3 COP | I47: $40/unit | J47: N/A | L47: N/A
A48: ≥ 0.75 and < 1.0 | G48: 11.5 EER and 3.2 COP | I48: $50/unit | J48: N/A | L48: N/A
A49: ≥ 1.0 | G49: 10.3 EER and 3.2 COP | I49: $60/unit | J49: N/A | L49: N/A
A50: Note: Tons are based on 12,000 BTUH net output per ton.
M51: ="Version " & 'Version Tracking'!C4 -> Version 14.2

Sheet HVACCalcs (hidden)
B2: Proposed Unit Tier Qualification | M2: 2 | N2: 3 | O2: 4
B3: Input sheet row | C3: Device Type | D3: System Type | E3: System Type | F3: Unit Tons | G3: Nominal BTUh | H3: BTUh Cooling | I3: BTUh Heating | J3: Size Category | K3: Rating System | L3: Concat | M3: AC/HP Full Load Lookup Reference | N3: AC/HP Full Load Lookup Reference | O3: AC/HP Full Load Lookup Reference | P3: Proposed Unit Efficiencies | S3: Baseline Efficiencies | V3: Tier 1 required efficiency | Y3: Tier 2 required efficiency | AB3: Tier Achieved | AC3: Unit Qualifies | AD3: Incentive/ton or unit for PTAC/HP | AE3: Quantity | AF3: Total Incentive | AG3: Building Type | AH3: EFLHc | AI3: EFLHh | AJ3: kWh Savings/ton or unit | AM3: kW Savings/ton or unit
P4: EER | Q4: Part Load | R4: COP | S4: Full Load | T4: Part Load | U4: COP | V4: Full Load | W4: Part Load | X4: COP | Y4: Full Load | Z4: Part Load | AA4: COP | AJ4: Cooling Energy Savings | AK4: Heating Energy Savings | AL4: Combined Energy Savings | AM4: Summer Peak Savings | AN4: Total kWh Savings | AO4: Summer Peak Coincidence kW Savings
B5: 1 | C5: ='HVAC Unitary'!D23 -> 0 | D5: =IFERROR(VLOOKUP(C5,Validation!$C$3:$E$9,3,FALSE),"") ->  | E5: =IFERROR(VLOOKUP(C5,Validation!$C$3:$F$9,4,FALSE),"") ->  | F5: ='HVAC Unitary'!G23 -> 0 | G5: =F5*12000 -> 0 | H5: ='HVAC Unitary'!H23 -> 0 | I5: ='HVAC Unitary'!I23 -> 0 | J5: =VLOOKUP(G5,INDIRECT(D5&"Baseline"),1) ->  | K5: =IF('HVAC Unitary'!J23="","",IF('HVAC Unitary'!J23="EER / SEER / HSPF","Old","New")) ->  | L5: =_xlfn.CONCAT(D5,J5,E5,K5) ->  | M5: =IFERROR(IF(OR($D5="AC",$D5="HP"),VLOOKUP($L5,$F$23:$I$70,M$2,FALSE),0),0) -> 0 | N5: 0 | O5: 0 | P5: ='HVAC Unitary'!K23 -> 0 | Q5: ='HVAC Unitary'!L23 -> 0 | R5: =IF(G5>65000,'HVAC Unitary'!M23,'HVAC Unitary'!M23/IF(D5="PTHP",1,3.413)) -> 0 | S5: =IF($D5="","",IF($D5="PTAC",VLOOKUP($G5,PTACBaseline,3)+VLOOKUP($G5,PTACBaseline,4)*$G5/1000,IF($D5="PTHP",VLOOKUP($G5,PTHPBaseline,3)+VLOOKUP($G5,PTHPBaseline,4)*$G5/1000,IF($D5="AC",VLOOKUP($G5,ACBaseline,M5),IF($D5="HP",VLOOKUP($G5,HPBaseline,M5),""))))) ->  | T5: =IF($D5="","",IF($D5="PTAC",0,IF($D5="PTHP",0,IF($D5="AC",VLOOKUP($G5,ACBaseline,N5),IF($D5="HP",VLOOKUP($G5,HPBaseline,N5),""))))) ->  | U5: =IF($D5="","",IF($D5="PTAC",0,IF($D5="PTHP",VLOOKUP($G5,PTHPBaseline,6)+VLOOKUP($G5,PTHPBaseline,7)*$G5/1000,IF($D5="AC",0,IF($D5="HP",VLOOKUP($G5,HPBaseline,O5),""))))) ->  | V5: =IF($D5="","",IF($D5="PTAC",VLOOKUP($G5,PTACMinEffT1,3),IF($D5="PTHP",VLOOKUP($G5,PTHPMinEffT1,3),IF($D5="AC",VLOOKUP($G5,ACMinEffT1,M5),IF($D5="HP",VLOOKUP($G5,HPMinEffT1,M5),""))))) ->  | W5: =IF($D5="","",IF($D5="PTAC",0,IF($D5="PTHP",0,IF($D5="AC",VLOOKUP($G5,ACMinEffT1,N5),IF($D5="HP",VLOOKUP($G5,HPMinEffT1,N5),""))))) ->  | X5: =IF($D5="","",IF($D5="PTAC",0,IF($D5="PTHP",VLOOKUP($G5,PTHPMinEffT1,5),IF($D5="AC",0,IF($D5="HP",VLOOKUP($G5,HPMinEffT1,O5),""))))) ->  | Y5: =IF($D5="","",IF($D5="PTAC",999,IF($D5="PTHP",999,IF($D5="AC",VLOOKUP($G5,ACMinEffT2,M5),IF($D5="HP",VLOOKUP($G5,HPMinEffT2,M5),""))))) ->  | Z5: =IF($D5="","",IF($D5="PTAC",0,IF($D5="PTHP",0,IF($D5="AC",VLOOKUP($G5,ACMinEffT2,N5),IF($D5="HP",VLOOKUP($G5,HPMinEffT2,N5),""))))) ->  | AA5: =IF($D5="","",IF($D5="PTAC",999,IF($D5="PTHP",999,IF($D5="AC",0,IF($D5="HP",VLOOKUP($G5,HPMinEffT2,O5),""))))) ->  | AB5: =IFERROR(IF(OR(C5=0,F5=0),"-",IF(AND(P5>=Y5,Q5>=Z5,R5>=AA5),"Tier 2",IF(AND(P5>=V5,Q5>=W5,R5>=X5),"Tier 1","-"))),"-") -> - | AC5: =IFERROR(IF(AB5="-","No","Yes"),"No") -> No | AD5: =IF(D5="PTAC",VLOOKUP(G5,PTACMinEffT1,5),IF(D5="PTHP",VLOOKUP(G5,PTHPMinEffT1,7),IF(AB5="Tier 1",IF(D5="AC",VLOOKUP(G5,ACMinEffT1,15),IF(D5="HP",VLOOKUP(G5,HPMinEffT1,21),4)),IF(AB5="Tier 2",IF(D5="AC",VLOOKUP(G5,ACMinEffT2,15),IF(D5="HP",VLOOKUP(G5,HPMinEffT2,21),4)),0)))) -> 0 | AE5: ='HVAC Unitary'!N23 -> 0 | AF5: =AD5*AE5 -> 0 | AG5: ='HVAC Unitary'!C23 -> 0 | AH5: =VLOOKUP(AG5,Validation!$C$13:$G$24,IF(VLOOKUP('Project Information'!$L$6,Validation!$B$116:$D$514,3,FALSE)="Charleston",4,5)) ->  | AI5: =VLOOKUP(AG5,Validation!$C$13:$G$24,IF(VLOOKUP('Project Information'!$L$6,Validation!$B$116:$D$514,3,FALSE)="Charleston",2,3)) ->  | AJ5: =IFERROR(IF(AC5="No",0,H5/1000*(1/IF(OR(D5="AC",D5="HP"),T5,S5)-(1/IF(OR(D5="AC",D5="HP"),Q5,P5)))*AH5),0) -> 0 | AK5: =IFERROR(IF(AC5="No",0,I5/3412*(1/IF(OR(D5="AC",D5="PTAC"),1,U5)-(1/IF(OR(D5="AC",D5="PTAC"),1,R5)))*AI5),0) -> 0 | AL5: =AK5+AJ5 -> 0 | AM5: =IFERROR(IF(AC5="No",0,G5/1000*((1/S5)-(1/P5))*0.8),0) -> 0 | AN5: =AL5*$AE5 -> 0 | AO5: =AM5*$AE5 -> 0
B6: 2 | C6: ='HVAC Unitary'!D24 -> 0 | D6: =IFERROR(VLOOKUP(C6,Validation!$C$3:$E$9,3,FALSE),"") ->  | E6: =IFERROR(VLOOKUP(C6,Validation!$C$3:$F$9,4,FALSE),"") ->  | F6: ='HVAC Unitary'!G24 -> 0 | G6: =F6*12000 -> 0 | H6: ='HVAC Unitary'!H24 -> 0 | I6: ='HVAC Unitary'!I24 -> 0 | K6: =IF('HVAC Unitary'!J24="","",IF('HVAC Unitary'!J24="EER / SEER / HSPF","Old","New")) ->  | M6: 0 | N6: 0 | O6: 0 | P6: ='HVAC Unitary'!K24 -> 0 | Q6: ='HVAC Unitary'!L24 -> 0 | R6: =IF(G6>65000,'HVAC Unitary'!M24,'HVAC Unitary'!M24/IF(D6="PTHP",1,3.413)) -> 0 | AB6: - | AC6: =IFERROR(IF(AB6="-","No","Yes"),"No") -> No | AD6: 0 | AE6: ='HVAC Unitary'!N24 -> 0 | AF6: =AD6*AE6 -> 0 | AG6: ='HVAC Unitary'!C24 -> 0 | AH6: =VLOOKUP(AG6,Validation!$C$13:$G$24,IF(VLOOKUP('Project Information'!$L$6,Validation!$B$116:$D$514,3,FALSE)="Charleston",4,5)) ->  | AI6: =VLOOKUP(AG6,Validation!$C$13:$G$24,IF(VLOOKUP('Project Information'!$L$6,Validation!$B$116:$D$514,3,FALSE)="Charleston",2,3)) ->  | AJ6: =IFERROR(IF(AC6="No",0,H6/1000*(1/IF(OR(D6="AC",D6="HP"),T6,S6)-(1/IF(OR(D6="AC",D6="HP"),Q6,P6)))*AH6),0) -> 0 | AK6: =IFERROR(IF(AB6="-",0,I6/3412*(1/IF(OR(D6="AC",D6="PTAC"),1,U6)-(1/IF(OR(D6="AC",D6="PTAC"),1,R6)))*AI6),0) -> 0 | AL6: 0 | AM6: =IFERROR(IF(AC6="No",0,G6/1000*((1/S6)-(1/P6))*0.8),0) -> 0 | AN6: =AL6*$AE6 -> 0 | AO6: =AM6*$AE6 -> 0
B7: 3 | C7: ='HVAC Unitary'!D25 -> 0 | D7: =IFERROR(VLOOKUP(C7,Validation!$C$3:$E$9,3,FALSE),"") ->  | E7: =IFERROR(VLOOKUP(C7,Validation!$C$3:$F$9,4,FALSE),"") ->  | F7: ='HVAC Unitary'!G25 -> 0 | G7: 0 | H7: ='HVAC Unitary'!H25 -> 0 | I7: ='HVAC Unitary'!I25 -> 0 | K7: =IF('HVAC Unitary'!J25="","",IF('HVAC Unitary'!J25="EER / SEER / HSPF","Old","New")) ->  | M7: 0 | N7: 0 | O7: 0 | P7: ='HVAC Unitary'!K25 -> 0 | Q7: ='HVAC Unitary'!L25 -> 0 | R7: =IF(G7>65000,'HVAC Unitary'!M25,'HVAC Unitary'!M25/IF(D7="PTHP",1,3.413)) -> 0 | AB7: - | AC7: No | AD7: 0 | AE7: ='HVAC Unitary'!N25 -> 0 | AF7: 0 | AG7: ='HVAC Unitary'!C25 -> 0 | AH7: =VLOOKUP(AG7,Validation!$C$13:$G$24,IF(VLOOKUP('Project Information'!$L$6,Validation!$B$116:$D$514,3,FALSE)="Charleston",4,5)) ->  | AI7: =VLOOKUP(AG7,Validation!$C$13:$G$24,IF(VLOOKUP('Project Information'!$L$6,Validation!$B$116:$D$514,3,FALSE)="Charleston",2,3)) ->  | AJ7: 0 | AK7: 0 | AL7: 0 | AM7: 0 | AN7: 0 | AO7: 0
B8: 4 | C8: ='HVAC Unitary'!D26 -> 0 | D8: =IFERROR(VLOOKUP(C8,Validation!$C$3:$E$9,3,FALSE),"") ->  | E8: =IFERROR(VLOOKUP(C8,Validation!$C$3:$F$9,4,FALSE),"") ->  | F8: ='HVAC Unitary'!G26 -> 0 | G8: 0 | H8: ='HVAC Unitary'!H26 -> 0 | I8: ='HVAC Unitary'!I26 -> 0 | K8: =IF('HVAC Unitary'!J26="","",IF('HVAC Unitary'!J26="EER / SEER / HSPF","Old","New")) ->  | M8: 0 | N8: 0 | O8: 0 | P8: ='HVAC Unitary'!K26 -> 0 | Q8: ='HVAC Unitary'!L26 -> 0 | R8: =IF(G8>65000,'HVAC Unitary'!M26,'HVAC Unitary'!M26/IF(D8="PTHP",1,3.413)) -> 0 | AB8: - | AC8: No | AD8: 0 | AE8: ='HVAC Unitary'!N26 -> 0 | AF8: 0 | AG8: ='HVAC Unitary'!C26 -> 0 | AH8: =VLOOKUP(AG8,Validation!$C$13:$G$24,IF(VLOOKUP('Project Information'!$L$6,Validation!$B$116:$D$514,3,FALSE)="Charleston",4,5)) ->  | AI8: =VLOOKUP(AG8,Validation!$C$13:$G$24,IF(VLOOKUP('Project Information'!$L$6,Validation!$B$116:$D$514,3,FALSE)="Charleston",2,3)) ->  | AJ8: 0 | AK8: 0 | AL8: 0 | AM8: 0 | AN8: 0 | AO8: 0
B9: 5 | C9: ='HVAC Unitary'!D27 -> 0 | D9: =IFERROR(VLOOKUP(C9,Validation!$C$3:$E$9,3,FALSE),"") ->  | E9: =IFERROR(VLOOKUP(C9,Validation!$C$3:$F$9,4,FALSE),"") ->  | F9: ='HVAC Unitary'!G27 -> 0 | G9: 0 | H9: ='HVAC Unitary'!H27 -> 0 | I9: ='HVAC Unitary'!I27 -> 0 | K9: =IF('HVAC Unitary'!J27="","",IF('HVAC Unitary'!J27="EER / SEER / HSPF","Old","New")) ->  | M9: 0 | N9: 0 | O9: 0 | P9: ='HVAC Unitary'!K27 -> 0 | Q9: ='HVAC Unitary'!L27 -> 0 | R9: =IF(G9>65000,'HVAC Unitary'!M27,'HVAC Unitary'!M27/IF(D9="PTHP",1,3.413)) -> 0 | AB9: =IFERROR(IF(OR(C9=0,F9=0),"-",IF(AND(P9>=Y9,Q9>=Z9,R9>=AA9),"Tier 2",IF(AND(P9>=V9,Q9>=W9,R9>=X9),"Tier 1","-"))),"-") -> - | AC9: No | AD9: 0 | AE9: ='HVAC Unitary'!N27 -> 0 | AF9: 0 | AG9: ='HVAC Unitary'!C27 -> 0 | AH9: =VLOOKUP(AG9,Validation!$C$13:$G$24,IF(VLOOKUP('Project Information'!$L$6,Validation!$B$116:$D$514,3,FALSE)="Charleston",4,5)) ->  | AI9: =VLOOKUP(AG9,Validation!$C$13:$G$24,IF(VLOOKUP('Project Information'!$L$6,Validation!$B$116:$D$514,3,FALSE)="Charleston",2,3)) ->  | AJ9: 0 | AK9: 0 | AL9: 0 | AM9: 0 | AN9: 0 | AO9: 0
B10: 6 | C10: ='HVAC Unitary'!D28 -> 0 | D10: =IFERROR(VLOOKUP(C10,Validation!$C$3:$E$9,3,FALSE),"") ->  | E10: =IFERROR(VLOOKUP(C10,Validation!$C$3:$F$9,4,FALSE),"") ->  | F10: ='HVAC Unitary'!G28 -> 0 | G10: 0 | H10: ='HVAC Unitary'!H28 -> 0 | I10: ='HVAC Unitary'!I28 -> 0 | K10: =IF('HVAC Unitary'!J28="","",IF('HVAC Unitary'!J28="EER / SEER / HSPF","Old","New")) ->  | M10: 0 | N10: 0 | O10: 0 | P10: ='HVAC Unitary'!K28 -> 0 | Q10: ='HVAC Unitary'!L28 -> 0 | R10: =IF(G10>65000,'HVAC Unitary'!M28,'HVAC Unitary'!M28/IF(D10="PTHP",1,3.413)) -> 0 | AB10: =IFERROR(IF(OR(C10=0,F10=0),"-",IF(AND(P10>=Y10,Q10>=Z10,R10>=AA10),"Tier 2",IF(AND(P10>=V10,Q10>=W10,R10>=X10),"Tier 1","-"))),"-") -> - | AC10: No | AD10: 0 | AE10: ='HVAC Unitary'!N28 -> 0 | AF10: 0 | AG10: ='HVAC Unitary'!C28 -> 0 | AH10: =VLOOKUP(AG10,Validation!$C$13:$G$24,IF(VLOOKUP('Project Information'!$L$6,Validation!$B$116:$D$514,3,FALSE)="Charleston",4,5)) ->  | AI10: =VLOOKUP(AG10,Validation!$C$13:$G$24,IF(VLOOKUP('Project Information'!$L$6,Validation!$B$116:$D$514,3,FALSE)="Charleston",2,3)) ->  | AJ10: 0 | AK10: 0 | AL10: 0 | AM10: 0 | AN10: 0 | AO10: 0
B11: 7 | C11: ='HVAC Unitary'!D29 -> 0 | D11: =IFERROR(VLOOKUP(C11,Validation!$C$3:$E$9,3,FALSE),"") ->  | E11: =IFERROR(VLOOKUP(C11,Validation!$C$3:$F$9,4,FALSE),"") ->  | F11: ='HVAC Unitary'!G29 -> 0 | G11: 0 | H11: ='HVAC Unitary'!H29 -> 0 | I11: ='HVAC Unitary'!I29 -> 0 | K11: =IF('HVAC Unitary'!J29="","",IF('HVAC Unitary'!J29="EER / SEER / HSPF","Old","New")) ->  | M11: 0 | N11: 0 | O11: 0 | P11: ='HVAC Unitary'!K29 -> 0 | Q11: ='HVAC Unitary'!L29 -> 0 | R11: =IF(G11>65000,'HVAC Unitary'!M29,'HVAC Unitary'!M29/IF(D11="PTHP",1,3.413)) -> 0 | AB11: - | AC11: No | AD11: 0 | AE11: ='HVAC Unitary'!N29 -> 0 | AF11: 0 | AG11: ='HVAC Unitary'!C29 -> 0 | AH11: =VLOOKUP(AG11,Validation!$C$13:$G$24,IF(VLOOKUP('Project Information'!$L$6,Validation!$B$116:$D$514,3,FALSE)="Charleston",4,5)) ->  | AI11: =VLOOKUP(AG11,Validation!$C$13:$G$24,IF(VLOOKUP('Project Information'!$L$6,Validation!$B$116:$D$514,3,FALSE)="Charleston",2,3)) ->  | AJ11: 0 | AK11: 0 | AL11: 0 | AM11: 0 | AN11: 0 | AO11: 0
B12: 8 | C12: ='HVAC Unitary'!D30 -> 0 | D12: =IFERROR(VLOOKUP(C12,Validation!$C$3:$E$9,3,FALSE),"") ->  | E12: =IFERROR(VLOOKUP(C12,Validation!$C$3:$F$9,4,FALSE),"") ->  | F12: ='HVAC Unitary'!G30 -> 0 | G12: 0 | H12: ='HVAC Unitary'!H30 -> 0 | I12: ='HVAC Unitary'!I30 -> 0 | K12: =IF('HVAC Unitary'!J30="","",IF('HVAC Unitary'!J30="EER / SEER / HSPF","Old","New")) ->  | M12: 0 | N12: 0 | O12: 0 | P12: ='HVAC Unitary'!K30 -> 0 | Q12: ='HVAC Unitary'!L30 -> 0 | R12: =IF(G12>65000,'HVAC Unitary'!M30,'HVAC Unitary'!M30/IF(D12="PTHP",1,3.413)) -> 0 | AB12: - | AC12: No | AD12: 0 | AE12: ='HVAC Unitary'!N30 -> 0 | AF12: 0 | AG12: ='HVAC Unitary'!C30 -> 0 | AH12: =VLOOKUP(AG12,Validation!$C$13:$G$24,IF(VLOOKUP('Project Information'!$L$6,Validation!$B$116:$D$514,3,FALSE)="Charleston",4,5)) ->  | AI12: =VLOOKUP(AG12,Validation!$C$13:$G$24,IF(VLOOKUP('Project Information'!$L$6,Validation!$B$116:$D$514,3,FALSE)="Charleston",2,3)) ->  | AJ12: 0 | AK12: 0 | AL12: 0 | AM12: 0 | AN12: 0 | AO12: 0
B13: 9 | C13: ='HVAC Unitary'!D31 -> 0 | D13: =IFERROR(VLOOKUP(C13,Validation!$C$3:$E$9,3,FALSE),"") ->  | E13: =IFERROR(VLOOKUP(C13,Validation!$C$3:$F$9,4,FALSE),"") ->  | F13: ='HVAC Unitary'!G31 -> 0 | G13: 0 | H13: ='HVAC Unitary'!H31 -> 0 | I13: ='HVAC Unitary'!I31 -> 0 | K13: =IF('HVAC Unitary'!J31="","",IF('HVAC Unitary'!J31="EER / SEER / HSPF","Old","New")) ->  | M13: 0 | N13: 0 | O13: 0 | P13: ='HVAC Unitary'!K31 -> 0 | Q13: ='HVAC Unitary'!L31 -> 0 | R13: =IF(G13>65000,'HVAC Unitary'!M31,'HVAC Unitary'!M31/IF(D13="PTHP",1,3.413)) -> 0 | S13: =IF(D13="","",IF(D13="PTAC",VLOOKUP(G13,PTACBaseline,3)+VLOOKUP(G13,PTACBaseline,4)*G13/1000,IF(D13="PTHP",VLOOKUP(G13,PTHPBaseline,3)+VLOOKUP(G13,PTHPBaseline,4)*G13/1000,0))) ->  | AB13: - | AC13: No | AD13: 0 | AE13: ='HVAC Unitary'!N31 -> 0 | AF13: 0 | AG13: ='HVAC Unitary'!C31 -> 0 | AH13: =VLOOKUP(AG13,Validation!$C$13:$G$24,IF(VLOOKUP('Project Information'!$L$6,Validation!$B$116:$D$514,3,FALSE)="Charleston",4,5)) ->  | AI13: =VLOOKUP(AG13,Validation!$C$13:$G$24,IF(VLOOKUP('Project Information'!$L$6,Validation!$B$116:$D$514,3,FALSE)="Charleston",2,3)) ->  | AJ13: 0 | AK13: 0 | AL13: 0 | AM13: 0 | AN13: 0 | AO13: 0
B14: 10 | C14: ='HVAC Unitary'!D32 -> 0 | D14: =IFERROR(VLOOKUP(C14,Validation!$C$3:$E$9,3,FALSE),"") ->  | E14: =IFERROR(VLOOKUP(C14,Validation!$C$3:$F$9,4,FALSE),"") ->  | F14: ='HVAC Unitary'!G32 -> 0 | G14: 0 | H14: ='HVAC Unitary'!H32 -> 0 | I14: ='HVAC Unitary'!I32 -> 0 | K14: =IF('HVAC Unitary'!J32="","",IF('HVAC Unitary'!J32="EER / SEER / HSPF","Old","New")) ->  | M14: 0 | N14: 0 | O14: 0 | P14: ='HVAC Unitary'!K32 -> 0 | Q14: ='HVAC Unitary'!L32 -> 0 | R14: =IF(G14>65000,'HVAC Unitary'!M32,'HVAC Unitary'!M32/IF(D14="PTHP",1,3.413)) -> 0 | S14: =IF(D14="","",IF(D14="PTAC",VLOOKUP(G14,PTACBaseline,3)+VLOOKUP(G14,PTACBaseline,4)*G14/1000,IF(D14="PTHP",VLOOKUP(G14,PTHPBaseline,3)+VLOOKUP(G14,PTHPBaseline,4)*G14/1000,0))) ->  | AB14: - | AC14: No | AD14: 0 | AE14: ='HVAC Unitary'!N32 -> 0 | AF14: 0 | AG14: ='HVAC Unitary'!C32 -> 0 | AH14: =VLOOKUP(AG14,Validation!$C$13:$G$24,IF(VLOOKUP('Project Information'!$L$6,Validation!$B$116:$D$514,3,FALSE)="Charleston",4,5)) ->  | AI14: =VLOOKUP(AG14,Validation!$C$13:$G$24,IF(VLOOKUP('Project Information'!$L$6,Validation!$B$116:$D$514,3,FALSE)="Charleston",2,3)) ->  | AJ14: 0 | AK14: 0 | AL14: 0 | AM14: 0 | AN14: 0 | AO14: 0
B20: Baseline Lookup Column Refernces for AC/HP
G21: Lookup Column Value
B22: Btu/h | C22: System Type | D22: S/P | E22: Rating | F22: Concat | G22: Full Load | H22: Part Load | I22: Heating
B23: 0 | C23: AC | D23: S | E23: Old | F23: =_xlfn.CONCAT(C23,B23,D23,E23) -> AC0SOld | G23: 9 | H23: 12
B24: 45000 | C24: AC | D24: S | E24: Old | F24: =_xlfn.CONCAT(C24,B24,D24,E24) -> AC45000SOld | G24: 9 | H24: 12
B25: 65000 | C25: AC | D25: S | E25: Old | F25: AC65000SOld | G25: 4 | H25: 7
B26: 135000 | C26: AC | D26: S | E26: Old | F26: AC135000SOld | G26: 4 | H26: 7
B27: 240000 | C27: AC | D27: S | E27: Old | F27: AC240000SOld | G27: 4 | H27: 7
B28: 760000 | C28: AC | D28: S | E28: Old | F28: AC760000SOld | G28: 4 | H28: 7
B29: 0 | C29: AC | D29: P | E29: Old | F29: AC0POld | G29: 10 | H29: 13
B30: 45000 | C30: AC | D30: P | E30: Old | F30: AC45000POld | G30: 10 | H30: 13
B31: 65000 | C31: AC | D31: P | E31: Old | F31: AC65000POld | G31: 4 | H31: 7
B32: 135000 | C32: AC | D32: P | E32: Old | F32: AC135000POld | G32: 4 | H32: 7
B33: 240000 | C33: AC | D33: P | E33: Old | F33: AC240000POld | G33: 4 | H33: 7
B34: 760000 | C34: AC | D34: P | E34: Old | F34: AC760000POld | G34: 4 | H34: 7
B35: 0 | C35: AC | D35: S | E35: New | F35: =_xlfn.CONCAT(C35,B35,D35,E35) -> AC0SNew | G35: 3 | H35: 6
B36: 45000 | C36: AC | D36: S | E36: New | F36: =_xlfn.CONCAT(C36,B36,D36,E36) -> AC45000SNew | G36: 3 | H36: 6
B37: 65000 | C37: AC | D37: S | E37: New | F37: AC65000SNew | G37: 4 | H37: 7
B38: 135000 | C38: AC | D38: S | E38: New | F38: AC135000SNew | G38: 4 | H38: 7
B39: 240000 | C39: AC | D39: S | E39: New | F39: AC240000SNew | G39: 4 | H39: 7
B40: 760000 | C40: AC | D40: S | E40: New | F40: AC760000SNew | G40: 4 | H40: 7
B41: 0 | C41: AC | D41: P | E41: New | F41: AC0PNew | G41: 4 | H41: 7
B42: 45000 | C42: AC | D42: P | E42: New | F42: AC45000PNew | G42: 4 | H42: 7
B43: 65000 | C43: AC | D43: P | E43: New | F43: AC65000PNew | G43: 4 | H43: 7
B44: 135000 | C44: AC | D44: P | E44: New | F44: AC135000PNew | G44: 4 | H44: 7
B45: 240000 | C45: AC | D45: P | E45: New | F45: AC240000PNew | G45: 4 | H45: 7
B46: 760000 | C46: AC | D46: P | E46: New | F46: AC760000PNew | G46: 4 | H46: 7
B47: 0 | C47: HP | D47: S | E47: Old | F47: =_xlfn.CONCAT(C47,B47,D47,E47) -> HP0SOld | G47: 12 | H47: 15 | I47: 18
B48: 45000 | C48: HP | D48: S | E48: Old | F48: =_xlfn.CONCAT(C48,B48,D48,E48) -> HP45000SOld | G48: 12 | H48: 15 | I48: 18
B49: 65000 | C49: HP | D49: S | E49: Old | F49: HP65000SOld | G49: 4 | H49: 7 | I49: 10
B50: 135000 | C50: HP | D50: S | E50: Old | F50: HP135000SOld | G50: 4 | H50: 7 | I50: 10
B51: 240000 | C51: HP | D51: S | E51: Old | F51: HP240000SOld | G51: 4 | H51: 7 | I51: 10
B52: 760000 | C52: HP | D52: S | E52: Old | F52: HP760000SOld | G52: 4 | H52: 7 | I52: 10
B53: 0 | C53: HP | D53: P | E53: Old | F53: HP0POld | G53: 13 | H53: 16 | I53: 19
B54: 45000 | C54: HP | D54: P | E54: Old | F54: HP45000POld | G54: 13 | H54: 16 | I54: 19
B55: 65000 | C55: HP | D55: P | E55: Old | F55: HP65000POld | G55: 4 | H55: 7 | I55: 10
B56: 135000 | C56: HP | D56: P | E56: Old | F56: HP135000POld | G56: 4 | H56: 7 | I56: 10
B57: 240000 | C57: HP | D57: P | E57: Old | F57: HP240000POld | G57: 4 | H57: 7 | I57: 10
B58: 760000 | C58: HP | D58: P | E58: Old | F58: HP760000POld | G58: 4 | H58: 7 | I58: 10
B59: 0 | C59: HP | D59: S | E59: New | F59: =_xlfn.CONCAT(C59,B59,D59,E59) -> HP0SNew | G59: 3 | H59: 6 | I59: 9
B60: 45000 | C60: HP | D60: S | E60: New | F60: =_xlfn.CONCAT(C60,B60,D60,E60) -> HP45000SNew | G60: 3 | H60: 6 | I60: 9
B61: 65000 | C61: HP | D61: S | E61: New | F61: HP65000SNew | G61: 4 | H61: 7 | I61: 10
B62: 135000 | C62: HP | D62: S | E62: New | F62: HP135000SNew | G62: 4 | H62: 7 | I62: 10
B63: 240000 | C63: HP | D63: S | E63: New | F63: HP240000SNew | G63: 4 | H63: 7 | I63: 10
B64: 760000 | C64: HP | D64: S | E64: New | F64: HP760000SNew | G64: 4 | H64: 7 | I64: 10
B65: 0 | C65: HP | D65: P | E65: New | F65: HP0PNew | G65: 4 | H65: 7 | I65: 10
B66: 45000 | C66: HP | D66: P | E66: New | F66: HP45000PNew | G66: 4 | H66: 7 | I66: 10
B67: 65000 | C67: HP | D67: P | E67: New | F67: HP65000PNew | G67: 4 | H67: 7 | I67: 10
B68: 135000 | C68: HP | D68: P | E68: New | F68: HP135000PNew | G68: 4 | H68: 7 | I68: 10
B69: 240000 | C69: HP | D69: P | E69: New | F69: HP240000PNew | G69: 4 | H69: 7 | I69: 10
B70: 760000 | C70: HP | D70: P | E70: New | F70: HP760000PNew | G70: 4 | H70: 7 | I70: 10

Sheet HVACLookups (hidden)
A1: P | B1: 30000 | C1: Electric | D1: =VLOOKUP(B1,B7:I12,IF(AND(B1<65000,A1="U"),4,3)) -> 11.7
B3: 1 | C3: 2 | D3: 3 | E3: 4 | F3: 5 | G3: 6 | H3: 7 | I3: 8 | J3: 9 | K3: 10 | L3: 11 | M3: 12 | N3: 13 | O3: 14 | Y3: 1 | Z3: 2 | AA3: 3 | AB3: 4 | AC3: 5 | AD3: 6 | AE3: 7 | AF3: 8 | AG3: 9 | AH3: 10 | AI3: 11 | AJ3: 12 | AK3: 13 | AL3: 14 | AM3: 15 | AN3: 16 | AX3: 1 | AY3: 2 | AZ3: 3 | BA3: 4 | BB3: 5 | BC3: 6 | BD3: 7 | BE3: 8 | BF3: 9 | BG3: 10 | BH3: 11 | BI3: 12 | BJ3: 13 | BK3: 14
B4: Air Conditioning - Unitary and Split System baseline efficiency* | Y4: Minimum Efficiencies For Incentives - AC Units (Tier 1) | AX4: Air Conditioning - Baseline Checks Tier 1
D5: EER2/EER - Full Load | G5: SEER2/IEER - Part Load | J5: EER - Full Load | M5: SEER - Part Load | AA5: EER2/EER - Full Load | AD5: SEER2/IEER - Part Load | AG5: EER - Full Load | AJ5: SEER - Part Load | AM5: Incentive | AZ5: EER2/EER - Full Load | BC5: SEER2/IEER - Part Load | BF5: EER - Full Load | BI5: SEER - Part Load
B6: Btu/h | C6: Tons | D6: S | E6: P | F6: Unit | G6: S | H6: P | I6: Unit | J6: S | K6: P | L6: Unit | M6: S | N6: P | O6: Unit | Y6: Btu/h | Z6: Tons | AA6: S | AB6: P | AC6: Unit | AD6: S | AE6: P | AF6: Unit | AG6: S | AH6: P | AI6: Unit | AJ6: S | AK6: P | AL6: Unit | AM6: Amount | AN6: Unit | AX6: Btu/h | AY6: Tons | AZ6: S | BA6: P | BB6: Unit | BC6: S | BD6: P | BE6: Unit | BF6: S | BG6: P | BH6: Unit | BI6: S | BJ6: P | BK6: Unit
B7: 0 | C7: 0 | D7: 11.7 | E7: 10.6 | F7: EER2 | G7: 14.3 | H7: 13.4 | I7: SEER2 | J7: =D7/0.95 -> 12.31578947 | K7: =E7/0.95 -> 11.15789474 | L7: EER | M7: =G7/0.95 -> 15.05263158 | N7: =H7/0.95 -> 14.10526316 | O7: SEER | Y7: 0 | Z7: =Y7/12000 -> 0 | AC7: EER2 | AD7: 15.2 | AE7: 14.3 | AF7: SEER2 | AI7: EER | AJ7: =AD7/0.95 -> 16 | AK7: 15 | AL7: SEER | AM7: 75 | AN7: Ton | AX7: 0 | AY7: 0 | AZ7: =IF(OR(AA7="",$D$7=""),"",(AA7/$D$7)) ->  | BA7: =IF(OR(AB7="",$E$7=""),"",(AB7/$E$7)) ->  | BB7: EER2 | BC7: =IF(OR(AD7="",$G$7=""),"",(AD7/$G$7)) -> 1.062937063 | BD7: =IF(OR(AE7="",$H$7=""),"",(AE7/$H$7)) -> 1.067164179 | BE7: SEER2 | BF7: =IF(OR(AG7="",$J$7=""),"",(AG7/$J$7)) ->  | BG7: =IF(OR(AH7="",$K$7=""),"",(AH7/$K$7)) ->  | BH7: EER | BI7: =IF(OR(AJ7="",$M$7=""),"",(AJ7/$M$7)) -> 1.062937063 | BJ7: =IF(OR(AK7="",$N$7=""),"",(AK7/$N$7)) -> 1.063432836 | BK7: SEER
B8: 45000 | C8: 3.75 | D8: 11.2 | E8: 10.6 | F8: EER2 | G8: 13.8 | H8: 13.4 | I8: SEER2 | J8: =D8/0.95 -> 11.78947368 | K8: =E8/0.95 -> 11.15789474 | L8: EER | M8: =G8/0.95 -> 14.52631579 | N8: =H8/0.95 -> 14.10526316 | O8: SEER | Y8: 45000 | Z8: 3.75 | AC8: EER2 | AD8: 15.2 | AE8: 14.3 | AF8: SEER2 | AI8: EER | AJ8: =AD8/0.95 -> 16 | AK8: 15 | AL8: SEER | AM8: 75 | AN8: Ton | AX8: 45000 | AY8: 3.75 | AZ8: =IF(OR(AA8="",$D$8=""),"",(AA8/$D$8)) ->  | BA8: =IF(OR(AB8="",$E$8=""),"",(AB8/$E$8)) ->  | BB8: EER2 | BC8: =IF(OR(AD8="",$G$8=""),"",(AD8/$G$8)) -> 1.101449275 | BD8: =IF(OR(AE8="",$H$8=""),"",(AE8/$H$8)) -> 1.067164179 | BE8: SEER2 | BF8: =IF(OR(AG8="",$J$8=""),"",(AG8/$J$8)) ->  | BG8: =IF(OR(AH8="",$K$8=""),"",(AH8/$K$8)) ->  | BH8: EER | BI8: =IF(OR(AJ8="",$M$8=""),"",(AJ8/$M$8)) -> 1.101449275 | BJ8: =IF(OR(AK8="",$N$8=""),"",(AK8/$N$8)) -> 1.063432836 | BK8: SEER
B9: 65000 | C9: =B9/12000 -> 5.416666667 | E9: 11 | F9: EER | H9: 14.6 | I9: IEER | L9: EER | O9: IEER | Y9: 65000 | Z9: 5.416666667 | AC9: EER | AE9: 15.3 | AF9: IEER | AM9: 60 | AN9: Ton | AX9: 65000 | AY9: =AX9/12000 -> 5.416666667 | AZ9: =IF(OR(AA9="",$D$9=""),"",(AA9/$D$9)) ->  | BA9: =IF(OR(AB9="",$E$9=""),"",(AB9/$E$9)) ->  | BB9: EER | BC9: =IF(OR(AD9="",$G$9=""),"",(AD9/$G$9)) ->  | BD9: =IF(OR(AE9="",$H$9=""),"",(AE9/$H$9)) -> 1.047945205 | BE9: IEER | BF9: =IF(OR(AG9="",$J$9=""),"",(AG9/$J$9)) ->  | BG9: =IF(OR(AH9="",$K$9=""),"",(AH9/$K$9)) ->  | BH9: EER | BI9: =IF(OR(AJ9="",$M$9=""),"",(AJ9/$M$9)) ->  | BJ9: =IF(OR(AK9="",$N$9=""),"",(AK9/$N$9)) ->  | BK9: IEER
B10: 135000 | C10: 11.25 | E10: 10.8 | F10: EER | H10: 14 | I10: IEER | L10: EER | O10: IEER | Y10: 135000 | Z10: 11.25 | AC10: EER | AE10: 14.7 | AF10: IEER | AM10: 50 | AN10: Ton | AX10: 135000 | AY10: 11.25 | AZ10: =IF(OR(AA10="",$D$10=""),"",(AA10/$D$10)) ->  | BA10: =IF(OR(AB10="",$E$10=""),"",(AB10/$E$10)) ->  | BB10: EER | BC10: =IF(OR(AD10="",$G$10=""),"",(AD10/$G$10)) ->  | BD10: =IF(OR(AE10="",$H$10=""),"",(AE10/$H$10)) -> 1.05 | BE10: IEER | BF10: =IF(OR(AG10="",$J$10=""),"",(AG10/$J$10)) ->  | BG10: =IF(OR(AH10="",$K$10=""),"",(AH10/$K$10)) ->  | BH10: EER | BI10: =IF(OR(AJ10="",$M$10=""),"",(AJ10/$M$10)) ->  | BJ10: =IF(OR(AK10="",$N$10=""),"",(AK10/$N$10)) ->  | BK10: IEER
B11: 240000 | C11: 20 | E11: 9.8 | F11: EER | H11: 13 | I11: IEER | L11: EER | O11: IEER | Y11: 240000 | Z11: 20 | AC11: EER | AE11: 13.6 | AF11: IEER | AM11: 40 | AN11: Ton | AX11: 240000 | AY11: 20 | AZ11: =IF(OR(AA11="",$D$11=""),"",(AA11/$D$11)) ->  | BA11: =IF(OR(AB11="",$E$11=""),"",(AB11/$E$11)) ->  | BB11: EER | BC11: =IF(OR(AD11="",$G$11=""),"",(AD11/$G$11)) ->  | BD11: =IF(OR(AE11="",$H$11=""),"",(AE11/$H$11)) -> 1.046153846 | BE11: IEER | BF11: =IF(OR(AG11="",$J$11=""),"",(AG11/$J$11)) ->  | BG11: =IF(OR(AH11="",$K$11=""),"",(AH11/$K$11)) ->  | BH11: EER | BI11: =IF(OR(AJ11="",$M$11=""),"",(AJ11/$M$11)) ->  | BJ11: =IF(OR(AK11="",$N$11=""),"",(AK11/$N$11)) ->  | BK11: IEER
B12: 760000 | C12: 63.33333333 | E12: 9.5 | F12: EER | H12: 11 | I12: IEER | L12: EER | O12: IEER | Y12: 760000 | Z12: 63.33333333 | AC12: EER | AE12: 11.6 | AF12: IEER | AM12: 15 | AN12: Ton | AX12: 760000 | AY12: 63.33333333 | AZ12: =IF(OR(AA12="",$D$12=""),"",(AA12/$D$12)) ->  | BA12: =IF(OR(AB12="",$E$12=""),"",(AB12/$E$12)) ->  | BB12: EER | BC12: =IF(OR(AD12="",$G$12=""),"",(AD12/$G$12)) ->  | BD12: =IF(OR(AE12="",$H$12=""),"",(AE12/$H$12)) -> 1.054545455 | BE12: IEER | BF12: =IF(OR(AG12="",$J$12=""),"",(AG12/$J$12)) ->  | BG12: =IF(OR(AH12="",$K$12=""),"",(AH12/$K$12)) ->  | BH12: EER | BI12: =IF(OR(AJ12="",$M$12=""),"",(AJ12/$M$12)) ->  | BJ12: =IF(OR(AK12="",$N$12=""),"",(AK12/$N$12)) ->  | BK12: IEER
C14: *Black text from CEAM. Red text from AR TRM v9.2. Blue text is calculated from CEAM conversion factors | Y14: Minimum Efficiencies For Incentives - AC Units (Tier 2) | AX14: Air Conditioning - Baseline Checks Tier 2
AA15: EER2/EER - Full Load | AD15: SEER2/IEER - Part Load | AG15: EER - Full Load | AJ15: SEER - Part Load | AM15: Incentive | AZ15: EER2/EER - Full Load | BC15: SEER2/IEER - Part Load | BF15: EER - Full Load | BI15: SEER - Part Load
Y16: Btu/h | Z16: Tons | AA16: S | AB16: P | AC16: Unit | AD16: S | AE16: P | AF16: Unit | AG16: S | AH16: P | AI16: Unit | AJ16: S | AK16: P | AL16: Unit | AM16: Amount | AN16: Unit | AX16: Btu/h | AY16: Tons | AZ16: S | BA16: P | BB16: Unit | BC16: S | BD16: P | BE16: Unit | BF16: S | BG16: P | BH16: Unit | BI16: S | BJ16: P | BK16: Unit
Y17: 0 | Z17: =Y17/12000 -> 0 | AC17: EER2 | AD17: 16.15 | AE17: 15.2 | AF17: SEER2 | AI17: EER | AJ17: =AD17/0.95 -> 17 | AK17: =AE17/0.95 -> 16 | AL17: SEER | AM17: 100 | AN17: Ton | AX17: 0 | AY17: 0 | AZ17: =IF(OR(AA17="",$D$7=""),"",(AA17/$D$7)) ->  | BA17: =IF(OR(AB17="",$E$7=""),"",(AB17/$E$7)) ->  | BB17: EER2 | BC17: =IF(OR(AD17="",$G$7=""),"",(AD17/$G$7)) -> 1.129370629 | BD17: =IF(OR(AE17="",$H$7=""),"",(AE17/$H$7)) -> 1.134328358 | BE17: SEER2 | BF17: =IF(OR(AG17="",$J$7=""),"",(AG17/$J$7)) ->  | BG17: =IF(OR(AH17="",$K$7=""),"",(AH17/$K$7)) ->  | BH17: EER | BI17: =IF(OR(AJ17="",$M$7=""),"",(AJ17/$M$7)) -> 1.129370629 | BJ17: =IF(OR(AK17="",$N$7=""),"",(AK17/$N$7)) -> 1.134328358 | BK17: SEER
Y18: 45000 | Z18: =Y18/12000 -> 3.75 | AC18: EER2 | AD18: 16.15 | AE18: 15.2 | AF18: SEER2 | AI18: EER | AJ18: =AD18/0.95 -> 17 | AK18: =AE18/0.95 -> 16 | AL18: SEER | AM18: 100 | AN18: Ton | AX18: 45000 | AY18: 3.75 | AZ18: =IF(OR(AA18="",$D$8=""),"",(AA18/$D$8)) ->  | BA18: =IF(OR(AB18="",$E$8=""),"",(AB18/$E$8)) ->  | BB18: EER2 | BC18: =IF(OR(AD18="",$G$8=""),"",(AD18/$G$8)) -> 1.170289855 | BD18: =IF(OR(AE18="",$H$8=""),"",(AE18/$H$8)) -> 1.134328358 | BE18: SEER2 | BF18: =IF(OR(AG18="",$J$8=""),"",(AG18/$J$8)) ->  | BG18: =IF(OR(AH18="",$K$8=""),"",(AH18/$K$8)) ->  | BH18: EER | BI18: =IF(OR(AJ18="",$M$8=""),"",(AJ18/$M$8)) -> 1.170289855 | BJ18: =IF(OR(AK18="",$N$8=""),"",(AK18/$N$8)) -> 1.134328358 | BK18: SEER
Y19: 65000 | Z19: 5.416666667 | AC19: EER | AE19: 15.8 | AF19: IEER | AM19: 75 | AN19: Ton | AX19: 65000 | AY19: =AX19/12000 -> 5.416666667 | AZ19: =IF(OR(AA19="",$D$9=""),"",(AA19/$D$9)) ->  | BA19: =IF(OR(AB19="",$E$9=""),"",(AB19/$E$9)) ->  | BB19: EER | BC19: =IF(OR(AD19="",$G$9=""),"",(AD19/$G$9)) ->  | BD19: =IF(OR(AE19="",$H$9=""),"",(AE19/$H$9)) -> 1.082191781 | BE19: IEER | BF19: =IF(OR(AG19="",$J$9=""),"",(AG19/$J$9)) ->  | BG19: =IF(OR(AH19="",$K$9=""),"",(AH19/$K$9)) ->  | BH19: EER | BI19: =IF(OR(AJ19="",$M$9=""),"",(AJ19/$M$9)) ->  | BJ19: =IF(OR(AK19="",$N$9=""),"",(AK19/$N$9)) ->  | BK19: IEER
Y20: 135000 | Z20: 11.25 | AC20: EER | AE20: 15.1 | AF20: IEER | AM20: 70 | AN20: Ton | AX20: 135000 | AY20: 11.25 | AZ20: =IF(OR(AA20="",$D$10=""),"",(AA20/$D$10)) ->  | BA20: =IF(OR(AB20="",$E$10=""),"",(AB20/$E$10)) ->  | BB20: EER | BC20: =IF(OR(AD20="",$G$10=""),"",(AD20/$G$10)) ->  | BD20: =IF(OR(AE20="",$H$10=""),"",(AE20/$H$10)) -> 1.078571429 | BE20: IEER | BF20: =IF(OR(AG20="",$J$10=""),"",(AG20/$J$10)) ->  | BG20: =IF(OR(AH20="",$K$10=""),"",(AH20/$K$10)) ->  | BH20: EER | BI20: =IF(OR(AJ20="",$M$10=""),"",(AJ20/$M$10)) ->  | BJ20: =IF(OR(AK20="",$N$10=""),"",(AK20/$N$10)) ->  | BK20: IEER
Y21: 240000 | Z21: 20 | AC21: EER | AE21: 14.1 | AF21: IEER | AM21: 60 | AN21: Ton | AX21: 240000 | AY21: 20 | AZ21: =IF(OR(AA21="",$D$11=""),"",(AA21/$D$11)) ->  | BA21: =IF(OR(AB21="",$E$11=""),"",(AB21/$E$11)) ->  | BB21: EER | BC21: =IF(OR(AD21="",$G$11=""),"",(AD21/$G$11)) ->  | BD21: =IF(OR(AE21="",$H$11=""),"",(AE21/$H$11)) -> 1.084615385 | BE21: IEER | BF21: =IF(OR(AG21="",$J$11=""),"",(AG21/$J$11)) ->  | BG21: =IF(OR(AH21="",$K$11=""),"",(AH21/$K$11)) ->  | BH21: EER | BI21: =IF(OR(AJ21="",$M$11=""),"",(AJ21/$M$11)) ->  | BJ21: =IF(OR(AK21="",$N$11=""),"",(AK21/$N$11)) ->  | BK21: IEER
Y22: 760000 | Z22: 63.33333333 | AC22: EER | AE22: 12 | AF22: IEER | AM22: 20 | AN22: Ton | AX22: 760000 | AY22: 63.33333333 | AZ22: =IF(OR(AA22="",$D$12=""),"",(AA22/$D$12)) ->  | BA22: =IF(OR(AB22="",$E$12=""),"",(AB22/$E$12)) ->  | BB22: EER | BC22: =IF(OR(AD22="",$G$12=""),"",(AD22/$G$12)) ->  | BD22: =IF(OR(AE22="",$H$12=""),"",(AE22/$H$12)) -> 1.090909091 | BE22: IEER | BF22: =IF(OR(AG22="",$J$12=""),"",(AG22/$J$12)) ->  | BG22: =IF(OR(AH22="",$K$12=""),"",(AH22/$K$12)) ->  | BH22: EER | BI22: =IF(OR(AJ22="",$M$12=""),"",(AJ22/$M$12)) ->  | BJ22: =IF(OR(AK22="",$N$12=""),"",(AK22/$N$12)) ->  | BK22: IEER
B25: 1 | C25: 2 | D25: 3 | E25: 4 | F25: 5 | G25: 6 | H25: 7 | I25: 8 | J25: 9 | K25: 10 | L25: 11 | M25: 12 | N25: 13 | O25: 14 | P25: 15 | Q25: 16 | R25: 17 | S25: 18 | T25: 19 | U25: 20 | Y25: 1 | Z25: 2 | AA25: 3 | AB25: 4 | AC25: 5 | AD25: 6 | AE25: 7 | AF25: 8 | AG25: 9 | AH25: 10 | AI25: 11 | AJ25: 12 | AK25: 13 | AL25: 14 | AM25: 15 | AN25: 16 | AO25: 17 | AP25: 18 | AQ25: 19 | AR25: 20 | AS25: 21 | AT25: 22 | AX25: 1 | AY25: 2 | AZ25: 3 | BA25: 4 | BB25: 5 | BC25: 6 | BD25: 7 | BE25: 8 | BF25: 9 | BG25: 10 | BH25: 11 | BI25: 12 | BJ25: 13 | BK25: 14 | BL25: 15 | BM25: 16 | BN25: 17 | BO25: 18 | BP25: 19 | BQ25: 20
B26: Heat Pumps - Unitary and Split System baseline efficiency | Y26: Minimum Efficiencies For Incentives - HP units - (Tier 1) | AX26: Heat Pumps - Baseline Checks Tier 1
D27: EER2/EER - Full Load | G27: SEER2/IEER - Part Load | J27: HSPF2/COP - Heating Eff | M27: EER - Full Load | P27: SEER - Part Load | S27: HSPF as COP - Heating Eff | V27: HSPF | AA27: EER2/EER - Full Load | AD27: SEER2/IEER - Part Load | AG27: HSPF2/COP Heating Eff | AJ27: EER - Full Load | AM27: SEER - Part Load | AP27: HSPF as COP - Heating Eff | AS27: Incentive | AU27: HSPF | AZ27: EER2/EER - Full Load | BC27: SEER2/IEER - Part Load | BF27: HSPF2/COP Heating Eff | BI27: EER - Full Load | BL27: SEER - Part Load | BO27: HSPF as COP - Heating Eff
B28: Btu/h | C28: Tons | D28: S | E28: P | F28: Unit | G28: S | H28: P | I28: Unit | J28: S | K28: P | L28: Unit | M28: S | N28: P | O28: Unit | P28: S | Q28: P | R28: Unit | S28: S | T28: P | U28: Unit | V28: S | W28: P | Y28: Btu/h | Z28: Tons | AA28: S | AB28: P | AC28: Unit | AD28: S | AE28: P | AF28: Unit | AG28: S | AH28: P | AI28: Unit | AJ28: S | AK28: P | AL28: Unit | AM28: S | AN28: P | AO28: Unit | AP28: S | AQ28: P | AR28: Unit | AS28: Amount | AT28: Unit | AU28: S | AV28: P | AX28: Btu/h | AY28: Tons | AZ28: S | BA28: P | BB28: Unit | BC28: S | BD28: P | BE28: Unit | BF28: S | BG28: P | BH28: Unit | BI28: S | BJ28: P | BK28: Unit | BL28: S | BM28: P | BN28: Unit | BO28: S | BP28: P | BQ28: Unit
B29: 0 | C29: =B29/12000 -> 0 | D29: 11.7 | E29: 10.6 | F29: EER2 | G29: 14.3 | H29: 13.4 | I29: SEER2 | J29: =7.5/3.413 -> 2.197480223 | K29: =6.7/3.413 -> 1.963082332 | L29: COP | M29: =D29/0.95 -> 12.31578947 | N29: =E29/0.95 -> 11.15789474 | O29: EER | P29: =G29/0.95 -> 15.05263158 | Q29: =H29/0.95 -> 14.10526316 | R29: SEER | S29: =J29/0.85 -> 2.58527085 | T29: =K29/0.84 -> 2.337002776 | U29: COP | V29: =S29*3.413 -> 8.823529412 | W29: =T29*3.413 -> 7.976190476 | Y29: 0 | Z29: =Y29/12000 -> 0 | AC29: EER2 | AD29: 15.2 | AE29: 14.3 | AF29: SEER2 | AG29: =7.8/3.413 -> 2.285379432 | AH29: =7/3.413 -> 2.050981541 | AI29: COP | AL29: EER | AM29: =AD29/0.95 -> 16 | AN29: 15 | AO29: SEER | AP29: =9.1/3.413 -> 2.666276004 | AQ29: =8.3/3.413 -> 2.431878113 | AR29: COP | AS29: 100 | AT29: ton | AU29: =AP29*3.413 -> 9.1 | AV29: =AQ29*3.413 -> 8.3 | AX29: 0 | AY29: =AX29/12000 -> 0 | AZ29: =IF(OR(AA29="",$D$29=""),"",(AA29/$D$29)) ->  | BA29: =IF(OR(AB29="",$E$29=""),"",(AB29/$E$29)) ->  | BB29: EER2 | BC29: =IF(OR(AD29="",$G$29=""),"",(AD29/$G$29)) -> 1.062937063 | BD29: =IF(OR(AE29="",$H$29=""),"",(AE29/$H$29)) -> 1.067164179 | BE29: SEER2 | BF29: =IF(OR(AG29="",$J$29=""),"",(AG29/$J$29)) -> 1.04 | BG29: =IF(OR(AH29="",$K$29=""),"",(AH29/$K$29)) -> 1.044776119 | BH29: COP | BI29: =IF(OR(AJ29="",$M$29=""),"",(AJ29/$M$29)) ->  | BJ29: =IF(OR(AK29="",$N$29=""),"",(AK29/$N$29)) ->  | BK29: EER | BL29: =IF(OR(AM29="",$P$29=""),"",(AM29/$P$29)) -> 1.062937063 | BM29: =IF(OR(AN29="",$Q$29=""),"",(AN29/$Q$29)) -> 1.063432836 | BN29: SEER | BO29: =IF(OR(AP29="",$S$29=""),"",(AP29/$S$29)) -> 1.031333333 | BP29: =IF(OR(AQ29="",$T$29=""),"",(AQ29/$T$29)) -> 1.040597015 | BQ29: COP
B30: 45000 | C30: =B30/12000 -> 3.75 | D30: 11.7 | E30: 10.6 | F30: EER2 | G30: 14.3 | H30: 13.4 | I30: SEER2 | J30: =7.5/3.413 -> 2.197480223 | K30: =6.7/3.413 -> 1.963082332 | L30: COP | M30: =D30/0.95 -> 12.31578947 | N30: =E30/0.95 -> 11.15789474 | O30: EER | P30: =G30/0.95 -> 15.05263158 | Q30: =H30/0.95 -> 14.10526316 | R30: SEER | S30: =J30/0.85 -> 2.58527085 | T30: =K30/0.84 -> 2.337002776 | U30: COP | V30: =S30*3.413 -> 8.823529412 | W30: =T30*3.413 -> 7.976190476 | Y30: 45000 | Z30: =Y30/12000 -> 3.75 | AC30: EER2 | AD30: 15.2 | AE30: 14.3 | AF30: SEER2 | AG30: =7.8/3.413 -> 2.285379432 | AH30: =7/3.413 -> 2.050981541 | AI30: COP | AL30: EER | AM30: =AD30/0.95 -> 16 | AN30: 15 | AO30: SEER | AP30: =9.1/3.413 -> 2.666276004 | AQ30: =8.3/3.413 -> 2.431878113 | AR30: COP | AS30: 100 | AT30: ton | AU30: =AP30*3.413 -> 9.1 | AV30: =AQ30*3.413 -> 8.3 | AX30: 45000 | AY30: =AX30/12000 -> 3.75 | AZ30: =IF(OR(AA30="",$D$30=""),"",(AA30/$D$30)) ->  | BA30: =IF(OR(AB30="",$E$30=""),"",(AB30/$E$30)) ->  | BB30: EER2 | BC30: =IF(OR(AD30="",$G$30=""),"",(AD30/$G$30)) -> 1.062937063 | BD30: =IF(OR(AE30="",$H$30=""),"",(AE30/$H$30)) -> 1.067164179 | BE30: SEER2 | BF30: =IF(OR(AG30="",$J$30=""),"",(AG30/$J$30)) -> 1.04 | BG30: =IF(OR(AH30="",$K$30=""),"",(AH30/$K$30)) -> 1.044776119 | BH30: COP | BI30: =IF(OR(AJ30="",$M$30=""),"",(AJ30/$M$30)) ->  | BJ30: =IF(OR(AK30="",$N$30=""),"",(AK30/$N$30)) ->  | BK30: EER | BL30: =IF(OR(AM30="",$P$30=""),"",(AM30/$P$30)) -> 1.062937063 | BM30: =IF(OR(AN30="",$Q$30=""),"",(AN30/$Q$30)) -> 1.063432836 | BN30: SEER | BO30: =IF(OR(AP30="",$S$30=""),"",(AP30/$S$30)) -> 1.031333333 | BP30: =IF(OR(AQ30="",$T$30=""),"",(AQ30/$T$30)) -> 1.040597015 | BQ30: COP
B31: 65000 | C31: =B31/12000 -> 5.416666667 | E31: 10.8 | F31: EER | H31: 13.9 | I31: IEER | K31: 3.4 | L31: COP | Y31: 65000 | Z31: 5.416666667 | AC31: EER | AE31: 15.3 | AF31: IEER | AH31: 0 | AI31: COP | AL31: EER | AS31: 75 | AT31: ton | AX31: 65000 | AY31: =AX31/12000 -> 5.416666667 | AZ31: =IF(OR(AA31="",$D$31=""),"",(AA31/$D$31)) ->  | BA31: =IF(OR(AB31="",$E$31=""),"",(AB31/$E$31)) ->  | BB31: EER | BC31: =IF(OR(AD31="",$G$31=""),"",(AD31/$G$31)) ->  | BD31: =IF(OR(AE31="",$H$31=""),"",(AE31/$H$31)) -> 1.100719424 | BE31: IEER | BF31: =IF(OR(AG31="",$J$31=""),"",(AG31/$J$31)) ->  | BG31: =IF(OR(AH31="",$K$31=""),"",(AH31/$K$31)) -> 0 | BH31: COP | BI31: =IF(OR(AJ31="",$M$31=""),"",(AJ31/$M$31)) ->  | BJ31: =IF(OR(AK31="",$N$31=""),"",(AK31/$N$31)) ->  | BL31: =IF(OR(AM31="",$P$31=""),"",(AM31/$P$31)) ->  | BM31: =IF(OR(AN31="",$Q$31=""),"",(AN31/$Q$31)) ->  | BO31: =IF(OR(AP31="",$S$31=""),"",(AP31/$S$31)) ->  | BP31: =IF(OR(AQ31="",$T$31=""),"",(AQ31/$T$31)) -> 
B32: 135000 | C32: 11.25 | E32: 10.4 | F32: EER | H32: 13.3 | I32: IEER | K32: 3.3 | L32: COP | Y32: 135000 | Z32: 11.25 | AC32: EER | AE32: 14.7 | AF32: IEER | AH32: 0 | AI32: COP | AL32: EER | AS32: 55 | AT32: ton | AX32: 135000 | AY32: 11.25 | AZ32: =IF(OR(AA32="",$D$32=""),"",(AA32/$D$32)) ->  | BA32: =IF(OR(AB32="",$E$32=""),"",(AB32/$E$32)) ->  | BB32: EER | BC32: =IF(OR(AD32="",$G$32=""),"",(AD32/$G$32)) ->  | BD32: =IF(OR(AE32="",$H$32=""),"",(AE32/$H$32)) -> 1.105263158 | BE32: IEER | BF32: =IF(OR(AG32="",$J$32=""),"",(AG32/$J$32)) ->  | BG32: =IF(OR(AH32="",$K$32=""),"",(AH32/$K$32)) -> 0 | BH32: COP | BI32: =IF(OR(AJ32="",$M$32=""),"",(AJ32/$M$32)) ->  | BJ32: =IF(OR(AK32="",$N$32=""),"",(AK32/$N$32)) ->  | BL32: =IF(OR(AM32="",$P$32=""),"",(AM32/$P$32)) ->  | BM32: =IF(OR(AN32="",$Q$32=""),"",(AN32/$Q$32)) ->  | BO32: =IF(OR(AP32="",$S$32=""),"",(AP32/$S$32)) ->  | BP32: =IF(OR(AQ32="",$T$32=""),"",(AQ32/$T$32)) -> 
B33: 240000 | C33: 20 | E33: 9.3 | F33: EER | H33: 12.3 | I33: IEER | K33: 3.2 | L33: COP | Y33: 240000 | Z33: 20 | AC33: EER | AE33: 13.6 | AF33: IEER | AH33: 0 | AI33: COP | AL33: EER | AS33: 50 | AT33: ton | AX33: 240000 | AY33: 20 | AZ33: =IF(OR(AA33="",$D$33=""),"",(AA33/$D$33)) ->  | BA33: =IF(OR(AB33="",$E$33=""),"",(AB33/$E$33)) ->  | BB33: EER | BC33: =IF(OR(AD33="",$G$33=""),"",(AD33/$G$33)) ->  | BD33: =IF(OR(AE33="",$H$33=""),"",(AE33/$H$33)) -> 1.105691057 | BE33: IEER | BF33: =IF(OR(AG33="",$J$33=""),"",(AG33/$J$33)) ->  | BG33: =IF(OR(AH33="",$K$33=""),"",(AH33/$K$33)) -> 0 | BH33: COP | BI33: =IF(OR(AJ33="",$M$33=""),"",(AJ33/$M$33)) ->  | BJ33: =IF(OR(AK33="",$N$33=""),"",(AK33/$N$33)) ->  | BL33: =IF(OR(AM33="",$P$33=""),"",(AM33/$P$33)) ->  | BM33: =IF(OR(AN33="",$Q$33=""),"",(AN33/$Q$33)) ->  | BO33: =IF(OR(AP33="",$S$33=""),"",(AP33/$S$33)) ->  | BP33: =IF(OR(AQ33="",$T$33=""),"",(AQ33/$T$33)) -> 
C35: *Black text from CEAM. Red text from AR TRM v9.2. Blue text is calculated from CEAM conversion factors | Y35: Minimum Efficiencies For Incentives - HP units - (Tier 2) | AX35: Heat Pumps - Baseline Checks Tier 2
AA36: EER2/EER - Full Load | AD36: SEER2/IEER - Part Load | AG36: HSPF2/COP Heating Eff | AJ36: EER - Full Load | AM36: SEER - Part Load | AP36: HSPF as COP - Heating Eff | AS36: Incentive | AU36: HSPF | AZ36: EER2/EER - Full Load | BC36: SEER2/IEER - Part Load | BF36: HSPF2/COP Heating Eff | BI36: EER - Full Load | BL36: SEER - Part Load | BO36: HSPF as COP - Heating Eff
Y37: Btu/h | Z37: Tons | AA37: S | AB37: P | AC37: Unit | AD37: S | AE37: P | AF37: Unit | AG37: S | AH37: P | AI37: Unit | AJ37: S | AK37: P | AL37: Unit | AM37: S | AN37: P | AO37: Unit | AP37: S | AQ37: P | AR37: Unit | AS37: Amount | AT37: Unit | AU37: S | AV37: P | AX37: Btu/h | AY37: Tons | AZ37: S | BA37: P | BB37: Unit | BC37: S | BD37: P | BE37: Unit | BF37: S | BG37: P | BH37: Unit | BI37: S | BJ37: P | BK37: Unit | BL37: S | BM37: P | BN37: Unit | BO37: S | BP37: P | BQ37: Unit
Y38: 0 | Z38: =Y38/12000 -> 0 | AC38: EER2 | AD38: 16.15 | AE38: 15.2 | AF38: SEER2 | AG38: =8/3.413 -> 2.343978904 | AH38: =7.2/3.413 -> 2.109581014 | AI38: COP | AL38: EER | AM38: =AD38/0.95 -> 17 | AN38: =AE38/0.95 -> 16 | AO38: SEER | AP38: =9.4/3.413 -> 2.754175212 | AQ38: =8.5/3.413 -> 2.490477586 | AR38: COP | AS38: 125 | AT38: ton | AU38: =AP38*3.413 -> 9.4 | AV38: =AQ38*3.413 -> 8.5 | AX38: 0 | AY38: =AX38/12000 -> 0 | AZ38: =IF(OR(AA38="",$D$29=""),"",(AA38/$D$29)) ->  | BA38: =IF(OR(AB38="",$E$29=""),"",(AB38/$E$29)) ->  | BB38: EER2 | BC38: =IF(OR(AD38="",$G$29=""),"",(AD38/$G$29)) -> 1.129370629 | BD38: =IF(OR(AE38="",$H$29=""),"",(AE38/$H$29)) -> 1.134328358 | BE38: SEER2 | BF38: =IF(OR(AG38="",$J$29=""),"",(AG38/$J$29)) -> 1.066666667 | BG38: =IF(OR(AH38="",$K$29=""),"",(AH38/$K$29)) -> 1.074626866 | BH38: COP | BI38: =IF(OR(AJ38="",$M$29=""),"",(AJ38/$M$29)) ->  | BJ38: =IF(OR(AK38="",$N$29=""),"",(AK38/$N$29)) ->  | BK38: EER | BL38: =IF(OR(AM38="",$P$29=""),"",(AM38/$P$29)) -> 1.129370629 | BM38: =IF(OR(AN38="",$Q$29=""),"",(AN38/$Q$29)) -> 1.134328358 | BN38: SEER | BO38: =IF(OR(AP38="",$S$29=""),"",(AP38/$S$29)) -> 1.065333333 | BP38: =IF(OR(AQ38="",$T$29=""),"",(AQ38/$T$29)) -> 1.065671642 | BQ38: COP
Y39: 45000 | Z39: =Y39/12000 -> 3.75 | AC39: EER2 | AD39: 16.15 | AE39: 15.2 | AF39: SEER2 | AG39: =8/3.413 -> 2.343978904 | AH39: =7.2/3.413 -> 2.109581014 | AI39: COP | AL39: EER | AM39: =AD39/0.95 -> 17 | AN39: =AE39/0.95 -> 16 | AO39: SEER | AP39: =9.4/3.413 -> 2.754175212 | AQ39: =8.5/3.413 -> 2.490477586 | AR39: COP | AS39: 125 | AT39: ton | AU39: =AP39*3.413 -> 9.4 | AV39: =AQ39*3.413 -> 8.5 | AX39: 45000 | AY39: =AX39/12000 -> 3.75 | AZ39: =IF(OR(AA39="",$D$30=""),"",(AA39/$D$30)) ->  | BA39: =IF(OR(AB39="",$E$30=""),"",(AB39/$E$30)) ->  | BB39: EER2 | BC39: =IF(OR(AD39="",$G$30=""),"",(AD39/$G$30)) -> 1.129370629 | BD39: =IF(OR(AE39="",$H$30=""),"",(AE39/$H$30)) -> 1.134328358 | BE39: SEER2 | BF39: =IF(OR(AG39="",$J$30=""),"",(AG39/$J$30)) -> 1.066666667 | BG39: =IF(OR(AH39="",$K$30=""),"",(AH39/$K$30)) -> 1.074626866 | BH39: COP | BI39: =IF(OR(AJ39="",$M$30=""),"",(AJ39/$M$30)) ->  | BJ39: =IF(OR(AK39="",$N$30=""),"",(AK39/$N$30)) ->  | BK39: EER | BL39: =IF(OR(AM39="",$P$30=""),"",(AM39/$P$30)) -> 1.129370629 | BM39: =IF(OR(AN39="",$Q$30=""),"",(AN39/$Q$30)) -> 1.134328358 | BN39: SEER | BO39: =IF(OR(AP39="",$S$30=""),"",(AP39/$S$30)) -> 1.065333333 | BP39: =IF(OR(AQ39="",$T$30=""),"",(AQ39/$T$30)) -> 1.065671642 | BQ39: COP
Y40: 65000 | Z40: 5.416666667 | AC40: EER | AE40: 15.8 | AF40: IEER | AH40: 0 | AI40: COP | AS40: 100 | AT40: ton | AX40: 65000 | AY40: =AX40/12000 -> 5.416666667 | AZ40: =IF(OR(AA40="",$D$31=""),"",(AA40/$D$31)) ->  | BA40: =IF(OR(AB40="",$E$31=""),"",(AB40/$E$31)) ->  | BB40: EER | BC40: =IF(OR(AD40="",$G$31=""),"",(AD40/$G$31)) ->  | BD40: =IF(OR(AE40="",$H$31=""),"",(AE40/$H$31)) -> 1.136690647 | BE40: IEER | BF40: =IF(OR(AG40="",$J$31=""),"",(AG40/$J$31)) ->  | BG40: =IF(OR(AH40="",$K$31=""),"",(AH40/$K$31)) -> 0 | BH40: COP | BI40: =IF(OR(AJ40="",$M$31=""),"",(AJ40/$M$31)) ->  | BJ40: =IF(OR(AK40="",$N$31=""),"",(AK40/$N$31)) ->  | BL40: =IF(OR(AM40="",$P$31=""),"",(AM40/$P$31)) ->  | BM40: =IF(OR(AN40="",$Q$31=""),"",(AN40/$Q$31)) ->  | BO40: =IF(OR(AP40="",$S$31=""),"",(AP40/$S$31)) ->  | BP40: =IF(OR(AQ40="",$T$31=""),"",(AQ40/$T$31)) -> 
Y41: 135000 | Z41: 11.25 | AC41: EER | AE41: 15.1 | AF41: IEER | AH41: 0 | AI41: COP | AS41: 80 | AT41: ton | AX41: 135000 | AY41: 11.25 | AZ41: =IF(OR(AA41="",$D$32=""),"",(AA41/$D$32)) ->  | BA41: =IF(OR(AB41="",$E$32=""),"",(AB41/$E$32)) ->  | BB41: EER | BC41: =IF(OR(AD41="",$G$32=""),"",(AD41/$G$32)) ->  | BD41: =IF(OR(AE41="",$H$32=""),"",(AE41/$H$32)) -> 1.135338346 | BE41: IEER | BF41: =IF(OR(AG41="",$J$32=""),"",(AG41/$J$32)) ->  | BG41: =IF(OR(AH41="",$K$32=""),"",(AH41/$K$32)) -> 0 | BH41: COP | BI41: =IF(OR(AJ41="",$M$32=""),"",(AJ41/$M$32)) ->  | BJ41: =IF(OR(AK41="",$N$32=""),"",(AK41/$N$32)) ->  | BL41: =IF(OR(AM41="",$P$32=""),"",(AM41/$P$32)) ->  | BM41: =IF(OR(AN41="",$Q$32=""),"",(AN41/$Q$32)) ->  | BO41: =IF(OR(AP41="",$S$32=""),"",(AP41/$S$32)) ->  | BP41: =IF(OR(AQ41="",$T$32=""),"",(AQ41/$T$32)) -> 
Y42: 240000 | Z42: 20 | AC42: EER | AE42: 14.1 | AF42: IEER | AH42: 0 | AI42: COP | AS42: 75 | AT42: ton | AX42: 240000 | AY42: 20 | AZ42: =IF(OR(AA42="",$D$33=""),"",(AA42/$D$33)) ->  | BA42: =IF(OR(AB42="",$E$33=""),"",(AB42/$E$33)) ->  | BB42: EER | BC42: =IF(OR(AD42="",$G$33=""),"",(AD42/$G$33)) ->  | BD42: =IF(OR(AE42="",$H$33=""),"",(AE42/$H$33)) -> 1.146341463 | BE42: IEER | BF42: =IF(OR(AG42="",$J$33=""),"",(AG42/$J$33)) ->  | BG42: =IF(OR(AH42="",$K$33=""),"",(AH42/$K$33)) -> 0 | BH42: COP | BI42: =IF(OR(AJ42="",$M$33=""),"",(AJ42/$M$33)) ->  | BJ42: =IF(OR(AK42="",$N$33=""),"",(AK42/$N$33)) ->  | BL42: =IF(OR(AM42="",$P$33=""),"",(AM42/$P$33)) ->  | BM42: =IF(OR(AN42="",$Q$33=""),"",(AN42/$Q$33)) ->  | BO42: =IF(OR(AP42="",$S$33=""),"",(AP42/$S$33)) ->  | BP42: =IF(OR(AQ42="",$T$33=""),"",(AQ42/$T$33)) -> 
B47: 1 | C47: 2 | D47: 3 | E47: 4 | F47: 5 | N47: 1 | O47: 2 | P47: 3 | Q47: 4 | R47: 5 | Y47: 1 | Z47: 2 | AA47: 3 | AB47: 4
B48: PTAC | N48: PTAC - Minimum Efficiencies allowed | Y48: PTAC - Baseline checks
D49: Baseline Cooling Efficiency | P49: Minimum Cooling Efficiency | R49: Incentive | AA49: Minimum Cooling Efficiency
B50: Btu/h | C50: Tons | D50: Standard and Non-Standard | E50: Capacity Multiplier | F50: Unit | N50: Btu/h | O50: Tons | P50: Standard and Non-Standard | Q50: Unit | R50: Amount | S50: Unit | Y50: Btu/h | Z50: Tons | AA50: Standard and Non-Standard | AB50: Unit
B51: 0 | C51: =B51/12000 -> 0 | D51: 12.5 | E51: -0.213 | F51: EER | N51: 0 | O51: =N51/12000 -> 0 | P51: 12 | Q51: EER | R51: 20 | S51: Unit | Y51: 0 | Z51: =Y51/12000 -> 0 | AB51: EER
B52: 9000 | C52: =B52/12000 -> 0.75 | D52: 12.5 | E52: -0.213 | F52: EER | N52: 9000 | O52: =N52/12000 -> 0.75 | P52: 11.5 | Q52: EER | R52: 30 | S52: Unit | Y52: 9000 | Z52: =Y52/12000 -> 0.75 | AB52: EER
B53: 12000 | C53: =B53/12000 -> 1 | D53: 12.5 | E53: -0.213 | F53: EER | N53: 12000 | O53: =N53/12000 -> 1 | P53: 10.5 | Q53: EER | R53: 40 | S53: Unit | Y53: 12000 | Z53: =Y53/12000 -> 1 | AB53: EER
B57: 1 | C57: 2 | D57: 3 | E57: 4 | F57: 5 | G57: 6 | H57: 7 | I57: 8 | N57: 1 | O57: 2 | P57: 3 | Q57: 4 | R57: 5 | S57: 6 | Y57: 1 | Z57: 2 | AA57: 3 | AB57: 4 | AC57: 5 | AD57: 6
B58: PTHP | N58: PTHP - Minimum Efficiencies allowed | Y58: PTHP - Minimum Efficiencies allowed
D59: Baseline Cooling Efficiency | G59: Baseline Heating Efficiency | P59: Minimum Cooling Efficiency | R59: Minimum Heating Efficiency | T59: Incentive | AA59: Minimum Cooling Efficiency | AC59: Minimum Heating Efficiency
B60: Btu/h | C60: Tons | D60: Standard and Non-Standard | E60: Capacity Multiplier | F60: Unit | G60: Standard and Non-Standard | H60: Capacity Multiplier | I60: Unit | N60: Btu/h | O60: Tons | P60: Standard and Non-Standard | Q60: Unit | R60: Standard and Non-Standard | S60: Unit | T60: Amount | U60: Unit | Y60: Btu/h | Z60: Tons | AA60: Standard and Non-Standard | AB60: Unit | AC60: Standard and Non-Standard | AD60: Unit
B61: 0 | C61: =B61/12000 -> 0 | D61: 12.3 | E61: -0.213 | F61: EER | G61: 3.2 | H61: -0.026 | I61: COP | N61: 0 | O61: =N61/12000 -> 0 | P61: 12 | Q61: EER | R61: 3.3 | S61: COP | T61: 40 | U61: Unit | Y61: 0 | Z61: =Y61/12000 -> 0 | AB61: EER | AD61: COP
B62: 9000 | C62: =B62/12000 -> 0.75 | D62: 12.3 | E62: -0.213 | F62: EER | G62: 3.2 | H62: -0.026 | I62: COP | N62: 9000 | O62: =N62/12000 -> 0.75 | P62: 11.5 | Q62: EER | R62: 3.2 | S62: COP | T62: 50 | U62: Unit | Y62: 9000 | Z62: =Y62/12000 -> 0.75 | AB62: EER | AD62: COP
B63: 12000 | C63: 1 | D63: 12.3 | E63: -0.213 | F63: EER | G63: 3.2 | H63: -0.026 | I63: COP | N63: 12000 | O63: =N63/12000 -> 1 | P63: 10.3 | Q63: EER | R63: 3.2 | S63: COP | T63: 60 | U63: Unit | Y63: 12000 | Z63: =Y63/12000 -> 1 | AB63: EER | AD63: COP

Sheet Window Film
A1: Fill in Blue Cells Only!
A2: WINDOW FILM TECHNICAL REQUIREMENTS AND INCENTIVES
A3: § To qualify for an incentive window film must be installed on south, east or west facing windows and cover the entire window. Installation on north facing windows is not eligible. § Window film must have a maximum Solar Heat Gain Coefficient (SHGC) of 0.24. § Square feet installed must be entered as a whole number.
A4: Building Type | B4: Location/Floor/Suite # | C4: Total Square Feet Installed | D4: Number of Windows | E4: Film Manufacturer / Product Code | F4: SHGC | G4: Incentive Per Sq. Ft. | H4: Window Facing Orientation | I4: Total Incentive | L4: Incentive | M4: Window Orientation | N4: kWh/SF | O4: kW/SF | P4: Therms/SF | Q4: kWh | R4: kW | S4: Therms
G5: =CONCATENATE("$",L5,"/sq. ft.") -> $1/sq. ft. | I5: =IF(OR(AND(F5>0,F5<=0.24,A5<>"")),C5*1,0) -> 0 | L5: 1 | M5: South | N5: =IF(I5=0,0,VLOOKUP($A5,'Window Film Lookups'!$C$9:$F$22,2,FALSE)) -> 0 | O5: =IF(I5=0,0,VLOOKUP($A5,'Window Film Lookups'!$C$9:$F$22,4,FALSE)) -> 0 | P5: =IF(I5=0,0,VLOOKUP($A5,'Window Film Lookups'!$C$9:$F$22,3,FALSE)) -> 0 | Q5: =N5*$C5 -> 0 | R5: =O5*$C5 -> 0 | S5: 0
G6: =CONCATENATE("$",L6,"/sq. ft.") -> $1/sq. ft. | I6: =IF(OR(AND(F6>0,F6<=0.24,A6<>"")),C6*1,0) -> 0 | L6: =L5 -> 1 | M6: East | N6: =IF(I6=0,0,VLOOKUP($A6,'Window Film Lookups'!$C$9:$F$22,2,FALSE)) -> 0 | O6: =IF(I6=0,0,VLOOKUP($A6,'Window Film Lookups'!$C$9:$F$22,4,FALSE)) -> 0 | P6: =IF(I6=0,0,VLOOKUP($A6,'Window Film Lookups'!$C$9:$F$22,3,FALSE)) -> 0 | Q6: =N6*$C6 -> 0 | R6: =O6*$C6 -> 0 | S6: =P6*$C6 -> 0
G7: $1/sq. ft. | I7: =IF(OR(AND(F7>0,F7<=0.24,A7<>"")),C7*1,0) -> 0 | L7: =L6 -> 1 | M7: West | N7: =IF(I7=0,0,VLOOKUP($A7,'Window Film Lookups'!$C$9:$F$22,2,FALSE)) -> 0 | O7: =IF(I7=0,0,VLOOKUP($A7,'Window Film Lookups'!$C$9:$F$22,4,FALSE)) -> 0 | P7: =IF(I7=0,0,VLOOKUP($A7,'Window Film Lookups'!$C$9:$F$22,3,FALSE)) -> 0 | Q7: 0 | R7: 0 | S7: 0
G8: $1/sq. ft. | I8: =IF(OR(AND(F8>0,F8<=0.24,A8<>"")),C8*1,0) -> 0 | L8: 1 | N8: =IF(I8=0,0,VLOOKUP($A8,'Window Film Lookups'!$C$9:$F$22,2,FALSE)) -> 0 | O8: =IF(I8=0,0,VLOOKUP($A8,'Window Film Lookups'!$C$9:$F$22,4,FALSE)) -> 0 | P8: =IF(I8=0,0,VLOOKUP($A8,'Window Film Lookups'!$C$9:$F$22,3,FALSE)) -> 0 | Q8: 0 | R8: 0 | S8: 0
A9: Total Requested Incentive | I9: =SUM(I5:I8) -> 0
I11: ="Version " & 'Version Tracking'!C4 -> Version 14.2

Sheet Cool Roof
A2: COOL ROOF TECHNICAL REQUIREMENTS AND INCENTIVES
A3: § Roof coverings must be certified by CRRC (Cool Roof Rating Council). § The roof must have at least an initial rated reflectance of 0.65, and a rated reflectance of 0.50 after 3 years of exposure. § The roof covering can’t be ballasted, or otherwise mostly covered with other materials. § Roof must be located over an air-conditioned space.
A4: Building Type | B4: Roofing Brand/Manufacturer & Product Code | C4: Cool Roof Application | D4: Initial Reflectance | E4: Aged Reflectanace | F4: Roof Area (sq. ft.) | G4: Incentive Per Sq. Ft. | H4: Total Incentive | K4: Location | L4: ESF | M4: DSF | N4: kWh | O4: kW | P4: kWh/SF | Q4: kW/SF
G5: 0.1 | H5: =IF(OR(D5="",E5="",F5=""),0,IF(OR(K5=$L$16,K5=$L$17),K5,IF(AND(D5>=0.65,E5>=0.5),F5*0.1,0))) -> 0 | K5: =IFERROR(IF(A5="","",IF('Project Information'!$L$6="",$L$16,VLOOKUP('Project Information'!$L$6,Validation!$B$115:$D$514,3,FALSE))),$L$17) ->  | L5: =IFERROR(INDEX(Validation!D$52:D$87,MATCH(1,($A5=Validation!$B$52:$B$87)*($K5=Validation!$C$52:$C$87),0)),0) -> 0 | M5: =IFERROR(INDEX(Validation!E$52:E$87,MATCH(1,($A5=Validation!$B$52:$B$87)*($K5=Validation!$C$52:$C$87),0)),0) -> 0 | N5: =$F5*L5 -> 0 | O5: =$F5*M5 -> 0 | P5: =IFERROR(N5/F5,0) -> 0 | Q5: =IFERROR(O5/F5,0) -> 0
G6: 0.1 | H6: =IF(OR(D6="",E6="",F6=""),0,IF(OR(K6=$L$16,K6=$L$17),K6,IF(AND(D6>=0.65,E6>=0.5),F6*0.1,0))) -> 0 | K6: =IFERROR(IF(A6="","",IF('Project Information'!$L$6="",$L$16,VLOOKUP('Project Information'!$L$6,Validation!$B$115:$D$514,3,FALSE))),$L$17) ->  | L6: =IFERROR(INDEX(Validation!D$52:D$87,MATCH(1,($A6=Validation!$B$52:$B$87)*($K6=Validation!$C$52:$C$87),0)),0) -> 0 | M6: =IFERROR(INDEX(Validation!E$52:E$87,MATCH(1,($A6=Validation!$B$52:$B$87)*($K6=Validation!$C$52:$C$87),0)),0) -> 0 | N6: =$F6*L6 -> 0 | O6: =$F6*M6 -> 0 | P6: =IFERROR(N6/F6,0) -> 0 | Q6: =IFERROR(O6/F6,0) -> 0
G7: 0.1 | H7: 0 | K7: =IFERROR(IF(A7="","",IF('Project Information'!$L$6="",$L$16,VLOOKUP('Project Information'!$L$6,Validation!$B$115:$D$514,3,FALSE))),$L$17) ->  | L7: =IFERROR(INDEX(Validation!D$52:D$87,MATCH(1,($A7=Validation!$B$52:$B$87)*($K7=Validation!$C$52:$C$87),0)),0) -> 0 | M7: =IFERROR(INDEX(Validation!E$52:E$87,MATCH(1,($A7=Validation!$B$52:$B$87)*($K7=Validation!$C$52:$C$87),0)),0) -> 0 | N7: 0 | O7: 0 | P7: 0 | Q7: 0
G8: 0.1 | H8: 0 | K8: =IFERROR(IF(A8="","",IF('Project Information'!$L$6="",$L$16,VLOOKUP('Project Information'!$L$6,Validation!$B$115:$D$514,3,FALSE))),$L$17) ->  | L8: =IFERROR(INDEX(Validation!D$52:D$87,MATCH(1,($A8=Validation!$B$52:$B$87)*($K8=Validation!$C$52:$C$87),0)),0) -> 0 | M8: =IFERROR(INDEX(Validation!E$52:E$87,MATCH(1,($A8=Validation!$B$52:$B$87)*($K8=Validation!$C$52:$C$87),0)),0) -> 0 | N8: 0 | O8: 0 | P8: 0 | Q8: 0
A9: Total Requested Incentive | H9: =SUM(H5:H8) -> 0
H11: ="Version " & 'Version Tracking'!C4 -> Version 14.2
N12: Summary Table
N13: Total kWh | O13: Total Summer Coincident Peak (kW) | P13: Total Incentive
N14: =SUM(N5:N8) -> 0 | O14: =SUM(O5:O8) -> 0 | P14: =H9 -> 0
K16: Missing zip code message: | L16: Fill in zip code in cell L6 on Project Information tab
K17: Non-eligible zip code message: | L17: Ineligible zip code. Please check cell L6 on Project Information tab

Sheet Window Film Lookups (hidden)
C2: Data Provided from the evaluator
C5: BuildingTypeWF | D5: Annual window film savings/sq. ft.
D6: Measure | E6: Measure | F6: Measure Coincident Summer Elec. Peak Differential
D7: Total Elec. Differential | E7: Total Gas Differential | F7: (kW)
D8: (kWh) | E8: (Therms)
C9: Elementary School | D9: 5 | E9: 0.159 | F9: 0.002
C10: Fast Food | D10: 12 | E10: -0.379 | F10: 0.004
C11: Full Restaurant | D11: 11 | E11: -0.367 | F11: 0.004
C12: Grocery | D12: 2 | E12: -0.52 | F12: 0.002
C13: High School | D13: 6 | E13: 0.047 | F13: 0.002
C14: Hospital | D14: 35 | E14: 2.2 | F14: 0.005
C15: Large Hotel | D15: 7 | E15: 0.009 | F15: 0.002
C16: Large Office | D16: 16 | E16: 0.046 | F16: 0.004
C17: OutPatient | D17: 32 | E17: 1.102 | F17: 0.005
C18: Retail | D18: 10 | E18: -0.335 | F18: 0.004
C19: Small Hotel | D19: 12 | E19: -0.131 | F19: 0.003
C20: Small Office | D20: 12 | E20: -0.253 | F20: 0.004
C21: Strip Mall | D21: 9 | E21: -0.43 | F21: 0.004
C22: Warehouse | D22: 6 | E22: -0.325 | F22: 0.003

Sheet HVAC Chillers
A1: Fill in Blue Cells Only!
A2: HVAC CHILLER TECHNICAL REQUIREMENTS
A3: § Air and water cooled chilling packages used in a single chiller HVAC are eligible systems. § If the chiller serves HVAC and non-HVAC loads, the non-HVAC load may not exceed 25 percent of the chiller’s rated capacity. § Chillers being installed must meet the full load and Integrated Part Load Value (IPLV) efficiency values. § For chillers that are manufactured with variable frequency devices (VFDs) as part of the chiller package, the VFDs will not be independently eligible for additional incentives. § Chillers with a VFD controlling the compressor must be applied for using table 2. § Water chilling equipment must meet current Air-Conditioning and Refrigeration Institute (ARI) standards 550/590, be UL listed, and use a minimum ozone-depleting refrigerant. § Chillers purchased and installed for backup or redundant systems are not eligible for incentives.
A5: INCENTIVE CALCULATION INSTRUCTIONS
A6: Incentives are available for high-efficiency base units and any incremental part load efficiency improvements. To calculate total incentive, follow these steps: Step 1 Identify the appropriate table for reviewing the eligibility requirements and calculating the incentive. Use Table 1 to review the requirements and enter information for single-speed chillers. Use Table 2 to review the requirements and enter information for VFD-controlled chillers. Base Unit Incentive is calculated by the following formula: Chiller Size (Net Tons) x Base Unit Incentive = Base Total Incentive Performance Incentive is calculated as follows: § Air Cooled Chillers (Capped at $125/ton for VFD-controlled air cooled chillers) [(Proposed Equipment Unit Efficiency – Minimum Incentive Efficiency) x 10] x Chiller Size (Net Tons) x Performance Incentive = Performance Total Incentive § Water Cooled Chillers [(Minimum Incentive Efficiency – Proposed Equipment Unit Efficiency) x 100] x Chiller Size (Net Tons) x Performance Incentive = Performance Total Incentive The efficiency value (EER, IPLV, or kW/ton) that represents the greater difference between the Minimum Incentive Efficiency and the Proposed Equipment Unit Efficiency should be used in calculating the incentive Step 2 Complete Table 1A or Table 2A with the Chiller Plant Operating Parameters. Be sure to insert total estimated plant load (Tons).
A8: TABLE 1: HVAC CHILLER INCENTIVES - SINGLE-SPEED CHILLERS
A9: Type | B9: Unit Size - ARI Net Tons | C9: Minimum Efficiency (Full Load and IPLV) | D9: Proposed Equipment | H9: Incentives
D10: Chiller Size (Net Tons) | E10: Full Load | G10: IPLV | H10: Base Unit Incentive per Ton | I10: Base Total Incentive | J10: Performance Incentive per Ton | K10: Performance Total Incentive | L10: Requested Incentive
A12: Air Cooled Chiller with Condenser | B12: < 150 tons | C12: ≥ 10.2 EER | H12: 20 | I12: =IF(AND(E12>=10.2,G12>=13.34),D12*H12,0) -> 0 | J12: 3 | K12: =IF(OR(AND(I12>0,(E12-10.2)>=(G12-13.34))),(E12-10.2)*10*D12*J12,IF(OR(AND(I12>0,(E12-10.2)<(G12-13.34))),(G12-13.34)*10*D12*J12,0)) -> 0 | L12: =I12+K12 -> 0
C13: ≥ 13.34 IPLV
B14: ≥ 150 tons | C14: ≥ 10.2 EER | H14: 20 | I14: =IF(AND(E14>=10.2,G14>=13.6),D14*H14,0) -> 0 | J14: 3 | K14: =IF(OR(AND(I14>0,(E14-10.2)>=(G14-13.6))),(E14-10.2)*10*D14*J14,IF(OR(AND(I14>0,(E14-10.2)<(G14-13.6))),(G14-13.6)*10*D14*J14,0)) -> 0 | L14: =I14+K14 -> 0
C15: ≥ 13.6 IPLV
A16: Water Cooled Screw and Reciprocating Chillers | B16: < 150 tons | C16: ≤ 0.71 kW/ton | H16: 35 | I16: =IF(OR(AND(E16<=0.71,E16>0,G16<=0.56,G16>0)),D16*H16,0) -> 0 | J16: 4 | K16: =IF(OR(AND(I16>0,(0.71-E16)>=(0.56-G16))),(0.71-E16)*100*D16*J16,IF(OR(AND(I16>0,(0.71-E16)<(0.56-G16))),(0.56-G16)*100*D16*J16,0)) -> 0 | L16: =I16+K16 -> 0
C17: ≤ 0.56 IPLV
B18: ≥ 150 tons and < 300 tons | C18: ≤ 0.58 kW//ton | H18: 35 | I18: =IF(OR(AND(E18<=0.58,E18>0,G18<=0.47,G18>0)),D18*H18,0) -> 0 | J18: 3 | K18: =IF(OR(AND(I18>0,(0.58-E18)>=(0.47-G18))),(0.58-E18)*100*D18*J18,IF(OR(AND(I18>0,(0.58-E18)<(0.47-G18))),(0.47-G18)*100*D18*J18,0)) -> 0 | L18: =I18+K18 -> 0
C19: ≤ 0.47 IPLV
B20: ≥ 300 | C20: ≤ 0.56 kW/ton | H20: 25 | I20: =IF(OR(AND(E20<=0.56,E20>0,G20<=0.45,G20>0)),D20*H20,0) -> 0 | J20: 2 | K20: =IF(OR(AND(I20>0,(0.56-E20)>=(0.45-G20))),(0.56-E20)*100*D20*J20,IF(OR(AND(I20>0,(0.56-E20)<(0.45-G20))),(0.45-G20)*100*D20*J20,0)) -> 0 | L20: =I20+K20 -> 0
C21: ≤ 0.45 IPLV
A22: Water Cooled Centrifugal Chillers | B22: < 300 tons | C22: ≤ 0.59 kW/ton | H22: 20 | I22: =IF(OR(AND(E22<=0.59,E22>0,G22<=0.56,G22>0)),D22*H22,0) -> 0 | J22: 3 | K22: =IF(OR(AND(I22>0,(0.59-E22)>=(0.56-G22))),(0.59-E22)*100*D22*J22,IF(OR(AND(I22>0,(0.59-E22)<(0.56-G22))),(0.56-G22)*100*D22*J22,0)) -> 0 | L22: =I22+K22 -> 0
C23: ≤ 0.56 IPLV
B24: ≥ 300 and < 600 tons | C24: ≤ 0.56 kW/ton | H24: 20 | I24: =IF(OR(AND(E24<=0.56,E24>0,G24<=0.53,G24>0)),D24*H24,0) -> 0 | J24: 3 | K24: =IF(OR(AND(I24>0,(0.56-E24)>=(0.53-G24))),(0.56-E24)*100*D24*J24,IF(OR(AND(I24>0,(0.56-E24)<(0.53-G24))),(0.53-G24)*100*D24*J24,0)) -> 0 | L24: =I24+K24 -> 0
C25: ≤ 0.53 IPLV
B26: ≥ 600 tons | C26: ≤ 0.55 kW/ton | H26: 20 | I26: =IF(OR(AND(E26<=0.55,E26>0,G26<=0.52,G26>0)),D26*H26,0) -> 0 | J26: 2 | K26: =IF(OR(AND(I26>0,(0.55-E26)>=(0.52-G26))),(0.55-E26)*100*D26*J26,IF(OR(AND(I26>0,(0.55-E26)<(0.52-G26))),(0.52-G26)*100*D26*J26,0)) -> 0 | L26: =I26+K26 -> 0
C27: ≤ 0.52 IPLV
A29: TABLE 1A: CHILLER PLANT OPERATING PARAMETERS
A30: Chiller Type | B30: Tons | C30: Evaporator | F30: Condenser | J30: Peak kW/ton | L30: IPLV kW/ton
C31: Gallons per minute | D31: Entering Water Temperature | E31: Leaving Water Temperature | F31: Gallons per minute | H31: Entering Water Temperature | I31: Leaving Water Temperature
A37: TABLE 2: HVAC CHILLER INCENTIVES - VFD-CONTROLLED CHILLERS
A38: Type | B38: Unit Size - ARI Net Tons | C38: Minimum Efficiency (Full Load and IPLV) | D38: Proposed Equipment | H38: Incentives
D39: Chiller Size (Net Tons) | E39: Full Load | G39: IPLV | H39: Base Unit Incentive per Ton | I39: Base Total Incentive | J39: Performance Incentive per Ton (Capped at $125/ton for air cooled chillers) | K39: Performance Total Incentive | L39: Requested Incentive
A41: Air Cooled Chiller with Condenser | B41: < 150 tons | C41: 10.2 EER | H41: 10 | I41: =IF(AND(E41>=10.2,G41>=13.34),D41*H41,0) -> 0 | J41: 4 | K41: =IF(AND(I41>0,(E41-10.2)>=(G41-13.36),((E41-10.2)*10*D41*J41)>=(125*D41)),125*D41,IF(AND(I41>0,(E41-10.2)>=(G41-13.36),((E41-10.2)*10*D41*J41)<(125*D41)),(E41-10.2)*10*D41*J41,IF(AND(I41>0,(E41-10.2)<(G41-13.36),((G41-13.36)*10*D41*J41)>=(125*D41)),125*D41,IF(AND(I41>0,(E41-10.2)<(G41-13.36),((G41-13.36)*10*D41*J41)<(125*D41)),(G41-13.36)*10*D41*J41,0)))) -> 0 | L41: =I41+K41 -> 0
C42: 13.36 IPLV
B43: ≥ 150 tons | C43: 10.2 EER | H43: 10 | I43: =IF(AND(E43>=10.2,G43>=13.6),D43*H43,0) -> 0 | J43: 4 | K43: =IF(AND(I43>0,(E43-10.2)>=(G43-13.8),((E43-10.2)*10*D43*J43)>=(125*D43)),125*D43,IF(AND(I43>0,(E43-10.2)>=(G43-13.8),((E43-10.2)*10*D43*J43)<(125*D43)),(E43-10.2)*10*D43*J43,IF(AND(I43>0,(E43-10.2)<(G43-13.8),((G43-13.8)*10*D43*J43)>=(125*D43)),125*D43,IF(AND(I43>0,(E43-10.2)<(G43-13.8),((G43-13.8)*10*D43*J43)<(125*D43)),(G43-13.8)*10*D43*J43,0)))) -> 0 | L43: =I43+K43 -> 0
C44: 13.8 IPLV
A45: Water Cooled Screw and Reciprocating Chillers | B45: < 150 tons | C45: ≤ 0.73 kW/ton | H45: 20 | I45: =IF(OR(AND(E45<=0.73,E45>0,G45<=0.54,G45>0)),D45*H45,0) -> 0 | J45: 6 | K45: =IF(OR(AND(I45>0,(0.73-E45)>=(0.54-G45))),(0.73-E45)*100*D45*J45,IF(OR(AND(I45>0,(0.73-E45)<(0.54-G45))),(0.54-G45)*100*D45*J45,0)) -> 0 | L45: =I45+K45 -> 0
C46: ≤ 0.54 IPLV
B47: ≥ 150 tons and < 300 tons | C47: ≤ 0.61 kW/ton | H47: 15 | I47: =IF(OR(AND(E47<=0.61,E47>0,G47<=0.44,G47>0)),D47*H47,0) -> 0 | J47: 6 | K47: =IF(OR(AND(I47>0,(0.61-E47)>=(0.44-G47))),(0.61-E47)*100*D47*J47,IF(OR(AND(I47>0,(0.61-E47)<(0.44-G47))),(0.44-G47)*100*D47*J47,0)) -> 0 | L47: =I47+K47 -> 0
C48: ≤ 0.44 IPLV
B49: ≥ 300 | C49: ≤ 0.58 kW/ton | H49: 10 | I49: =IF(OR(AND(E49<=0.58,E49>0,G49<=0.44,G49>0)),D49*H49,0) -> 0 | J49: 3 | K49: =IF(OR(AND(I49>0,(0.58-E49)>=(0.44-G49))),(0.58-E49)*100*D49*J49,IF(OR(AND(I49>0,(0.58-E49)<(0.44-G49))),(0.44-G49)*100*D49*J49,0)) -> 0 | L49: =I49+K49 -> 0
C50: ≤ 0.44 IPLV
A51: Water Cooled Centrifugal Chillers | B51: < 300 tons | C51: ≤ 0.59 kW/ton | H51: 10 | I51: =IF(OR(AND(E51<=0.59,E51>0,G51<=0.42,G51>0)),D51*H51,0) -> 0 | J51: 5 | K51: =IF(OR(AND(I51>0,(0.59-E51)>=(0.42-G51))),(0.59-E51)*100*D51*J51,IF(OR(AND(I51>0,(0.59-E51)<(0.42-G51))),(0.42-G51)*100*D51*J51,0)) -> 0 | L51: =I51+K51 -> 0
C52: ≤ 0.42 IPLV
B53: ≥ 300 and < 600 tons | C53: ≤ 0.58 kW/ton | H53: 10 | I53: =IF(OR(AND(E53<=0.58,E53>0,G53<=0.38,G53>0)),D53*H53,0) -> 0 | J53: 4 | K53: =IF(OR(AND(I53>0,(0.58-E53)>=(0.38-G53))),(0.58-E53)*100*D53*J53,IF(OR(AND(I53>0,(0.58-E53)<(0.38-G53))),(0.38-G53)*100*D53*J53,0)) -> 0 | L53: =I53+K53 -> 0
C54: ≤ 0.38 IPLV
B55: ≥ 600 tons | C55: ≤ 0.57 kW/ton | H55: 10 | I55: =IF(OR(AND(E55<=0.57,E55>0,G55<=0.38,G55>0)),D55*H55,0) -> 0 | J55: 3 | K55: =IF(OR(AND(I55>0,(0.57-E55)>=(0.38-G55))),(0.57-E55)*100*D55*J55,IF(OR(AND(I55>0,(0.57-E55)<(0.38-G55))),(0.38-G55)*100*D55*J55,0)) -> 0 | L55: =I55+K55 -> 0
C56: ≤ 0.38 IPLV
A58: TABLE 2A: CHILLER PLANT OPERATING PARAMETERS
A59: Chiller Type | B59: Tons | C59: Evaporator | F59: Condenser | J59: Peak kW/ton | L59: IPLV kW/ton
C60: Gallons per minute | D60: Entering Water Temperature | E60: Leaving Water Temperature | F60: Gallons per minute | H60: Entering Water Temperature | I60: Leaving Water Temperature
A61: Water-Cooled Centrifugal | B61: 1000 | C61: 1500 | D61: 56 F | E61: 40 F | F61: 3000 | H61: 76 F | I61: 85.22 F | J61: 0.545 | L61: 0.498
L66: ="Version " & 'Version Tracking'!C4 -> Version 14.2

Sheet Validation (hidden)
C2: Equipment Name | D2: Measure Code | E2: System Type | F2: Split/Packaged | G2: Incentive Per
C3: Split System A/C | D3: S | E3: AC | F3: S | G3: Ton
C4: Unitary A/C | D4: U | E4: AC | F4: P | G4: Ton
C5: Split System Heat Pump | D5: SH | E5: HP | F5: S | G5: Ton
C6: Unitary Heat Pump | D6: UH | E6: HP | F6: P | G6: Ton
C7: Packaged Terminal A/C | D7: PTAC | E7: PTAC | F7: P | G7: Unit
C8: Packaged Terminal Heat Pump | D8: PTHP | E8: PTHP | F8: P | G8: Unit
D11: EFLHHEAT | F11: EFLHCOOL
B12: 3.2.2 Equivalent Full Load Hours | C12: HVAC Measure Building Type | D12: Charleston | E12: Columbia | F12: Charleston | G12: Columbia
C13: Assembly | D13: 475 | E13: 565 | F13: 3141 | G13: 2888
C14: Education | D14: 434 | E14: 516 | F14: 1694 | G14: 1558
C15: Garage | D15: 226 | E15: 269 | F15: 2340 | G15: 2151
C16: Grocery | D16: 454 | E16: 540 | F16: 1966 | G16: 1807
C17: Health | D17: 371 | E17: 442 | F17: 3285 | G17: 3021
C18: Industrial | D18: 188 | E18: 224 | F18: 2149 | G18: 1976
C19: Lodging | D19: 464 | E19: 552 | F19: 2311 | G19: 2125
C20: Multi-Family | D20: 353 | E20: 420 | F20: 1960 | G20: 1802
C21: Office | D21: 418 | E21: 497 | F21: 3056 | G21: 2810
C22: Retail | D22: 348 | E22: 415 | F22: 1430 | G22: 1315
C23: Warehouse | D23: 381 | E23: 453 | F23: 558 | G23: 513
C24: Other | D24: 530 | E24: 631 | F24: 2068 | G24: 1901
H27: Convenience/C-Store | I27: =_xlfn.CONCAT(H27,"|",H27,"|") -> Convenience/C-Store|Convenience/C-Store|
H28: Fitness/Recreation | I28: =_xlfn.CONCAT(H28,"|",H28,"|") -> Fitness/Recreation |Fitness/Recreation |
H29: Grocery | I29: Grocery|Grocery|
B30: Minimum Roof Area by Building Type | H30: Health Facility | I30: Health Facility|Health Facility|
B31: Building Type | C31: Minimum Area (sq. ft.) | H31: Industrial | I31: Industrial|Industrial|
B32: Office-small | C32: 5500 | H32: Lodging | I32: Lodging|Lodging|
B33: Office-medium | C33: 17875.94825 | H33: Multifamily | I33: Multifamily|Multifamily|
B34: Office-large | C34: 38352.99536 | H34: Office | I34: Office|Office|
B35: Hotel-small | C35: 10800.61493 | H35: Religious Facility | I35: Religious Facility|Religious Facility|
B36: Hotel-large | C36: 21300.05566 | H36: Restaurant | I36: Restaurant|Restaurant|
B37: Hospital | C37: 40250 | H37: Retail | I37: Retail|Retail|
B38: Warehouse-conditioned | C38: 49495.14916 | H38: School | I38: School|School|
B39: Retail-stand alone | C39: 24692.3019 | H39: University | I39: University|University|
B40: Retail-strip mall | C40: 22499.80107 | H40: Warehouse | I40: Warehouse|Warehouse|
B41: School-primary | C41: 73958.82561 | H41: Other | I41: Other|Other|
B42: School-secondary | C42: 128112.0568
B43: Other | C43: 39348.88625
B45: Cool Roof Location
B46: Charleston
B47: Columbia
B48: Greenville
B51: Building Type | C51: Location | D51: ESF | E51: DSF
B52: Office-small | C52: Charleston | D52: 0.2207568025 | E52: 9.586192702e-05
B53: Office-small | C53: Columbia | D53: 0.2136058597 | E53: 8.820172383e-05
B54: Office-small | C54: Greenville | D54: 0.1769502735 | E54: 8.595657212e-05
B55: Office-medium | C55: Charleston | D55: 0.3185688753 | E55: 0.00020566853
B56: Office-medium | C56: Columbia | D56: 0.2966564837 | E56: 0.0001941262053
B57: Office-medium | C57: Greenville | D57: 0.222496248 | E57: 0.0001566842754
B58: Office-large | C58: Charleston | D58: 0.408236143 | E58: 0.0003382017461
B59: Office-large | C59: Columbia | D59: 0.3735404169 | E59: 0.0001029069558
B60: Office-large | C60: Greenville | D60: 0.2769139061 | E60: 0.0001043845458
B61: Hotel-small | C61: Charleston | D61: 0.285299581 | E61: 4.888055016e-05
B62: Hotel-small | C62: Columbia | D62: 0.2427567116 | E62: 6.157704947e-05
B63: Hotel-small | C63: Greenville | D63: 0.1327985698 | E63: 6.480556934e-05
B64: Hotel-large | C64: Charleston | D64: 0.815165861 | E64: 5.886275697e-05
B65: Hotel-large | C65: Columbia | D65: 0.7244556554 | E65: 0.0001572155516
B66: Hotel-large | C66: Greenville | D66: 0.643070798 | E66: 0.0001259973233
B67: Hospital | C67: Charleston | D67: 0.838585862 | E67: 0.0001149988113
B68: Hospital | C68: Columbia | D68: 0.831890979 | E68: 0.0001445750309
B69: Hospital | C69: Greenville | D69: 0.7959318651 | E69: 0.000126582841
B70: Warehouse-conditioned | C70: Charleston | D70: 0.2223801271 | E70: 7.979973931e-05
B71: Warehouse-conditioned | C71: Columbia | D71: 0.2144184151 | E71: 7.774822514e-05
B72: Warehouse-conditioned | C72: Greenville | D72: 0.1785618058 | E72: 6.972905545e-05
B73: Retail-stand alone | C73: Charleston | D73: 0.7863460752 | E73: 0.0002269399598
B74: Retail-stand alone | C74: Columbia | D74: 0.7536808956 | E74: 0.0002324935125
B75: Retail-stand alone | C75: Greenville | D75: 0.6925369088 | E75: 0.0001880124429
B76: Retail-strip mall | C76: Charleston | D76: 0.8016159433 | E76: 0.0001016537876
B77: Retail-strip mall | C77: Columbia | D77: 0.7676493753 | E77: 0.0001728197502
B78: Retail-strip mall | C78: Greenville | D78: 0.723086621 | E78: 0.0001629383295
B79: School-primary | C79: Charleston | D79: 0.9627914915 | E79: 0.0003562929749
B80: School-primary | C80: Columbia | D80: 0.9043298546 | E80: 0.0003860923935
B81: School-primary | C81: Greenville | D81: 0.7931385557 | E81: 0.0003293620443
B82: School-secondary | C82: Charleston | D82: 1.019679714 | E82: 0.0003220204329
B83: School-secondary | C83: Columbia | D83: 0.9789453486 | E83: 0.0003563680978
B84: School-secondary | C84: Greenville | D84: 0.9072888624 | E84: 0.0003156026919
B85: Other | C85: Charleston | D85: 0.6072205887 | E85: 0.0001771982924
B86: Other | C86: Columbia | D86: 0.5729027269 | E86: 0.0001794658633
B87: Other | C87: Greenville | D87: 0.5038885831 | E87: 0.0001572777901
B90: county | C90: Cool Roof Representative Zone
B91: Abbeville | C91: Columbia
B92: Aiken | C92: Columbia
B93: Allendale | C93: Columbia
B94: Bamberg | C94: Columbia
B95: Barnwell | C95: Columbia
B96: Beaufort | C96: Charleston
B97: Berkeley | C97: Charleston
B98: Calhoun | C98: Columbia
B99: Charleston | C99: Charleston
B100: Colleton | C100: Charleston
B101: Dorchester | C101: Charleston
B102: Edgefield | C102: Columbia
B103: Fairfield | C103: Columbia
B104: Hampton | C104: Charleston
B105: Jasper | C105: Charleston
B106: Lexington | C106: Columbia
B107: McCormick | C107: Columbia
B108: Orangeburg | C108: Columbia
B109: Richland | C109: Columbia
B110: Richland/Fairfield | C110: Columbia
B111: Richland/Kershaw | C111: Columbia
B112: Saluda | C112: Columbia
B115: Zip | C115: County | D115: Cool Roof Zone
B116: 29901 | C116: Beaufort | D116: =VLOOKUP(C116,$B$91:$C$112,2,FALSE) -> Charleston
B117: =B116+1 -> 29902 | C117: Beaufort | D117: =VLOOKUP(C117,$B$91:$C$112,2,FALSE) -> Charleston
B118: 29902 | C118: Beaufort | D118: Charleston
B119: 29902 | C119: Beaufort | D119: Charleston
B120: =B119+1 -> 29903 | C120: Beaufort | D120: Charleston
B121: =B120+1 -> 29904 | C121: Beaufort | D121: Charleston
B122: 29906 | C122: Beaufort | D122: Charleston
B123: 29906 | C123: Beaufort | D123: Charleston
B124: 29910 | C124: Beaufort | D124: Charleston
B125: 29910 | C125: Beaufort | D125: Charleston
B126: 29910 | C126: Beaufort | D126: Charleston
B127: 29910 | C127: Beaufort | D127: Charleston
B128: =B127+1 -> 29911 | C128: Beaufort | D128: Charleston
B129: 29911 | C129: Hampton | D129: Charleston
B130: 29913 | C130: Hampton | D130: Charleston
B131: 29914 | C131: Beaufort | D131: Charleston
B132: 29915 | C132: Beaufort | D132: Charleston
B133: 29916 | C133: Hampton | D133: Charleston
B134: 29918 | C134: Hampton | D134: Charleston
B135: 29922 | C135: Hampton | D135: Charleston
B136: 29923 | C136: Hampton | D136: Charleston
B137: 29924 | C137: Hampton | D137: Charleston
B138: 29925 | C138: Beaufort | D138: Charleston
B139: 29926 | C139: Beaufort | D139: Charleston
B140: 29928 | C140: Beaufort | D140: Charleston
B141: 29933 | C141: Hampton | D141: Charleston
B142: 29935 | C142: Beaufort | D142: Charleston
B143: 29936 | C143: Jasper | D143: Charleston
B144: 29945 | C144: Jasper | D144: Charleston
B145: 29945 | C145: Jasper | D145: Charleston
B146: 29931 | C146: Beaufort | D146: Charleston
B147: 29938 | C147: Beaufort | D147: Charleston
B148: 29939 | C148: Hampton | D148: Charleston
B149: 29943 | C149: Jasper | D149: Charleston
B150: 29944 | C150: Hampton | D150: Charleston
B151: 29936 | C151: Jasper | D151: Charleston
B152: 29927 | C152: Jasper | D152: Charleston
B153: 29941 | C153: Beaufort | D153: Charleston
B154: 29943 | C154: Jasper | D154: Charleston
B155: 29929 | C155: Colleton | D155: Charleston
B156: 29932 | C156: Hampton | D156: Charleston
B157: 29934 | C157: Jasper | D157: Charleston
B158: 29936 | C158: Jasper | D158: Charleston
B159: 29936 | C159: Jasper | D159: Charleston
B160: 29016 | C160: Richland/Fairfield | D160: Columbia
B161: 29044 | C161: Richland | D161: Columbia
B162: 29045 | C162: Richland/Kershaw | D162: Columbia
B163: 29052 | C163: Richland | D163: Columbia
B164: 29061 | C164: Richland | D164: Columbia
B165: 29177 | C165: Richland | D165: Columbia
B166: 29201 | C166: Richland | D166: Columbia
B167: 29202 | C167: Richland | D167: Columbia
B168: 29203 | C168: Richland | D168: Columbia
B169: 29204 | C169: Richland | D169: Columbia
B170: 29205 | C170: Richland | D170: Columbia
B171: 29206 | C171: Richland | D171: Columbia
B172: 29207 | C172: Richland | D172: Columbia
B173: 29208 | C173: Richland | D173: Columbia
B174: 29209 | C174: Richland | D174: Columbia
B175: 29211 | C175: Richland | D175: Columbia
B176: 29216 | C176: Richland | D176: Columbia
B177: =B176+1 -> 29217 | C177: Richland | D177: Columbia
B178: =B177+1 -> 29218 | C178: Richland | D178: Columbia
B179: =B178+1 -> 29219 | C179: Richland | D179: Columbia
B180: =B179+1 -> 29220 | C180: Richland | D180: Columbia
B181: 29214 | C181: Richland | D181: =VLOOKUP(C181,$B$91:$C$112,2,FALSE) -> Columbia
B182: =B181+1 -> 29215 | C182: Richland | D182: Columbia
B183: =B182+1 -> 29216 | C183: Richland | D183: Columbia
B184: =B183+1 -> 29217 | C184: Richland | D184: Columbia
B185: =B184+1 -> 29218 | C185: Richland | D185: Columbia
B186: =B185+1 -> 29219 | C186: Richland | D186: Columbia
B187: 29210 | C187: Richland | D187: Columbia
B188: =B187+1 -> 29211 | C188: Richland | D188: Columbia
B189: =B188+1 -> 29212 | C189: Richland | D189: Columbia
B190: 29212 | C190: Richland | D190: Columbia
B191: 29215 | C191: Richland | D191: Columbia
B192: =B191+1 -> 29216 | C192: Richland | D192: Columbia
B193: =B192+1 -> 29217 | C193: Richland | D193: Columbia
B194: =B193+1 -> 29218 | C194: Richland | D194: Columbia
B195: 29240 | C195: Richland | D195: Columbia
B196: 29250 | C196: Richland | D196: Columbia
B197: 29260 | C197: Richland | D197: Columbia
B198: 29260 | C198: Richland | D198: Columbia
B199: 29290 | C199: Richland | D199: Columbia
B200: 29292 | C200: Richland | D200: Columbia
B201: 29147 | C201: Richland | D201: Columbia
B202: 29461 | C202: Berkeley | D202: Charleston
B203: 29445 | C203: Berkeley | D203: Charleston
B204: 29456 | C204: Berkeley | D204: Charleston
B205: 29436 | C205: Berkeley | D205: Charleston
B206: 29461 | C206: Berkeley | D206: Charleston
B207: 29920 | C207: Berkeley | D207: Charleston
B208: 29437 | C208: Charleston | D208: Charleston
B209: 29439 | C209: Charleston | D209: Charleston
B210: 29422 | C210: Charleston | D210: Charleston
B211: 29470 | C211: Charleston | D211: Charleston
B212: 29449 | C212: Charleston | D212: Charleston
... 302 more rows

Sheet VFDs
A1: Fill in Blue Cells Only!
A2: HVAC VARIABLE FREQUENCY DRIVES TECHNICAL REQUIREMENTS
A3: Replacement of failed VFDs or those installed in new construction do not qualify for incentives. Only VFD installations not required by South Carolina Code IECC 2009 are eligible for incentives. Incentives will be provided for the installation of new VFDs controlled by an automatic signal in response to varying air or water flow. Incentives will be for VFDs from 5–100 horsepower (HP) for the HVAC applications listed in Table 1. For chilled water and heating pump installations, at least 75 percent of pump capacity must be controlled by two-way valves. Controlled motors must operate a minimum of 2,000 hours per year. The following HVAC VFD applications are NOT eligible for these incentives: § Forward curve fans with inlet guide vanes § Variable pitch vane-axial fans § Replacement of a failed VFD § VFD used solely for balancing a constant flow § Control of existing two-speed cooling tower fan § Two-speed control of a fan or pump § Mitigation of oversized motor installation
A4: Published manufacturer’s information must be submitted with each application to demonstrate compliance for each of the following criteria: § 15 millisecond minimum ride through on the VFD control at full load and no inertia § Auto restart § Flying restart (start into rotating motor, speed search) § Under voltage trip 85 percent or less § Minimum 3 percent in-line reactor or equivalent (choke, isolation transformer) based on drive HP § 95 percent minimum drive efficiency at full load and full speed § 0.95 minimum displacement power factor
A6: IMPORTANT INFORMATION ABOUT VFDs
A7: § It is good engineering practice to ensure that the application of VFDs within a facility does not cause excessive facility harmonic distortion. § If the cable length between a VFD and controlled motor is greater than 50 feet, additional motor winding insulation on the first few windings, or the installation of an LC filter on the output of the inverter, might be required. § The VFD should be grounded in accordance with the manufacturer’s grounding requirements for noise, as long as the requirement complies with applicable electric codes. § The facility owner might want to consider: VFD startup by manufacturer representative, overcurrent trip protection, and critical frequency lockout. See IEEE 519 for further information.
A9: Table 1: VFD Installation Type
A10: SAF = HVAC Supply Air Fan | C10: CTF = Cooling Tower Fan | E10: HWP = Heat Water Pump
A11: RAF = HVAC Return Air Fan | C11: CWP = Chilled Water Pump | E11: WHP = Water Source Heat Pump Circulator Loop
A12: Table 2: VFD Size and Incentive
A13: $75.00 when Horse Power is .25 to 1.00
A14: $50.00 when Horse Power is greater than 1.00
A15: Table 3: Controlling Parameters
A16: DP = Differential Pressure | C16: DT = Differential Temperature | F16: Other: (Specify)
A17: Table 4: Incentive Table From Tables 1, 2 and 3 above fill in using one row per VFD
A18: Installation Type (Table 1) | B18: Manufacturer / Model | C18: VFD & Motor Horsepower (Table 2) | D18: Controlling Parameter (Table 3) | E18: Quantity | F18: Location/Designation | G18: Requested Incentive
G19: =IF(C19="","",IF(C19<=1,75*E19,50*C19*E19)) -> 
G20: =IF(C20="","",IF(C20<=1,75*E20,50*C20*E20)) -> 
K22: SAF | L22: 5 | M22: DP
K23: RAF | L23: 7.5 | M23: DT
K24: CTF | L24: 10 | M24: Other
K25: CWP | L25: 15
K26: HWP | L26: 20
K27: WHP | L27: 25
G28: =IF(C28="","",IF(C28<=1,75*E28,50*C28*E28)) ->  | L28: 30
A29: Total Requested Incentive | G29: =SUM(G19:H28) -> 0 | L29: 40
L30: 50
H31: ="Version " & 'Version Tracking'!C4 -> Version 14.2 | L31: 60
L32: 75
L34: 100

Sheet Inventory Instructions (hidden)
B4: C&I Prescriptive Program
B5: Unitary HVAC
D7: Copyright © 2010 ICF Resources, LLC, All Rights Reserved. Do not copy, distribute or quote without ICF’s written permission.
C10: Instructions
C11: 1. Read "Eligibility Requirements" for detailed information on participation for this program
C12: 2. This worksheet is required for all VFD Instllation projects.The completed application must be completed and submitted electronically to the email address below or may be submitted in writing either by mail or fax.
D13: Mailing Address: | F13: Fax Number: | G13: Email Address:
D14: SCE&G - EnergyWise for Your Business | F14: 877-646-7234 | G14: EnergyExperts@sceg.com
D15: Mail Code: DSM
D16: 220 Operation Way
D17: Cayce, SC 29033
C18: 3. Enter the required project information in the shaded areas only. A description of this information is provided below in the Inputs section.
D19: - All other information will be populated automatically.
C20: 4. Save file with a project name and date using the naming convention: project name_YY_MM_DD.xls
C21: 5. Email the renamed Excel spreadsheet and the completed project application form to EnergyExperts@sceg.com
C23: Inputs
C24: Building Method Fields | E24: Unit | F24: Input Range | G24: Description
C25: 1. | D25: Building Type | E25: n/a | F25: Select from Building Types | G25: Enter the building type that most closely matches where the installation of the HVAC system is taking place
C26: 2. | D26: Device Type | E26: n/a | F26: Select From HVAC Type | G26: Types include Unitary A/C, Split System A/C, Heat Pump, Packaged Terminal HP, Packaged Terminal AC, Water Cooled
C27: 3. | D27: Manufacturer | E27: n/a | F27: Any | G27: Enter the manufacturer of the HVAC unit
C28: 4. | D28: Model Number | E28: n/a | F28: Any | G28: Enter the model number of the HVAC unit
C29: 5. | D29: Size | E29: Tons | F29: Any | G29: Enter the size in tons of the HVAC unit
C30: 6. | D30: Cooling Efficiency | E30: EER | F30: Any | G30: Enter the efficiency in tons of the HVAC unit
C31: 7. | D31: Quantity | E31: Whole Number | F31: Any | G31: Enter the quantity of HVAC units being installed

Sheet Input Key (hidden)
B3: Building Type | D3: Device Type | E3: Measure code
B4: Office | D4: Split System A/C | E4: S
B5: Retail | D5: Unitary A/C | E5: U
B6: School | D6: Split System Heat Pump | E6: SH
B7: University | D7: Unitary Heat Pump | E7: UH
B8: Religious Facility | D8: Packaged Terminal A/C | E8: PTAC
B9: Grocery | D9: Packaged Terminal Heat Pump | E9: PTHP
B10: Lodging
B11: Industrial
B12: Warehouse
B13: Health Facility
B14: Multifamily
B15: Fitness/Recreation
B16: Restaurant
B17: Other

Sheet Measure Code Summary (hidden)
B4: Measure Summary
B5: ="Version # "&'Version Tracking'!C4 -> Version # 14.2
B7: Copyright © 2015 ICF Resources, LLC, All Rights Reserved. Do not copy, distribute or quote without ICF’s written permission.
B9: Required General Project Information
C11: Project Name | D11: ='Project Information'!D4 -> 0 | G11: Prepared By
C12: Project Address | D12: ='Project Information'!D5 -> 0 | G12: Contact Person | H12: ='Project Information'!D16 -> 0
C13: City | D13: ='Project Information'!D6 -> 0 | G13: Phone | H13: ='Project Information'!D17 -> 0
C14: ZIP | D14: ='Project Information'!L6 -> 0 | G14: Email | H14: ='Project Information'!L17 -> 0
B17: Unitary HVAC Equipment Information
B18: Equipment | C18: Manufacturer | D18: Model Number | E18: Unit Size (Tons) | F18: Unit Efficiency | I18: Incentive $/Ton | J18: Quantity | K18: Subtotal Incentive
F19: SEER or IEER | G19: EER | H19: COP
B20: =IF('HVAC Unitary'!D23="","",'HVAC Unitary'!D23) ->  | C20: =IF('HVAC Unitary'!E23="","",'HVAC Unitary'!E23) ->  | D20: =IF('HVAC Unitary'!F23="","",'HVAC Unitary'!F23) ->  | E20: =IF('HVAC Unitary'!G23="","",'HVAC Unitary'!G23) ->  | F20: =IF('HVAC Unitary'!L23="","",'HVAC Unitary'!L23) ->  | G20: =IF('HVAC Unitary'!K23="","",'HVAC Unitary'!K23) ->  | H20: =IF('HVAC Unitary'!M23="","",'HVAC Unitary'!M23) ->  | I20: =IF(OR(K20="",E20=""),"",K20/E20/J20) ->  | J20: =IF('HVAC Unitary'!N23="","",'HVAC Unitary'!N23) ->  | K20: =IF('HVAC Unitary'!O23="","",'HVAC Unitary'!O23) -> 0
B21: =IF('HVAC Unitary'!D24="","",'HVAC Unitary'!D24) ->  | C21: =IF('HVAC Unitary'!E24="","",'HVAC Unitary'!E24) ->  | D21: =IF('HVAC Unitary'!F24="","",'HVAC Unitary'!F24) ->  | E21: =IF('HVAC Unitary'!G24="","",'HVAC Unitary'!G24) ->  | F21: =IF('HVAC Unitary'!L24="","",'HVAC Unitary'!L24) ->  | G21: =IF('HVAC Unitary'!K24="","",'HVAC Unitary'!K24) ->  | H21: =IF('HVAC Unitary'!M24="","",'HVAC Unitary'!M24) ->  | I21: =IF(OR(K21="",E21=""),"",K21/E21/J21) ->  | J21: =IF('HVAC Unitary'!N24="","",'HVAC Unitary'!N24) ->  | K21: =IF('HVAC Unitary'!O24="","",'HVAC Unitary'!O24) -> 0
B22: =IF('HVAC Unitary'!D25="","",'HVAC Unitary'!D25) ->  | C22: =IF('HVAC Unitary'!E25="","",'HVAC Unitary'!E25) ->  | D22: =IF('HVAC Unitary'!F25="","",'HVAC Unitary'!F25) ->  | E22: =IF('HVAC Unitary'!G25="","",'HVAC Unitary'!G25) ->  | F22: =IF('HVAC Unitary'!L25="","",'HVAC Unitary'!L25) ->  | G22: =IF('HVAC Unitary'!K25="","",'HVAC Unitary'!K25) ->  | H22: =IF('HVAC Unitary'!M25="","",'HVAC Unitary'!M25) ->  | J22: =IF('HVAC Unitary'!N25="","",'HVAC Unitary'!N25) ->  | K22: =IF('HVAC Unitary'!O25="","",'HVAC Unitary'!O25) -> 0
B23: =IF('HVAC Unitary'!D26="","",'HVAC Unitary'!D26) ->  | C23: =IF('HVAC Unitary'!E26="","",'HVAC Unitary'!E26) ->  | D23: =IF('HVAC Unitary'!F26="","",'HVAC Unitary'!F26) ->  | E23: =IF('HVAC Unitary'!G26="","",'HVAC Unitary'!G26) ->  | F23: =IF('HVAC Unitary'!L26="","",'HVAC Unitary'!L26) ->  | G23: =IF('HVAC Unitary'!K26="","",'HVAC Unitary'!K26) ->  | H23: =IF('HVAC Unitary'!M26="","",'HVAC Unitary'!M26) ->  | J23: =IF('HVAC Unitary'!N26="","",'HVAC Unitary'!N26) ->  | K23: =IF('HVAC Unitary'!O26="","",'HVAC Unitary'!O26) -> 0
B24: =IF('HVAC Unitary'!D27="","",'HVAC Unitary'!D27) ->  | C24: =IF('HVAC Unitary'!E27="","",'HVAC Unitary'!E27) ->  | D24: =IF('HVAC Unitary'!F27="","",'HVAC Unitary'!F27) ->  | E24: =IF('HVAC Unitary'!G27="","",'HVAC Unitary'!G27) ->  | F24: =IF('HVAC Unitary'!L27="","",'HVAC Unitary'!L27) ->  | G24: =IF('HVAC Unitary'!K27="","",'HVAC Unitary'!K27) ->  | H24: =IF('HVAC Unitary'!M27="","",'HVAC Unitary'!M27) ->  | J24: =IF('HVAC Unitary'!N27="","",'HVAC Unitary'!N27) ->  | K24: =IF('HVAC Unitary'!O27="","",'HVAC Unitary'!O27) -> 0
B25: =IF('HVAC Unitary'!D28="","",'HVAC Unitary'!D28) ->  | C25: =IF('HVAC Unitary'!E28="","",'HVAC Unitary'!E28) ->  | D25: =IF('HVAC Unitary'!F28="","",'HVAC Unitary'!F28) ->  | E25: =IF('HVAC Unitary'!G28="","",'HVAC Unitary'!G28) ->  | F25: =IF('HVAC Unitary'!L28="","",'HVAC Unitary'!L28) ->  | G25: =IF('HVAC Unitary'!K28="","",'HVAC Unitary'!K28) ->  | H25: =IF('HVAC Unitary'!M28="","",'HVAC Unitary'!M28) ->  | J25: =IF('HVAC Unitary'!N28="","",'HVAC Unitary'!N28) ->  | K25: =IF('HVAC Unitary'!O28="","",'HVAC Unitary'!O28) -> 0
B26: =IF('HVAC Unitary'!D29="","",'HVAC Unitary'!D29) ->  | C26: =IF('HVAC Unitary'!E29="","",'HVAC Unitary'!E29) ->  | D26: =IF('HVAC Unitary'!F29="","",'HVAC Unitary'!F29) ->  | E26: =IF('HVAC Unitary'!G29="","",'HVAC Unitary'!G29) ->  | F26: =IF('HVAC Unitary'!L29="","",'HVAC Unitary'!L29) ->  | G26: =IF('HVAC Unitary'!K29="","",'HVAC Unitary'!K29) ->  | H26: =IF('HVAC Unitary'!M29="","",'HVAC Unitary'!M29) ->  | J26: =IF('HVAC Unitary'!N29="","",'HVAC Unitary'!N29) ->  | K26: =IF('HVAC Unitary'!O29="","",'HVAC Unitary'!O29) -> 0
B27: =IF('HVAC Unitary'!D30="","",'HVAC Unitary'!D30) ->  | C27: =IF('HVAC Unitary'!E30="","",'HVAC Unitary'!E30) ->  | D27: =IF('HVAC Unitary'!F30="","",'HVAC Unitary'!F30) ->  | E27: =IF('HVAC Unitary'!G30="","",'HVAC Unitary'!G30) ->  | F27: =IF('HVAC Unitary'!L30="","",'HVAC Unitary'!L30) ->  | G27: =IF('HVAC Unitary'!K30="","",'HVAC Unitary'!K30) ->  | H27: =IF('HVAC Unitary'!M30="","",'HVAC Unitary'!M30) ->  | J27: =IF('HVAC Unitary'!N30="","",'HVAC Unitary'!N30) ->  | K27: =IF('HVAC Unitary'!O30="","",'HVAC Unitary'!O30) -> 0
B28: =IF('HVAC Unitary'!D31="","",'HVAC Unitary'!D31) ->  | C28: =IF('HVAC Unitary'!E31="","",'HVAC Unitary'!E31) ->  | D28: =IF('HVAC Unitary'!F31="","",'HVAC Unitary'!F31) ->  | E28: =IF('HVAC Unitary'!G31="","",'HVAC Unitary'!G31) ->  | F28: =IF('HVAC Unitary'!L31="","",'HVAC Unitary'!L31) ->  | G28: =IF('HVAC Unitary'!K31="","",'HVAC Unitary'!K31) ->  | H28: =IF('HVAC Unitary'!M31="","",'HVAC Unitary'!M31) ->  | J28: =IF('HVAC Unitary'!N31="","",'HVAC Unitary'!N31) ->  | K28: =IF('HVAC Unitary'!O31="","",'HVAC Unitary'!O31) -> 0
B29: =IF('HVAC Unitary'!D32="","",'HVAC Unitary'!D32) ->  | C29: =IF('HVAC Unitary'!E32="","",'HVAC Unitary'!E32) ->  | D29: =IF('HVAC Unitary'!F32="","",'HVAC Unitary'!F32) ->  | E29: =IF('HVAC Unitary'!G32="","",'HVAC Unitary'!G32) ->  | F29: =IF('HVAC Unitary'!L32="","",'HVAC Unitary'!L32) ->  | G29: =IF('HVAC Unitary'!K32="","",'HVAC Unitary'!K32) ->  | H29: =IF('HVAC Unitary'!M32="","",'HVAC Unitary'!M32) ->  | J29: =IF('HVAC Unitary'!N32="","",'HVAC Unitary'!N32) ->  | K29: =IF('HVAC Unitary'!O32="","",'HVAC Unitary'!O32) -> 0
I30: Total Pre-approved Incentive | K30: =SUM(K20:K29) -> 0

Sheet Version Tracking (hidden)
B4: Current: | C4: =LOOKUP(2,1/(B1:B49991<>""),B1:B49991) -> 14.2
B5: Version | C5: Notes | D5: Date | E5: Updated By
B6: 2.1 | C6: All editing and revisions required | D6: 2015-09-24 | E6: JZ
B7: 2.2 | C7: Added formulas to calculate incentives | D7: 2015-09-25 | E7: RC
B8: 2.3 | C8: Removed link to external workbook | D8: 2015-09-29 | E8: RM
B9: 2.4 | C9: Formatting, added buttons for tab, adjusted based on Jennifer's feedback | D9: 2015-10-21 | E9: RM
B10: 2.5 | C10: Added equipment tab instructions, changed tab colors, minor edits | D10: 2015-10-22 | E10: JZ
B11: 2.6 | C11: Added equipment buttons | D11: 2015-10-22 | E11: RM
B12: 2.7 | C12: Minor content edits | D12: 2015-10-27 | E12: Jennifer Mosser
B13: 2.8 | C13: Minor edits and fix radio button on CI tab | D13: 2015-11-20 | E13: JZ and RM
B14: 2.9 | C14: Additional minor edits | D14: 2015-11-20 | E14: JZ and RC
B15: 3 | C15: Increased >1 ton PTHP COP requirement and adjusted formulas | D15: 2016-02-29 | E15: RC
B16: 3.1 | C16: Fixed text on Equipment Input Instructions tab | D16: 2016-09-14 | E16: RC
B17: 3.2 | C17: Updated unitary and chiller incentives for 2017 | D17: 2017-01-18 | E17: RC
B18: 3.3 | C18: Added additonal contact. Changed Project Informaiton tab title from Customer Information tab. Formatting | D18: 2017-01-20 | E18: JZ
B19: 3.4 | C19: Increased ACC VFD performance incentive cap | D19: 2017-01-23 | E19: RC
B20: 3.5 | C20: reduced incentives, increased ACC VFD IPLV | D20: 2017-02-02 | E20: RC
B21: 3.6 | C21: Revisions requested by Annika Goodson | D21: 2017-02-02 | E21: Mary Freibert
B22: 3.7 | C22: Language revisions and fixed buttons | D22: 2017-11-13 | E22: RC
B23: 3.8 | C23: Updated efficiency requirements | D23: 2018-07-17 | E23: RC
B24: 3.9 | C24: Final efficiency requirements | D24: 2018-07-31 | E24: RC
B25: 10.1 | C25: Updated Dominion Branding and T&Cs | D25: 2020-08-27 | E25: JSE
B26: 10.2 | C26: Updated Cap, and adjusted incentive ammounts | D26: 2021-02-16 | E26: JSE
B27: 10.3 | C27: fixed incentive calculator | D27: 2021-03-19 | E27: JSE
B28: 10.3 | C28: I renamed the Input tab to HVAC Unitary, and moved the incentive guidance to this tab. This will allow input data to nom longer need to be transcribed. Also removed many of the superflous fields on the AEG import tab | D28: 3/99/2021 | E28: mds
B29: 10.4 | C29: Fixed incentives for Heatpump up dated PY11 Table | D29: 2021-03-26 | E29: JSE
B30: 10.5 | C30: Sixed incentive for VFDs < 1HP | D30: 2021-03-31
B31: 10.6 | C31: Added Cool Roof calculator tab | D31: 2021-07-27 | E31: Sean Creel
B32: 10.7 | C32: Added cool roof savings calculations and AEG import for cool roof and window film. | D32: 2022-03-22 | E32: JME
B33: 10.8 | C33: Updated AEG import to be total savings and incentives and not based on a per unit amount / Updated Eligibility language on T&Cs and added w-9 and invoicing requirements | D33: 2022-09-15 | E33: JME / LS
B34: 10.9 | C34: Updated efficiency requirements on HVAC application. Added model request on VFD/Cool Roof/Window Film tabs. Reworked HVAC measures to be calculated savings and incorporate new SEER ratings | D34: 2023-03-22 | E34: LS / JME
B35: 10.10 | C35: Fixed formula for HSPF conversion to COP on min requirements | D35: 2023-05-21 | E35: JME
B36: 10.11 | C36: Fixed proposed PTHP heating efficiency calcs | D36: 2023-08-09 | E36: JME
B37: 10.12 | C37: Updated Email and Website. Updated Cool Roof requirements. Fixed incentive calculation error in table on HVAC unitary tab | D37: 2023-09-14 | E37: LS / JME
B38: 14.1 | C38: Updated the calculator to reflect latest TRM changes | D38: 2023-11-20 | E38: Thomaskutty Jaison
B39: 14.2 | C39: Fixed email and radio buttons. | D39: 2024-02-16 | E39: LS

Sheet Old Summary (hidden)
B4: Measure Summary
B5: ="Version # "&'Version Tracking'!C4 -> Version # 14.2
B7: Copyright © 2010 ICF Resources, LLC, All Rights Reserved. Do not copy, distribute or quote without ICF’s written permission.
B9: Required General Project Information
C11: Project Name | D11: =IF('HVAC Unitary'!D11="","",'HVAC Unitary'!D11) ->  | G11: Prepared By | H11: =IF('HVAC Unitary'!G11="","",'HVAC Unitary'!G11) -> 
C12: Project Address | D12: =IF('HVAC Unitary'!D12="","",'HVAC Unitary'!D12) ->  | G12: Contact Person | H12: =IF('HVAC Unitary'!G12="","",'HVAC Unitary'!G12) -> 
C13: City | D13: =IF('HVAC Unitary'!D13="","",'HVAC Unitary'!D13) ->  | G13: Phone | H13: =IF('HVAC Unitary'!G13="","",'HVAC Unitary'!G13) -> 
C14: ZIP | D14: =IF('HVAC Unitary'!D14="","",'HVAC Unitary'!D14) ->  | G14: Email | H14: =IF('HVAC Unitary'!G14="","",'HVAC Unitary'!G14) -> 
B17: Unitary HVAC Measures and Incentives
B18: Size Category (Tons) | D18: Sub-Category | E18: Tier 1 Minimum Requirement | F18: Tier 1 Quantity | G18: Tier 1 Incentive | H18: Tier 2 Minimum Requirement | I18: Tier 2 Quantity | J18: Tier 2 Incentive | K18: Total Incentive
B20: Minimum Size (Greater Than or Equal To) | C20: Maximum Size (Less Than, Not Equal To)
B21: Air Conditioners and Heat Pumps (Cooling Mode) - Unitary and Matched Split Systems
B22: 0 | C22: 5.4 | D22: Split System | E22: 14.0 SEER and 12.0 EER | F22: =SUMIF('HVAC Unitary'!#REF!,"Tier 1_Unitary_"&$B22,'HVAC Unitary'!$N$23:$N$32) ->  | G22: $20 / ton | H22: 15.0 SEER and 12.5 EER | I22: =SUMIF('HVAC Unitary'!#REF!,"Tier 2_Unitary_"&$B22,'HVAC Unitary'!$N$23:$N$32) ->  | J22: $30 / ton | K22: =SUMIF('HVAC Unitary'!#REF!,"Tier 1_Unitary_"&$B22,'HVAC Unitary'!$S$23:$S$32)+SUMIF('HVAC Unitary'!#REF!,"Tier 2_Unitary_"&$B22,'HVAC Unitary'!$S$23:$S$32) -> 
D23: Single Package | E23: 14.0 SEER and 11.6 EER | H23: 15.0 SEER and 12.0 EER
B24: 5.4 | C24: 20 | D24: Split System and Single Package | E24: 11.5 EER and 11.7 IEER | F24: =SUMIF('HVAC Unitary'!#REF!,"Tier 1_Unitary_"&$B24,'HVAC Unitary'!$N$23:$N$32) ->  | G24: $20 / ton | H24: 12.0 EER and 12.2 IEER | I24: =SUMIF('HVAC Unitary'!#REF!,"Tier 2_Unitary_"&$B24,'HVAC Unitary'!$N$23:$N$32) ->  | J24: $30 / ton | K24: =SUMIF('HVAC Unitary'!#REF!,"Tier 1_Unitary_"&$B24,'HVAC Unitary'!$S$23:$S$32)+SUMIF('HVAC Unitary'!#REF!,"Tier 2_Unitary_"&$B24,'HVAC Unitary'!$S$23:$S$32) -> 
B25: 20 | C25: 63 | D25: Split System and Single Package | E25: 10.5 EER and 10.6 IEER | F25: =SUMIF('HVAC Unitary'!#REF!,"Tier 1_Unitary_"&$B25,'HVAC Unitary'!$N$23:$N$32) ->  | G25: $20 / ton | H25: 10.85 EER and 11.0 IEER | I25: =SUMIF('HVAC Unitary'!#REF!,"Tier 2_Unitary_"&$B25,'HVAC Unitary'!$N$23:$N$32) ->  | J25: $30 / ton | K25: =SUMIF('HVAC Unitary'!#REF!,"Tier 1_Unitary_"&$B25,'HVAC Unitary'!$S$23:$S$32)+SUMIF('HVAC Unitary'!#REF!,"Tier 2_Unitary_"&$B25,'HVAC Unitary'!$S$23:$S$32) -> 
B26: 63 | D26: Split System and Single Package | E26: 9.7 EER and 9.8 IEER | F26: =SUMIF('HVAC Unitary'!#REF!,"Tier 1_Unitary_"&$B26,'HVAC Unitary'!$N$23:$N$32) ->  | G26: $10 / ton | H26: 10.2 EER and 10.3 IEER | I26: =SUMIF('HVAC Unitary'!#REF!,"Tier 2_Unitary_"&$B26,'HVAC Unitary'!$N$23:$N$32) ->  | J26: $15 / ton | K26: =SUMIF('HVAC Unitary'!#REF!,"Tier 1_Unitary_"&$B26,'HVAC Unitary'!$S$23:$S$32)+SUMIF('HVAC Unitary'!#REF!,"Tier 2_Unitary_"&$B26,'HVAC Unitary'!$S$23:$S$32) -> 
B28: Air Conditioners and Heat Pumps (Cooling Mode) - Water and Evaporative
B29: 0 | C29: 5.4 | D29: Split System and Single Package | E29: 14.0 EER and 14.2 IEER | F29: =SUMIF('HVAC Unitary'!#REF!,"Tier 1_Water_"&$B29,'HVAC Unitary'!$N$23:$N$32) ->  | G29: $30 / ton | H29: N/A | I29: =SUMIF('HVAC Unitary'!#REF!,"Tier 2_Water_"&$B29,'HVAC Unitary'!$N$23:$N$32) ->  | J29: N/A | K29: =SUMIF('HVAC Unitary'!#REF!,"Tier 1_Water_"&$B29,'HVAC Unitary'!$S$23:$S$32)+SUMIF('HVAC Unitary'!#REF!,"Tier 2_Water_"&$B29,'HVAC Unitary'!$S$23:$S$32) -> 
B30: 5.4 | C30: 11.25 | D30: Split System and Single Package | E30: 14.0 EER and 14.2 IEER | F30: =SUMIF('HVAC Unitary'!#REF!,"Tier 1_Water_"&$B30,'HVAC Unitary'!$N$23:$N$32) ->  | G30: $30 / ton | H30: N/A | I30: =SUMIF('HVAC Unitary'!#REF!,"Tier 2_Water_"&$B30,'HVAC Unitary'!$N$23:$N$32) ->  | J30: N/A | K30: =SUMIF('HVAC Unitary'!#REF!,"Tier 1_Water_"&$B30,'HVAC Unitary'!$S$23:$S$32)+SUMIF('HVAC Unitary'!#REF!,"Tier 2_Water_"&$B30,'HVAC Unitary'!$S$23:$S$32) -> 
B31: 11.25 | D31: Split System and Single Package | E31: 14.0 EER and 14.2 IEER | F31: =SUMIF('HVAC Unitary'!#REF!,"Tier 1_Water_"&$B31,'HVAC Unitary'!$N$23:$N$32) ->  | G31: $30 / ton | H31: N/A | I31: =SUMIF('HVAC Unitary'!#REF!,"Tier 2_Water_"&$B31,'HVAC Unitary'!$N$23:$N$32) ->  | J31: N/A | K31: =SUMIF('HVAC Unitary'!#REF!,"Tier 1_Water_"&$B31,'HVAC Unitary'!$S$23:$S$32)+SUMIF('HVAC Unitary'!#REF!,"Tier 2_Water_"&$B31,'HVAC Unitary'!$S$23:$S$32) -> 
B33: Packaged Terminal Air Conditioner (PTAC)
B34: 0 | C34: 0.75 | D34: Single Package | E34: 11.8 EER | F34: =SUMIF('HVAC Unitary'!#REF!,"Tier 1_PTAC_"&$B34,'HVAC Unitary'!$N$23:$N$32) ->  | G34: $10 / ton | H34: N/A | I34: =SUMIF('HVAC Unitary'!#REF!,"Tier 2_PTAC_"&$B34,'HVAC Unitary'!$N$23:$N$32) ->  | J34: N/A | K34: =SUMIF('HVAC Unitary'!#REF!,"Tier 1_PTAC_"&$B34,'HVAC Unitary'!$S$23:$S$32)+SUMIF('HVAC Unitary'!#REF!,"Tier 2_PTAC_"&$B34,'HVAC Unitary'!$S$23:$S$32) -> 
B35: 0.75 | C35: 1 | E35: 11.0 EER | F35: =SUMIF('HVAC Unitary'!#REF!,"Tier 1_PTAC_"&$B35,'HVAC Unitary'!$N$23:$N$32) ->  | G35: $15 / ton | H35: N/A | I35: =SUMIF('HVAC Unitary'!#REF!,"Tier 2_PTAC_"&$B35,'HVAC Unitary'!$N$23:$N$32) ->  | J35: N/A | K35: =SUMIF('HVAC Unitary'!#REF!,"Tier 1_PTAC_"&$B35,'HVAC Unitary'!$S$23:$S$32)+SUMIF('HVAC Unitary'!#REF!,"Tier 2_PTAC_"&$B35,'HVAC Unitary'!$S$23:$S$32) -> 
B36: 1 | E36: 10.3 EER | F36: =SUMIF('HVAC Unitary'!#REF!,"Tier 1_PTAC_"&$B36,'HVAC Unitary'!$N$23:$N$32) ->  | G36: $20 / ton | H36: N/A | I36: =SUMIF('HVAC Unitary'!#REF!,"Tier 2_PTAC_"&$B36,'HVAC Unitary'!$N$23:$N$32) ->  | J36: N/A | K36: =SUMIF('HVAC Unitary'!#REF!,"Tier 1_PTAC_"&$B36,'HVAC Unitary'!$S$23:$S$32)+SUMIF('HVAC Unitary'!#REF!,"Tier 2_PTAC_"&$B36,'HVAC Unitary'!$S$23:$S$32) -> 
B38: Packaged Terminal Heat Pump (PTHP)
B39: 0 | C39: 0.75 | D39: Single Package | E39: 11.5 EER and 3.3 COP | F39: =SUMIF('HVAC Unitary'!#REF!,"Tier 1_PTHP_"&$B39,'HVAC Unitary'!$N$23:$N$32) ->  | G39: $10 / ton | H39: N/A | I39: =SUMIF('HVAC Unitary'!#REF!,"Tier 2_PTHP_"&$B39,'HVAC Unitary'!$N$23:$N$32) ->  | J39: N/A | K39: =SUMIF('HVAC Unitary'!#REF!,"Tier 1_PTHP_"&$B39,'HVAC Unitary'!$S$23:$S$32)+SUMIF('HVAC Unitary'!#REF!,"Tier 2_PTHP_"&$B39,'HVAC Unitary'!$S$23:$S$32) -> 
B40: 0.75 | C40: 1 | E40: 10.8 EER and 3.2 COP | F40: =SUMIF('HVAC Unitary'!#REF!,"Tier 1_PTHP_"&$B40,'HVAC Unitary'!$N$23:$N$32) ->  | G40: $15 / ton | H40: N/A | I40: =SUMIF('HVAC Unitary'!#REF!,"Tier 2_PTHP_"&$B40,'HVAC Unitary'!$N$23:$N$32) ->  | J40: N/A | K40: =SUMIF('HVAC Unitary'!#REF!,"Tier 1_PTHP_"&$B40,'HVAC Unitary'!$S$23:$S$32)+SUMIF('HVAC Unitary'!#REF!,"Tier 2_PTHP_"&$B40,'HVAC Unitary'!$S$23:$S$32) -> 
B41: 1 | E41: 10.1 EER and 3.1 COP | F41: =SUMIF('HVAC Unitary'!#REF!,"Tier 1_PTHP_"&$B41,'HVAC Unitary'!$N$23:$N$32) ->  | G41: $20 / ton | H41: N/A | I41: =SUMIF('HVAC Unitary'!#REF!,"Tier 2_PTHP_"&$B41,'HVAC Unitary'!$N$23:$N$32) ->  | J41: N/A | K41: =SUMIF('HVAC Unitary'!#REF!,"Tier 1_PTHP_"&$B41,'HVAC Unitary'!$S$23:$S$32)+SUMIF('HVAC Unitary'!#REF!,"Tier 2_PTHP_"&$B41,'HVAC Unitary'!$S$23:$S$32) -> 
J42: Total Incentive | K42: =SUM(K22:K41) -> 

Sheet AEG Import (hidden)
A1: Measure # | B1: Import? | C1: building_type_sel | D1: EER | E1: SEER | F1: COP | G1: EER_2 | H1: SEER_2 | I1: HSPF_2 | J1: Full_Load | K1: Half_Load | L1: Base_incentive_Per_Unit | M1: Base_Total_incentive_Per_Unit | N1: Performance_Incentive_Per_Unit | O1: Performance_Total_Incentive_Per_Unit | P1: Elec_Util_cust_Incentive | Q1: Incentive_Per_Unit | R1: kW_Impact | S1: kW_Summer_Gross | T1: kWh_Impact | U1: Manufacturer | V1: Measure_Life | W1: Model | X1: name | Y1: quantity | Z1: Tons | AA1: SUB_COMPONENT_1 | AB1: SUB_COMPONENT_2 | AC1: Cool Roof Location | AD1: SHGC
A2: =VLOOKUP(X2,Validation!$C$3:$D$9,2,FALSE) ->  | B2: =IF(P2=0,"No","Yes") -> No | C2: ='HVAC Unitary'!C23 -> 0 | D2: =IF(IF(OR(HVACCalcs!$K5="Old",HVACCalcs!$K5=""),'HVAC Unitary'!K23,"")=0,"",IF(OR(HVACCalcs!$K5="Old",HVACCalcs!$K5=""),'HVAC Unitary'!K23,"")) ->  | E2: =IF(IF(OR(HVACCalcs!$K5="Old",HVACCalcs!$K5=""),'HVAC Unitary'!L23,"")=0,"",IF(OR(HVACCalcs!$K5="Old",HVACCalcs!$K5=""),'HVAC Unitary'!L23,"")) ->  | F2: =IF(IF(OR(HVACCalcs!$K5="Old",HVACCalcs!$K5=""),'HVAC Unitary'!M23,"")=0,"",IF(OR(HVACCalcs!$K5="Old",HVACCalcs!$K5=""),'HVAC Unitary'!M23,"")) ->  | G2: =IF(IF(HVACCalcs!$K5="New",'HVAC Unitary'!K23,"")=0,"",IF(HVACCalcs!$K5="New",'HVAC Unitary'!K23,"")) ->  | H2: =IF(IF(HVACCalcs!$K5="New",'HVAC Unitary'!L23,"")=0,"",IF(HVACCalcs!$K5="New",'HVAC Unitary'!L23,"")) ->  | I2: =IF(IF(HVACCalcs!$K5="New",'HVAC Unitary'!M23,"")=0,"",IF(HVACCalcs!$K5="New",'HVAC Unitary'!M23,"")) ->  | P2: =IF(ISERROR('HVAC Unitary'!S23/IF(Y2=0,1,Y2))," ",'HVAC Unitary'!S23/IF(Y2=0,1,Y2)) -> 0 | Q2: ='HVAC Unitary'!T23 -> 0 | R2: =S2 -> 0 | S2: ='HVAC Unitary'!R23/IF(Y2=0,1,Y2) -> 0 | T2: ='HVAC Unitary'!Q23/IF(Y2=0,1,Y2) -> 0 | U2: ='HVAC Unitary'!E23 -> 0 | V2: 15 | W2: ='HVAC Unitary'!F23 -> 0 | X2: ='HVAC Unitary'!D23 -> 0 | Y2: ='HVAC Unitary'!N23 -> 0 | Z2: ='HVAC Unitary'!G23 -> 0
A3: =VLOOKUP(X3,Validation!$C$3:$D$9,2,FALSE) ->  | B3: =IF(P3=0,"No","Yes") -> No | C3: ='HVAC Unitary'!C24 -> 0 | D3: =IF(IF(OR(HVACCalcs!$K6="Old",HVACCalcs!$K6=""),'HVAC Unitary'!K24,"")=0,"",IF(OR(HVACCalcs!$K6="Old",HVACCalcs!$K6=""),'HVAC Unitary'!K24,"")) ->  | E3: =IF(IF(OR(HVACCalcs!$K6="Old",HVACCalcs!$K6=""),'HVAC Unitary'!L24,"")=0,"",IF(OR(HVACCalcs!$K6="Old",HVACCalcs!$K6=""),'HVAC Unitary'!L24,"")) ->  | F3: =IF(IF(OR(HVACCalcs!$K6="Old",HVACCalcs!$K6=""),'HVAC Unitary'!M24,"")=0,"",IF(OR(HVACCalcs!$K6="Old",HVACCalcs!$K6=""),'HVAC Unitary'!M24,"")) ->  | G3: =IF(IF(HVACCalcs!$K6="New",'HVAC Unitary'!K24,"")=0,"",IF(HVACCalcs!$K6="New",'HVAC Unitary'!K24,"")) ->  | H3: =IF(IF(HVACCalcs!$K6="New",'HVAC Unitary'!L24,"")=0,"",IF(HVACCalcs!$K6="New",'HVAC Unitary'!L24,"")) ->  | I3: =IF(IF(HVACCalcs!$K6="New",'HVAC Unitary'!M24,"")=0,"",IF(HVACCalcs!$K6="New",'HVAC Unitary'!M24,"")) ->  | P3: =IF(ISERROR('HVAC Unitary'!S24/IF(Y3=0,1,Y3))," ",'HVAC Unitary'!S24/IF(Y3=0,1,Y3)) -> 0 | Q3: ='HVAC Unitary'!T24 -> 0 | R3: 0 | S3: ='HVAC Unitary'!R24/IF(Y3=0,1,Y3) -> 0 | T3: ='HVAC Unitary'!Q24/IF(Y3=0,1,Y3) -> 0 | U3: ='HVAC Unitary'!E24 -> 0 | V3: 15 | W3: ='HVAC Unitary'!F24 -> 0 | X3: ='HVAC Unitary'!D24 -> 0 | Y3: ='HVAC Unitary'!N24 -> 0 | Z3: ='HVAC Unitary'!G24 -> 0
A4: =VLOOKUP(X4,Validation!$C$3:$D$9,2,FALSE) ->  | B4: No | C4: ='HVAC Unitary'!C25 -> 0 | D4: =IF(IF(OR(HVACCalcs!$K7="Old",HVACCalcs!$K7=""),'HVAC Unitary'!K25,"")=0,"",IF(OR(HVACCalcs!$K7="Old",HVACCalcs!$K7=""),'HVAC Unitary'!K25,"")) ->  | E4: =IF(IF(OR(HVACCalcs!$K7="Old",HVACCalcs!$K7=""),'HVAC Unitary'!L25,"")=0,"",IF(OR(HVACCalcs!$K7="Old",HVACCalcs!$K7=""),'HVAC Unitary'!L25,"")) ->  | F4: =IF(IF(OR(HVACCalcs!$K7="Old",HVACCalcs!$K7=""),'HVAC Unitary'!M25,"")=0,"",IF(OR(HVACCalcs!$K7="Old",HVACCalcs!$K7=""),'HVAC Unitary'!M25,"")) ->  | G4: =IF(IF(HVACCalcs!$K7="New",'HVAC Unitary'!K25,"")=0,"",IF(HVACCalcs!$K7="New",'HVAC Unitary'!K25,"")) ->  | H4: =IF(IF(HVACCalcs!$K7="New",'HVAC Unitary'!L25,"")=0,"",IF(HVACCalcs!$K7="New",'HVAC Unitary'!L25,"")) ->  | I4: =IF(IF(HVACCalcs!$K7="New",'HVAC Unitary'!M25,"")=0,"",IF(HVACCalcs!$K7="New",'HVAC Unitary'!M25,"")) ->  | P4: =IF(ISERROR('HVAC Unitary'!S25/IF(Y4=0,1,Y4))," ",'HVAC Unitary'!S25/IF(Y4=0,1,Y4)) -> 0 | Q4: ='HVAC Unitary'!T25 -> 0 | R4: 0 | S4: ='HVAC Unitary'!R25/IF(Y4=0,1,Y4) -> 0 | T4: ='HVAC Unitary'!Q25/IF(Y4=0,1,Y4) -> 0 | U4: ='HVAC Unitary'!E25 -> 0 | V4: 15 | W4: ='HVAC Unitary'!F25 -> 0 | X4: ='HVAC Unitary'!D25 -> 0 | Y4: ='HVAC Unitary'!N25 -> 0 | Z4: ='HVAC Unitary'!G25 -> 0
A5: =VLOOKUP(X5,Validation!$C$3:$D$9,2,FALSE) ->  | B5: No | C5: ='HVAC Unitary'!C26 -> 0 | D5: =IF(IF(OR(HVACCalcs!$K8="Old",HVACCalcs!$K8=""),'HVAC Unitary'!K26,"")=0,"",IF(OR(HVACCalcs!$K8="Old",HVACCalcs!$K8=""),'HVAC Unitary'!K26,"")) ->  | E5: =IF(IF(OR(HVACCalcs!$K8="Old",HVACCalcs!$K8=""),'HVAC Unitary'!L26,"")=0,"",IF(OR(HVACCalcs!$K8="Old",HVACCalcs!$K8=""),'HVAC Unitary'!L26,"")) ->  | F5: =IF(IF(OR(HVACCalcs!$K8="Old",HVACCalcs!$K8=""),'HVAC Unitary'!M26,"")=0,"",IF(OR(HVACCalcs!$K8="Old",HVACCalcs!$K8=""),'HVAC Unitary'!M26,"")) ->  | G5: =IF(IF(HVACCalcs!$K8="New",'HVAC Unitary'!K26,"")=0,"",IF(HVACCalcs!$K8="New",'HVAC Unitary'!K26,"")) ->  | H5: =IF(IF(HVACCalcs!$K8="New",'HVAC Unitary'!L26,"")=0,"",IF(HVACCalcs!$K8="New",'HVAC Unitary'!L26,"")) ->  | I5: =IF(IF(HVACCalcs!$K8="New",'HVAC Unitary'!M26,"")=0,"",IF(HVACCalcs!$K8="New",'HVAC Unitary'!M26,"")) ->  | P5: =IF(ISERROR('HVAC Unitary'!S26/IF(Y5=0,1,Y5))," ",'HVAC Unitary'!S26/IF(Y5=0,1,Y5)) -> 0 | Q5: ='HVAC Unitary'!T26 -> 0 | R5: 0 | S5: ='HVAC Unitary'!R26/IF(Y5=0,1,Y5) -> 0 | T5: ='HVAC Unitary'!Q26/IF(Y5=0,1,Y5) -> 0 | U5: ='HVAC Unitary'!E26 -> 0 | V5: 15 | W5: ='HVAC Unitary'!F26 -> 0 | X5: ='HVAC Unitary'!D26 -> 0 | Y5: ='HVAC Unitary'!N26 -> 0 | Z5: ='HVAC Unitary'!G26 -> 0
A6: =VLOOKUP(X6,Validation!$C$3:$D$9,2,FALSE) ->  | B6: No | C6: ='HVAC Unitary'!C27 -> 0 | D6: =IF(IF(OR(HVACCalcs!$K9="Old",HVACCalcs!$K9=""),'HVAC Unitary'!K27,"")=0,"",IF(OR(HVACCalcs!$K9="Old",HVACCalcs!$K9=""),'HVAC Unitary'!K27,"")) ->  | E6: =IF(IF(OR(HVACCalcs!$K9="Old",HVACCalcs!$K9=""),'HVAC Unitary'!L27,"")=0,"",IF(OR(HVACCalcs!$K9="Old",HVACCalcs!$K9=""),'HVAC Unitary'!L27,"")) ->  | F6: =IF(IF(OR(HVACCalcs!$K9="Old",HVACCalcs!$K9=""),'HVAC Unitary'!M27,"")=0,"",IF(OR(HVACCalcs!$K9="Old",HVACCalcs!$K9=""),'HVAC Unitary'!M27,"")) ->  | G6: =IF(IF(HVACCalcs!$K9="New",'HVAC Unitary'!K27,"")=0,"",IF(HVACCalcs!$K9="New",'HVAC Unitary'!K27,"")) ->  | H6: =IF(IF(HVACCalcs!$K9="New",'HVAC Unitary'!L27,"")=0,"",IF(HVACCalcs!$K9="New",'HVAC Unitary'!L27,"")) ->  | I6: =IF(IF(HVACCalcs!$K9="New",'HVAC Unitary'!M27,"")=0,"",IF(HVACCalcs!$K9="New",'HVAC Unitary'!M27,"")) ->  | P6: =IF(ISERROR('HVAC Unitary'!S27/IF(Y6=0,1,Y6))," ",'HVAC Unitary'!S27/IF(Y6=0,1,Y6)) -> 0 | Q6: ='HVAC Unitary'!T27 -> 0 | R6: 0 | S6: ='HVAC Unitary'!R27/IF(Y6=0,1,Y6) -> 0 | T6: ='HVAC Unitary'!Q27/IF(Y6=0,1,Y6) -> 0 | U6: ='HVAC Unitary'!E27 -> 0 | V6: 15 | W6: ='HVAC Unitary'!F27 -> 0 | X6: ='HVAC Unitary'!D27 -> 0 | Y6: ='HVAC Unitary'!N27 -> 0 | Z6: ='HVAC Unitary'!G27 -> 0
A7: =VLOOKUP(X7,Validation!$C$3:$D$9,2,FALSE) ->  | B7: No | C7: ='HVAC Unitary'!C28 -> 0 | D7: =IF(IF(OR(HVACCalcs!$K10="Old",HVACCalcs!$K10=""),'HVAC Unitary'!K28,"")=0,"",IF(OR(HVACCalcs!$K10="Old",HVACCalcs!$K10=""),'HVAC Unitary'!K28,"")) ->  | E7: =IF(IF(OR(HVACCalcs!$K10="Old",HVACCalcs!$K10=""),'HVAC Unitary'!L28,"")=0,"",IF(OR(HVACCalcs!$K10="Old",HVACCalcs!$K10=""),'HVAC Unitary'!L28,"")) ->  | F7: =IF(IF(OR(HVACCalcs!$K10="Old",HVACCalcs!$K10=""),'HVAC Unitary'!M28,"")=0,"",IF(OR(HVACCalcs!$K10="Old",HVACCalcs!$K10=""),'HVAC Unitary'!M28,"")) ->  | G7: =IF(IF(HVACCalcs!$K10="New",'HVAC Unitary'!K28,"")=0,"",IF(HVACCalcs!$K10="New",'HVAC Unitary'!K28,"")) ->  | H7: =IF(IF(HVACCalcs!$K10="New",'HVAC Unitary'!L28,"")=0,"",IF(HVACCalcs!$K10="New",'HVAC Unitary'!L28,"")) ->  | I7: =IF(IF(HVACCalcs!$K10="New",'HVAC Unitary'!M28,"")=0,"",IF(HVACCalcs!$K10="New",'HVAC Unitary'!M28,"")) ->  | P7: =IF(ISERROR('HVAC Unitary'!S28/IF(Y7=0,1,Y7))," ",'HVAC Unitary'!S28/IF(Y7=0,1,Y7)) -> 0 | Q7: ='HVAC Unitary'!T28 -> 0 | R7: 0 | S7: ='HVAC Unitary'!R28/IF(Y7=0,1,Y7) -> 0 | T7: ='HVAC Unitary'!Q28/IF(Y7=0,1,Y7) -> 0 | U7: ='HVAC Unitary'!E28 -> 0 | V7: 15 | W7: ='HVAC Unitary'!F28 -> 0 | X7: ='HVAC Unitary'!D28 -> 0 | Y7: ='HVAC Unitary'!N28 -> 0 | Z7: ='HVAC Unitary'!G28 -> 0
A8: =VLOOKUP(X8,Validation!$C$3:$D$9,2,FALSE) ->  | B8: No | C8: ='HVAC Unitary'!C29 -> 0 | D8: =IF(IF(OR(HVACCalcs!$K11="Old",HVACCalcs!$K11=""),'HVAC Unitary'!K29,"")=0,"",IF(OR(HVACCalcs!$K11="Old",HVACCalcs!$K11=""),'HVAC Unitary'!K29,"")) ->  | E8: =IF(IF(OR(HVACCalcs!$K11="Old",HVACCalcs!$K11=""),'HVAC Unitary'!L29,"")=0,"",IF(OR(HVACCalcs!$K11="Old",HVACCalcs!$K11=""),'HVAC Unitary'!L29,"")) ->  | F8: =IF(IF(OR(HVACCalcs!$K11="Old",HVACCalcs!$K11=""),'HVAC Unitary'!M29,"")=0,"",IF(OR(HVACCalcs!$K11="Old",HVACCalcs!$K11=""),'HVAC Unitary'!M29,"")) ->  | G8: =IF(IF(HVACCalcs!$K11="New",'HVAC Unitary'!K29,"")=0,"",IF(HVACCalcs!$K11="New",'HVAC Unitary'!K29,"")) ->  | H8: =IF(IF(HVACCalcs!$K11="New",'HVAC Unitary'!L29,"")=0,"",IF(HVACCalcs!$K11="New",'HVAC Unitary'!L29,"")) ->  | I8: =IF(IF(HVACCalcs!$K11="New",'HVAC Unitary'!M29,"")=0,"",IF(HVACCalcs!$K11="New",'HVAC Unitary'!M29,"")) ->  | P8: =IF(ISERROR('HVAC Unitary'!S29/IF(Y8=0,1,Y8))," ",'HVAC Unitary'!S29/IF(Y8=0,1,Y8)) -> 0 | Q8: ='HVAC Unitary'!T29 -> 0 | R8: 0 | S8: ='HVAC Unitary'!R29/IF(Y8=0,1,Y8) -> 0 | T8: ='HVAC Unitary'!Q29/IF(Y8=0,1,Y8) -> 0 | U8: ='HVAC Unitary'!E29 -> 0 | V8: 15 | W8: ='HVAC Unitary'!F29 -> 0 | X8: ='HVAC Unitary'!D29 -> 0 | Y8: ='HVAC Unitary'!N29 -> 0 | Z8: ='HVAC Unitary'!G29 -> 0
A9: =VLOOKUP(X9,Validation!$C$3:$D$9,2,FALSE) ->  | B9: No | C9: ='HVAC Unitary'!C30 -> 0 | D9: =IF(IF(OR(HVACCalcs!$K12="Old",HVACCalcs!$K12=""),'HVAC Unitary'!K30,"")=0,"",IF(OR(HVACCalcs!$K12="Old",HVACCalcs!$K12=""),'HVAC Unitary'!K30,"")) ->  | E9: =IF(IF(OR(HVACCalcs!$K12="Old",HVACCalcs!$K12=""),'HVAC Unitary'!L30,"")=0,"",IF(OR(HVACCalcs!$K12="Old",HVACCalcs!$K12=""),'HVAC Unitary'!L30,"")) ->  | F9: =IF(IF(OR(HVACCalcs!$K12="Old",HVACCalcs!$K12=""),'HVAC Unitary'!M30,"")=0,"",IF(OR(HVACCalcs!$K12="Old",HVACCalcs!$K12=""),'HVAC Unitary'!M30,"")) ->  | G9: =IF(IF(HVACCalcs!$K12="New",'HVAC Unitary'!K30,"")=0,"",IF(HVACCalcs!$K12="New",'HVAC Unitary'!K30,"")) ->  | H9: =IF(IF(HVACCalcs!$K12="New",'HVAC Unitary'!L30,"")=0,"",IF(HVACCalcs!$K12="New",'HVAC Unitary'!L30,"")) ->  | I9: =IF(IF(HVACCalcs!$K12="New",'HVAC Unitary'!M30,"")=0,"",IF(HVACCalcs!$K12="New",'HVAC Unitary'!M30,"")) ->  | P9: =IF(ISERROR('HVAC Unitary'!S30/IF(Y9=0,1,Y9))," ",'HVAC Unitary'!S30/IF(Y9=0,1,Y9)) -> 0 | Q9: ='HVAC Unitary'!T30 -> 0 | R9: 0 | S9: ='HVAC Unitary'!R30/IF(Y9=0,1,Y9) -> 0 | T9: ='HVAC Unitary'!Q30/IF(Y9=0,1,Y9) -> 0 | U9: ='HVAC Unitary'!E30 -> 0 | V9: 15 | W9: ='HVAC Unitary'!F30 -> 0 | X9: ='HVAC Unitary'!D30 -> 0 | Y9: ='HVAC Unitary'!N30 -> 0 | Z9: ='HVAC Unitary'!G30 -> 0
A10: =VLOOKUP(X10,Validation!$C$3:$D$9,2,FALSE) ->  | B10: No | C10: ='HVAC Unitary'!C31 -> 0 | D10: =IF(IF(OR(HVACCalcs!$K13="Old",HVACCalcs!$K13=""),'HVAC Unitary'!K31,"")=0,"",IF(OR(HVACCalcs!$K13="Old",HVACCalcs!$K13=""),'HVAC Unitary'!K31,"")) ->  | E10: =IF(IF(OR(HVACCalcs!$K13="Old",HVACCalcs!$K13=""),'HVAC Unitary'!L31,"")=0,"",IF(OR(HVACCalcs!$K13="Old",HVACCalcs!$K13=""),'HVAC Unitary'!L31,"")) ->  | F10: =IF(IF(OR(HVACCalcs!$K13="Old",HVACCalcs!$K13=""),'HVAC Unitary'!M31,"")=0,"",IF(OR(HVACCalcs!$K13="Old",HVACCalcs!$K13=""),'HVAC Unitary'!M31,"")) ->  | G10: =IF(IF(HVACCalcs!$K13="New",'HVAC Unitary'!K31,"")=0,"",IF(HVACCalcs!$K13="New",'HVAC Unitary'!K31,"")) ->  | H10: =IF(IF(HVACCalcs!$K13="New",'HVAC Unitary'!L31,"")=0,"",IF(HVACCalcs!$K13="New",'HVAC Unitary'!L31,"")) ->  | I10: =IF(IF(HVACCalcs!$K13="New",'HVAC Unitary'!M31,"")=0,"",IF(HVACCalcs!$K13="New",'HVAC Unitary'!M31,"")) ->  | P10: =IF(ISERROR('HVAC Unitary'!S31/IF(Y10=0,1,Y10))," ",'HVAC Unitary'!S31/IF(Y10=0,1,Y10)) -> 0 | Q10: ='HVAC Unitary'!T31 -> 0 | R10: 0 | S10: ='HVAC Unitary'!R31/IF(Y10=0,1,Y10) -> 0 | T10: ='HVAC Unitary'!Q31/IF(Y10=0,1,Y10) -> 0 | U10: ='HVAC Unitary'!E31 -> 0 | V10: 15 | W10: ='HVAC Unitary'!F31 -> 0 | X10: ='HVAC Unitary'!D31 -> 0 | Y10: ='HVAC Unitary'!N31 -> 0 | Z10: ='HVAC Unitary'!G31 -> 0
A11: =VLOOKUP(X11,Validation!$C$3:$D$9,2,FALSE) ->  | B11: No | C11: ='HVAC Unitary'!C32 -> 0 | D11: =IF(IF(OR(HVACCalcs!$K14="Old",HVACCalcs!$K14=""),'HVAC Unitary'!K32,"")=0,"",IF(OR(HVACCalcs!$K14="Old",HVACCalcs!$K14=""),'HVAC Unitary'!K32,"")) ->  | E11: =IF(IF(OR(HVACCalcs!$K14="Old",HVACCalcs!$K14=""),'HVAC Unitary'!L32,"")=0,"",IF(OR(HVACCalcs!$K14="Old",HVACCalcs!$K14=""),'HVAC Unitary'!L32,"")) ->  | F11: =IF(IF(OR(HVACCalcs!$K14="Old",HVACCalcs!$K14=""),'HVAC Unitary'!M32,"")=0,"",IF(OR(HVACCalcs!$K14="Old",HVACCalcs!$K14=""),'HVAC Unitary'!M32,"")) ->  | G11: =IF(IF(HVACCalcs!$K14="New",'HVAC Unitary'!K32,"")=0,"",IF(HVACCalcs!$K14="New",'HVAC Unitary'!K32,"")) ->  | H11: =IF(IF(HVACCalcs!$K14="New",'HVAC Unitary'!L32,"")=0,"",IF(HVACCalcs!$K14="New",'HVAC Unitary'!L32,"")) ->  | I11: =IF(IF(HVACCalcs!$K14="New",'HVAC Unitary'!M32,"")=0,"",IF(HVACCalcs!$K14="New",'HVAC Unitary'!M32,"")) ->  | P11: =IF(ISERROR('HVAC Unitary'!S32/IF(Y11=0,1,Y11))," ",'HVAC Unitary'!S32/IF(Y11=0,1,Y11)) -> 0 | Q11: ='HVAC Unitary'!T32 -> 0 | R11: 0 | S11: ='HVAC Unitary'!R32/IF(Y11=0,1,Y11) -> 0 | T11: ='HVAC Unitary'!Q32/IF(Y11=0,1,Y11) -> 0 | U11: ='HVAC Unitary'!E32 -> 0 | V11: 15 | W11: ='HVAC Unitary'!F32 -> 0 | X11: ='HVAC Unitary'!D32 -> 0 | Y11: ='HVAC Unitary'!N32 -> 0 | Z11: ='HVAC Unitary'!G32 -> 0
B12: No | C12: Cool Roof Measures
A13: CR | B13: =IF(OR('Cool Roof'!H5=0,'Cool Roof'!H5="Fill in zip code in cell L6 on Project Information tab"),"No","Yes") -> No | C13: ='Cool Roof'!A5 -> 0 | P13: =Q13 -> 0.1 | Q13: ='Cool Roof'!G5 -> 0.1 | R13: ='Cool Roof'!Q5 -> 0 | S13: =R13 -> 0 | T13: ='Cool Roof'!P5 -> 0 | U13: ='Cool Roof'!B5 -> 0 | V13: =IF('Cool Roof'!C5="New Roof",15,10) -> 10 | X13: Cool Roof | Y13: ='Cool Roof'!F5 -> 0 | AA13: ='Cool Roof'!D5 -> 0 | AB13: ='Cool Roof'!E5 -> 0 | AC13: ='Cool Roof'!K5 -> 
A14: CR | B14: =IF('Cool Roof'!H6=0,"No","Yes") -> No | C14: ='Cool Roof'!A6 -> 0 | P14: =Q14 -> 0.1 | Q14: ='Cool Roof'!G6 -> 0.1 | R14: ='Cool Roof'!Q6 -> 0 | S14: =R14 -> 0 | T14: ='Cool Roof'!P6 -> 0 | U14: ='Cool Roof'!B6 -> 0 | V14: =IF('Cool Roof'!C6="New Roof",15,10) -> 10 | X14: Cool Roof | Y14: ='Cool Roof'!F6 -> 0 | AA14: ='Cool Roof'!D6 -> 0 | AB14: ='Cool Roof'!E6 -> 0 | AC14: ='Cool Roof'!K6 -> 
A15: CR | B15: =IF('Cool Roof'!H7=0,"No","Yes") -> No | C15: ='Cool Roof'!A7 -> 0 | P15: 0.1 | Q15: ='Cool Roof'!G7 -> 0.1 | R15: ='Cool Roof'!Q7 -> 0 | S15: 0 | T15: ='Cool Roof'!P7 -> 0 | U15: ='Cool Roof'!B7 -> 0 | V15: =IF('Cool Roof'!C7="New Roof",15,10) -> 10 | X15: Cool Roof | Y15: ='Cool Roof'!F7 -> 0 | AA15: ='Cool Roof'!D7 -> 0 | AB15: ='Cool Roof'!E7 -> 0 | AC15: ='Cool Roof'!K7 -> 
A16: CR | B16: =IF('Cool Roof'!H8=0,"No","Yes") -> No | C16: ='Cool Roof'!A8 -> 0 | P16: 0.1 | Q16: ='Cool Roof'!G8 -> 0.1 | R16: ='Cool Roof'!Q8 -> 0 | S16: 0 | T16: ='Cool Roof'!P8 -> 0 | U16: ='Cool Roof'!B8 -> 0 | V16: =IF('Cool Roof'!C8="New Roof",15,10) -> 10 | X16: Cool Roof | Y16: ='Cool Roof'!F8 -> 0 | AA16: ='Cool Roof'!D8 -> 0 | AB16: ='Cool Roof'!E8 -> 0 | AC16: ='Cool Roof'!K8 -> 
B17: No | C17: Window Film Measures
A18: WF | B18: =IF('Window Film'!I5=0,"No","Yes") -> No | C18: ='Window Film'!A5 -> 0 | P18: =Q18 -> 1 | Q18: ='Window Film'!L5 -> 1 | R18: ='Window Film'!O5 -> 0 | S18: =R18 -> 0 | T18: ='Window Film'!N5 -> 0 | V18: 15 | X18: Window Film | Y18: ='Window Film'!C5 -> 0 | AD18: ='Window Film'!F5 -> 0
A19: WF | B19: =IF('Window Film'!I6=0,"No","Yes") -> No | C19: ='Window Film'!A6 -> 0 | P19: 1 | Q19: ='Window Film'!L6 -> 1 | R19: ='Window Film'!O6 -> 0 | S19: =R19 -> 0 | T19: ='Window Film'!N6 -> 0 | V19: 15 | X19: Window Film | Y19: ='Window Film'!C6 -> 0 | AD19: ='Window Film'!F6 -> 0
A20: WF | B20: =IF('Window Film'!I7=0,"No","Yes") -> No | C20: ='Window Film'!A7 -> 0 | P20: 1 | Q20: ='Window Film'!L7 -> 1 | R20: ='Window Film'!O7 -> 0 | S20: 0 | T20: ='Window Film'!N7 -> 0 | V20: 15 | X20: Window Film | Y20: ='Window Film'!C7 -> 0 | AD20: ='Window Film'!F7 -> 0
A21: WF | B21: =IF('Window Film'!I8=0,"No","Yes") -> No | C21: ='Window Film'!A8 -> 0 | P21: 1 | Q21: ='Window Film'!L8 -> 1 | R21: ='Window Film'!O8 -> 0 | S21: 0 | T21: ='Window Film'!N8 -> 0 | V21: 15 | X21: Window Film | Y21: ='Window Film'!C8 -> 0 | AD21: ='Window Film'!F8 -> 0
B22: No | C22: End
